Workbook

Sheet Caratula
A2: Informe de Avance Trimestral
A10: Unidad Responsable del Gasto:
A13: 02CD14 Alcaldía Tlalpan
F17: Período: | I17: Enero-Diciembre 2021
A26: Titular : | K26: Responsable :
E27: Mtra. Alfa Eliana González Magallanes | M27: Lic. Martín Vargas Domínguez
E28: Alcladesa en Tlalpan | M28: Director General de Administración

Sheet Matriz
B2: MATRIZ DE CONTROL DEL INFORME DE AVANCE TRIMESTRAL
B3: Unidad Responsable del Gasto: | C3: 02CD14 ALCALDÍA TLALPAN
B4: Período: | C4: =Caratula!I17 -> Enero-Diciembre 2021
B5: Fecha de Elaboración: | C5: 7 de enero de 2022
B7: FORMATO | C7: NOMBRE | D7: ENTREGABLE | H7: OBSERVACIÓN
D8: FORMATOS FÍSICOS | F8: MEDIO MAGNÉTICO
D9: APLICA | E9: NO APLICA | F9: EXCEL | G9: PDF
B10: CARÁTULA | C10: CARATULA DEL INFORME DE AVANCE TRIMESTRAL | D10: X | F10: X | G10: X
B11: RESUMEN EJECUTIVO | C11: RESUMEN EJECUTIVO DEL INFORME DE AVANCE TRIMESTRAL | D11: X | F11: X | G11: X
B12: ECG | C12: EVOLUCIÓN PRESUPUESTAL POR CAPÍTULO DE GASTO | D12: X | F12: X | G12: X
B13: EPC | C13: EVOLUCIÓN PRESUPUESTAL DE PARTIDAS CENTRALIZADAS O CONSOLIDADAS | E13: X | F13: X
B14: PPI | C14: PROGRAMAS Y PROYECTOS DE INVERSIÓN | D14: X | F14: X | G14: X
B15: A-PP | C15: ADECUACIONES A PROGRAMAS PRESUPUESTARIOS | D15: X | F15: X | G15: X
B16: ADS-1 | C16: AYUDAS, DONATIVOS Y SUBSIDIOS | D16: X | F16: X | G16: X
B17: ADS-2 | C17: AYUDAS, DONATIVOS Y SUBSIDIOS A FIDEICOMISOS | E17: X | F17: X
B18: SAP | C18: PROGRAMAS QUE OTORGAN SUBSIDIOS Y APOYOS A LA POBLACIÓN | D18: X | F18: X | G18: X
B19: FIC | C19: FIDEICOMISOS CONSTITUIDOS | E19: X | F19: X
B20: AP-FAFA | C20: AVANCE PRESUPUESTAL DEL FONDO ADICIONAL DE FINANCIAMIENTO DE LAS ALCALDÍAS | E20: X | F20: X
B21: PPA | C21: PRESUPUESTO PARTICIPATIVO PARA LAS ALCALDÍAS | D21: X | F21: X | G21: X
B22: 6d | C22: ESTADO ANALÍTICO DEL EJERCICIO DEL PRESUPUESTO DE EGRESOS DETALLADO – LDF- (CLASIFICACIÓN DE SERVICIOS PERSONALES POR CATEGORÍA) | D22: X | F22: X | G22: X
B25: Elaboró: | E25: Autorizó :
C26: C. Daniel Alberto Pastrana Neria | F26: Lic. Gerardo Nieto García
C27: Subdirector de Presupuesto | F27: director de Recursos Financieros y Presupuestales

Sheet Hoja1 (hidden)
A1: UR | B1: GCI | C1: CAP | D1: OPT SEL
A2: =Caratula!$A$13 -> 02CD14 Alcaldía Tlalpan | B2: C | C2: =#REF! ->  | D2: =#REF! -> 
A3: =Caratula!$A$13 -> 02CD14 Alcaldía Tlalpan | B3: C | C3: =#REF! ->  | D3: =#REF! -> 
A4: =Caratula!$A$13 -> 02CD14 Alcaldía Tlalpan | B4: C | C4: =#REF! ->  | D4: =#REF! -> 
A5: =Caratula!$A$13 -> 02CD14 Alcaldía Tlalpan | B5: C | C5: =#REF! ->  | D5: =#REF! -> 
A6: =Caratula!$A$13 -> 02CD14 Alcaldía Tlalpan | B6: C | C6: =#REF! ->  | D6: =#REF! -> 
A7: =Caratula!$A$13 -> 02CD14 Alcaldía Tlalpan | B7: C | C7: =#REF! ->  | D7: =#REF! -> 
A8: =Caratula!$A$13 -> 02CD14 Alcaldía Tlalpan | B8: C | C8: =#REF! ->  | D8: =#REF! -> 
A9: =Caratula!$A$13 -> 02CD14 Alcaldía Tlalpan | B9: C | C9: =#REF! ->  | D9: =#REF! -> 
A10: =Caratula!$A$13 -> 02CD14 Alcaldía Tlalpan | B10: C | C10: =#REF! ->  | D10: =#REF! -> 
A11: =Caratula!$A$13 -> 02CD14 Alcaldía Tlalpan | B11: C | C11: =#REF! ->  | D11: =#REF! -> 
A12: =Caratula!$A$13 -> 02CD14 Alcaldía Tlalpan | B12: C | C12: =#REF! ->  | D12: =#REF! -> 
A13: =Caratula!$A$13 -> 02CD14 Alcaldía Tlalpan | B13: C | C13: =#REF! ->  | D13: =#REF! -> 
A14: =Caratula!$A$13 -> 02CD14 Alcaldía Tlalpan | B14: C | C14: =#REF! ->  | D14: =#REF! -> 
A15: =Caratula!$A$13 -> 02CD14 Alcaldía Tlalpan | B15: C | C15: =#REF! ->  | D15: =#REF! -> 
A16: =Caratula!$A$13 -> 02CD14 Alcaldía Tlalpan | B16: I | C16: =#REF! ->  | D16: =#REF! -> 
A17: =Caratula!$A$13 -> 02CD14 Alcaldía Tlalpan | B17: I | C17: =#REF! ->  | D17: =#REF! -> 
A18: =Caratula!$A$13 -> 02CD14 Alcaldía Tlalpan | B18: I | C18: =#REF! ->  | D18: =#REF! -> 
A19: =Caratula!$A$13 -> 02CD14 Alcaldía Tlalpan | B19: I | C19: =#REF! ->  | D19: =#REF! -> 
A20: =Caratula!$A$13 -> 02CD14 Alcaldía Tlalpan | B20: I | C20: =#REF! ->  | D20: =#REF! -> 
A21: =Caratula!$A$13 -> 02CD14 Alcaldía Tlalpan | B21: I | C21: =#REF! ->  | D21: =#REF! -> 
A22: =Caratula!$A$13 -> 02CD14 Alcaldía Tlalpan | B22: I | C22: =#REF! ->  | D22: =#REF! -> 
A23: =Caratula!$A$13 -> 02CD14 Alcaldía Tlalpan | B23: I | C23: =#REF! ->  | D23: =#REF! -> 
A24: =Caratula!$A$13 -> 02CD14 Alcaldía Tlalpan | B24: I | C24: =#REF! ->  | D24: =#REF! -> 
A25: =Caratula!$A$13 -> 02CD14 Alcaldía Tlalpan | B25: I | C25: =#REF! ->  | D25: =#REF! -> 
A26: =Caratula!$A$13 -> 02CD14 Alcaldía Tlalpan | B26: I | C26: =#REF! ->  | D26: =#REF! -> 
A27: =Caratula!$A$13 -> 02CD14 Alcaldía Tlalpan | B27: I | C27: =#REF! ->  | D27: =#REF! -> 
A28: =Caratula!$A$13 -> 02CD14 Alcaldía Tlalpan | B28: I | C28: =#REF! ->  | D28: =#REF! -> 
A29: =Caratula!$A$13 -> 02CD14 Alcaldía Tlalpan | B29: I | C29: =#REF! ->  | D29: =#REF! -> 
A30: =Caratula!$A$13 -> 02CD14 Alcaldía Tlalpan | B30: I | C30: =#REF! ->  | D30: =#REF! -> 
A31: =Caratula!$A$13 -> 02CD14 Alcaldía Tlalpan | B31: I | C31: =#REF! ->  | D31: =#REF! -> 
A32: =Caratula!$A$13 -> 02CD14 Alcaldía Tlalpan | B32: I | C32: =#REF! ->  | D32: =#REF! -> 
A33: =Caratula!$A$13 -> 02CD14 Alcaldía Tlalpan | B33: I | C33: =#REF! ->  | D33: =#REF! -> 
A34: =Caratula!$A$13 -> 02CD14 Alcaldía Tlalpan | B34: I | C34: =#REF! ->  | D34: =#REF! -> 

Sheet Resumen_Ejecutivo
B2: RESUMEN EJECUTIVO
B3: INFORME DE AVANCE TRIMESTRAL
B10: Unidad Responsable del Gasto: | D10: ALCALDÍA TLALPAN
B11: Período: | D11: ENERO-DICIEMBRE
B12: Fecha de Elaboración: | D12: 06.01.2021
B14: DESCRIPCIÓN | C14: IMPORTE | D14: EXPLICACIÓN
B15: 1.- Explicación general a las variaciones del saldo comprometido y ejercido respecto al presupuesto modificado al periodo | C15: -44022478.74 | D15: La cantidad corresponde a recursos Autogenerados por 14,838,938.68, los cuales son recursos que no fueron captados por los centros generadores, debido a las medidas de contención del COVID-19, que prevaleció hasta el primer semestre del año 2021 y posterior a ello se han abierto gradualmente las actividades. Estos recursos en un principio estaban destinados al pago de la nomina de honorarios asimilados a salarios, de personal que labora en diversas áreas de la Alcaldía y al contar con una menor captación, se realizaron intercambios de fuentes de financiamiento, es decir se tomaron recursos de insumos y servicios que se pretendían adquirir y fueron dirigidos, para seguir cubriendo los honorarios de los prestadores de servicio. Lo que género que la Alcaldía realizara adquisiciones y contratación de servicios por debajo de las necesidades de operación, por mencionar uno relevante es la contratación de vehículos para el reparto de agua potable para el ultimo periodo octubre-diciembre. Se obtuvo en el proceso de contratación una economía mínima en los recursos del Fondo de Aportaciones para el Fortalecimiento de las Entidades Federativas, recursos que fueron destinados al mejoramiento de mercados públicos : Mercado de Flores San Fernando. Mercado Fuentes Brotantes; Mercado Villa Coapa; Mercado Plaza Mexicana Del Sur, por la cantidad de 24 pesos, lo cual, no repercutió de ninguna manera en el incumplimiento de los proyectos previsto de este concepto. Con respecto a rubros como gasto corriente y gastos centralizados, se contaron con economías en la adquisición de papelería, telefonía y combustibles, resultantes de aplicar medidas de austeridad, este ahorro fue por la cantidad de 2,513,652.85, la baja de estos recursos, no represento una disminución del incumplimiento de las metas programadas para el año 2021. Con respecto del Presupuesto Participativo se contó con recursos no comprometidos, derivados del año 2020 se dejó de comprometer la cantidad de 727,004.36 debido a que en la colonia 12-036 El Arenal se registro un empate de los proyectos ganadores, y no se obtuvo un acuerdo para realizar los trabajos. En cuanto a la colonia 12-074 La Magdalena Petlacalco (Pblo), la Dirección General de Obras y Desarrollo Urbano, obtuvo economías, al momento de realizar los contratos. En cuanto al Presupuesto Participativo del 202, se contó con un presupuesto no comprometido por la cantidad de 1,429,571.06, debido a que en las colonias 12-074 La Magdalena Petlacalco (Pblo) y 12-154 San Miguel Xicalco (Pblo), no se realizó consulta, por resolución del TEPJF. Sobre recursos del Fondo de Aportaciones para la Infraestructura Social, se observa la cantidad de 735,821.94, los cuales corresponde a rendimientos financieros, para ser utilizados se requiere visto bueno de la Secretaría del Bienestar, estos recursos no influyen en el incumplimiento de las metas programadas. Con respecto a los servicios personales se observó una diferencia de 17,074,205.06, que corresponde a recursos del fondo de ingresos de aplicación automática, los cuales como se comento derivaron de una baja de recaudación de los ingresos.
B18: 2.- Principales acciones realizadas durante el periodo | C18: 2173159915 | D18: En el periodo comprendido de enero a diciembre del 2021, se desarrollaron las siguientes acciones Con el apoyo de 140 facilitadores de servicio se implementaron 32 Módulos Integrales Permanentes, para la Prevención de la Violencia y el Delito. Se concluyó la entrega de apoyo económico a facilitadores de servicios por la impartición de talleres a través de medios virtuales, para la población de Tlalpan, con enfoque de la cultura de paz. y se realizó la reapertura de la Exposición “Todos llegaremos al cielo”, de la escultora Claire Becker, expuesta en el Museo de Historia de Tlalpan , con la Transmisión online del Encuentro Cultural de Alcaldías para celebrar el Equinoccio de Primavera 2021, y la Transmisión online del programa especial
D19: Jaime Sabines "95 años", además se presentó un concierto en Museo de Historia de Tlalpan, El Festival de Artistas Escénicos, y la grabación de 3 episodios del Programa "Cultura Tlalpan TV" , 2 presentaciones musicales en el Pueblo de San Miguel Ajusco. La ejecución de acciones con bases artístico-culturales, a través de espacios públicos o virtuales: como la Inauguración de la Exposición "Pianoforte", con la Inauguración de la Plaza del Bolero, el "Concurso de Boleros", y 4 funciones de auto cinema en Cine Villa Olímpica, más la Reinauguración de "Casa Frissac" y 2 Conciertos de Jazz. Parque Nacional Fuentes Brotantes. Barrido de 104 km de calzadas y plaza cívica; Papeleo en 62 km en senderos, avenida y plaza cívica; 42 m3 en Recolección de basura de las áreas verdes; Poda de pasto, retiro de malezas y limpieza de brechas y senderos; se hizo el retiro de 5 m3 de ramas de árboles caídos; de igual manera se brindo apoyo para llevar la plantación de 500 cedros blancos en tres oficinas, Agencia 5 de la Fiscalía, Ministerio Publico Tlalpan 1 y Agencia Jojutla de la Fiscalía. Se dio alimentación a 80 patos que se encuentran en el parque. Se retiraron 21 m3 de basura en el área conocida como cuevas "Cañada" Parque Ecológico de la Ciudad de México. Se han derribado, trozado, descortezado y fumigado 23 árboles en el paraje el seminario y se han atendido 26 árboles más bajo las mismas acciones en el paraje Las Terrazas. Se realizó vigilancia de incendios forestales en una superficie de 710 has; se han dado mantenimiento a 2,258 plantas en vivero; acondicionamiento de 800 metros cuadrados de infraestructura en la administración oficinas; limpieza de brecha de 3.874 km metros en el paraje la estrella y media hectárea en lo del retiro de heno y trepadora. A través del subcomité se llevó a cabo una Feria Ambiental, sobre prevención cultural en la Alcaldía Tlalpan; por otro lado, se llevó a cabo la divulgación y fomento de las plantaciones forestales comerciales de árboles de navidad en la Alcaldía. Se realizó el mantenimiento y conservación de las áreas verdes en 1,000,000 metros cuadrados, realizando los siguientes trabajos: Barrido de áreas verdes 346,557 m2., Rastrilleo de 1,948 m2., Poda de pasto 215,282 m2., Riego de áreas verdes 383,882 m2., Deshierbe de 6,402 m2., Desmonte (retiro de maleza) 235 m2., Papeleo de 33,744 m2., Retiro de hierba en adocreto 4,000 m2. Adicionalmente se realizaron las siguientes actividades: Acarreo manual de basura vegetal 9,925 metros cúbicos, Aflojado de tierra 4,784 piezas, Cajeteo 10,442 piezas, Sembrado de 15,260 plantas, Poda de seto 9,209 metros lineales, Levantamiento de fuste a 672 árboles, Retiro de basura vegetal 9,301 metros cúbicos, Poda de 2,703 árboles, reducción clareo, elevación de copa 1,518 árboles, Retiro de 191 árboles, Liberación de 202 luminarias, Liberación de líneas eléctricas 5 piezas, Limpieza de canaleta 12,252 metros lineales, Acarreo de plantas 15,294 piezas, Liberación de cámaras de seguridad 84 piezas, Sembrado de árboles 38 piezas y Retiro de hierba en banqueta y guarniciones 51,030 metros lineales. Se realizo en la Clínica Veterinaria de la Alcaldía Tlalpan los siguientes servicios:1.- Asesorías médicas Veterinarias: 11,676, 2.- Vacunación antirrábica: 659; 3.- Cirugías de esterilización: 23,591; 4.- Beneficiarios de estrategias de enseñanza a distancia: 5,074. Se entrega recurso a facilitadores del Programa Social Huellas: Sembrando Compañía en Comunidad en su totalidad. Se realizó la recolección de 425,223 Toneladas de residuos sólidos orgánicos e inorgánicos siguientes: Recolección de residuos industriales 1,385 Toneladas., Barrido con equipo mecánico 753 Toneladas., Basura domiciliaria 277,309 Toneladas., Recolección en contenedores de metal 12,745 Toneladas., Contenedores de plástico 1,795 Toneladas., Escuela limpia 1,838 Toneladas., Recolección de cascajo 26,156 Toneladas., Recolección en tiraderos clandestinos 176, Contenedores terminales 7,487 Toneladas., Recolección en mercados 13,841 Toneladas., Recolección en Tianguis 2,004 Toneladas., Papeleras 55 Toneladas., Recolección del barrido manual 79,600 Toneladas. y en Jornadas 79 Toneladas. Adicionalmente se realizó el barrido manual en 84,000 Km., en las calles y vialidades secundarias, el barrido mecanizado en 17,452 Km., Retiro de organismos muertos 63 y Traslado de llantas 282 piezas.
D23: Se realizó el mantenimiento y conservación a 235 espacios públicos siendo las siguientes: Rehabilitación de 13 juegos infantiles, Rehabilitación, instalación y colocación de malla ciclónica en 34 espacios públicos, Aplicación de pintura en muros y bardas para retiro de grafiti en 45 espacios, Aplicación de pintura en postes y mobiliario urbano y retiro de pegas en 26 sitios, Aplicación de pintura para balizamiento de pasos peatonales, señalamiento vertical y horizontal en 33 sitios, Aplicación de pintura en módulos de aparatos de gimnasio al aire libre 6 sitios, Mantenimiento y operación de fuente ornamental 1 sitio, aplicación de pintura en módulos de juegos infantiles 16 sitios, Atención a 11 cancha y/o módulo deportivo, Atención integral a 28 plazas y/o espacios públicos, Colocación de 22 letreros prohibitivos en espacios públicos. La Alcaldía proporciona a la ciudadanía los servicios públicos funerarios (Cremación, Inhumación, Exhumación y Re-inhumación), durante los 365 días del año, por lo que se requiere el mantenimiento de los hornos crematorios, así como el mantenimiento de los once panteones de Tlalpan. En tanto a los mantenimientos a los hornos incineradores se realizaron 10 de los 10 mantenimientos correctivos autorizados. Por lo que, se refiere a los mantenimientos a los panteones durante este cuarto trimestre se han efectuado 23 jornadas de mantenimiento que incluyen recorridos de recolección de basura, recorridos de recolección de cascajo, desmalezamiento y aplicación de pintura. A través de la obra por Administración se realizaron 3,000.90 m2 para los trabajos de Mantenimiento a Banquetas, se realizaron 120,000.0 m2 para el Mantenimiento de la Carpeta Asfáltica con trabajos de Bacheo con 103,304.38 m2, Carpeta Nueva con 9,429.0 m2 y trabajos de Re-encarpetado con 7,266.62 m2, se realizaron 85,000.00 ml de balizamiento a vialidades secundarias A través de la Obra por Contrato se realizó la colocación de 50 luminarias en la colonia: Pueblo San Miguel Ajusco, se realizó el balizamiento con pintura en señalamientos verticales y horizontales en calles y vialidades secundarias de esta demarcación, en 123 sitios distintos, realizando pasos peatonales, flechas de dirección en vialidades, reductores de velocidad, prohibitivos, guaridas peatonales y adecuaciones geométricas en los siguientes pueblos y colonias: Pueblo San Miguel Topilejo, Pueblo San Pedro Mártir, Pedregal de San Nicolás 3a. Sección y Centro de Tlalpan. Se realizaron las siguientes acciones: 2,735 Renovaciones, 1,248 Bajas, 418 Operativos a comercio de vía pública, 3,692 Recorridos de control de comercio ambulante, 289 Recorridos de control de comercio en zona de Hospitales, 1,626 Operativos en tianguis y/o mercados sobre ruedas, 404 Guardias permanentes, 46 Solicitudes de INFOMEX atendidas, 725 Sanitizaciones a tianguis, mercados sobre ruedas y avenidas con alta concentración de ambulantes, 348 Retiros de comerciantes en tianguis y mercados sobre ruedas, 2,457 Retiros de comerciantes de manera verbal y 650 Órdenes de trabajo para supervisiones. Se realizó el mantenimiento, rehabilitación, sustitución, instalación y conservación del alumbrado público en 11,566 luminarias, siendo las siguientes actividades realizadas: Reparación de 5,547 luminarias, Instalación de 2,470 luminarias nuevas, Transformación de luminarias 4 luminarias, Instalación de 95 luminarias rehabilitadas, Reparación de 50 reflectores, Instalación de 58 reflectores, Reparación de 271 farolas, Colocación de 4 acometida, Retiro de 10 poste, sustitución de 65 reflectores, Retiro de 8 postes con luminaria, Instalación de 18 postes, Retiro de 4 luminarias, Sustitución de 2 farola, Transformación de 4 reflector, Retiro de 28 guirnaldas, Instalación de 5 postes con luminaria, Sustitución de 2,917 luminarias, Retiro de 4 reflectores, Sustitución de poste 2. Se realizó el mantenimiento, rehabilitación, sustitución, instalación y conservación del alumbrado público en 14,010 luminarias, realizando las siguientes actividades: Reparación de 6,821 luminarias, Instalación de 2,477 luminarias nuevas, Transformación de 4 luminarias, Instalación de 130 luminarias rehabilitadas, Reparación de 64 reflectores, Instalación de 75 reflectores, Reparación de 326 farolas, Colocación de 5 acometida, Retiro de 11 poste, sustitución de 74 reflectores, Retiro de 12 postes con luminaria, Instalación de 24 postes, Retiro de 4 luminarias, Sustitución de 2 farolas, Transformación de 5 reflector, Retiro de 37 guirnaldas, Instalación de 7 postes con luminaria, Sustitución de 3,924 luminarias, Retiro de 6 reflectores y Sustitución de postes 2." Se atendieron 144 comités de los cuales, 77 comités para el Presupuesto Participativo 2020 y 77 comités para el Presupuesto Participativo 2021, los cuales se
D26: contrataron a finales del mes de noviembre por lo que no se cuentan con avances físicos y será hasta el cierre de la cuenta pública cuando se presenten los trabajos al 100%. Se realizó un meta total de 30 inmuebles para el Mantenimiento y rehabilitación de Edificos Públicos, de los cuales, a través de la Obra por Administración se realizaron 28 inmuebles para el mantenimiento y rehabilitación de Edificios Públicos, trabajos Realizados: de reparación y mantenimiento en instalaciones eléctricas e hidrosanitarias, en Oficinas Locales de la guardia Nacional Villa Olímpica. Ubicación: Avenida Insurgentes Sur esquina Periférico Sur, unidad habitacional Villa Olímpica, Trabajo Realizado: reparación y mantenimiento en instalaciones hidrosanitarias y eléctricas, 13.- Subdelegación de Chimalcoyotl. Ubicación: Cristóbal Colón no. 6, colonia Chimalcoyotl. Trabajos Realizados reparación y mantenimiento en instalaciones hidrosanitarias y reparación de techumbre (42 M2.),reparación y mantenimiento en instalación eléctrica, 14.- Oficina de Los Derechos Humanos. Ubicación: Moneda s/n esquina Insurgentes Sur, colonia Centro de Tlalpan. Trabajos Realizados: reparación y mantenimientos en instalaciones hidrosanitarias, trabajos de herrería (elaboración de reja y protecciones). 15.- Oficinas de Desarrollo Social y Deportes de la Alcaldía. Ubicación: Avenida Insurgentes Sur s/n casi esquina Periférico Sur, unidad habitacional Villa Olímpica. Trabajos Realizados: reparación y mantenimiento en instalaciones eléctricas.
B27: 3.- Explicación general a las acciones realizadas con recurso de origen federal. | C27: 1632611772 | D27: Con recursos de Participaciones en Ingresos Federales, se contribuye al pago de los servicios personales del personal adscrito a la Alcaldía de Tlalpan. Se adquieren diversos insumos como papelería, material de limpieza, vara de perlilla, materiales para la construcción, medicamentos y suministros médicos, combustibles, lubricantes, aditivos, refacciones para vehículos, se contratan servicios básicos como telefonía, internet, arrendamiento de vehículos para el transporte de agua potable, arrendamiento de mesas carpas y sillas etc., arrendamientos de inmuebles, mantenimiento vehicular, se cubren los impuestos que se generan en la operación. Se lleva a cabo la adquisición de mobiliario para el equipamiento del Centro de Atención Integral para Mujeres Víctimas de Violencia de Género "Justa Hernández Farfán".; material informático para el fortalecimiento a la infraestructura de Equipo de Cómputo y Comunicaciones de la Alcaldía.; Adquisición de Equipo Fotográfico, Grabación, Video y Accesorios para la Transmisión en Vivo de la Alcaldía Tlalpan y Sesiones de Concejo.; Adquisición de Equipo Fotográfico, Grabación, Video y Accesorios para la Transmisión en Vivo de la Alcaldía Tlalpan y Sesiones de Concejo,. Adquisición de material para el fortalecimiento de la atención en Consultorios Médicos y/o jornada de salud. En materia de obra se desarrollan los proyectos: seis proyectos Ejecutivos para la elaboración de la Construcción de los Proyectos de Obra de Mercados Públicos, mantenimiento y Rehabilitación a Mercados, mantenimiento de Salón de usos múltiples (granjas Coapa) (clave 12-050), dentro del perímetro de la demarcación territorial Alcaldía Tlalpan, mantenimiento de Módulo De Vigilancia para la colonia (Mirador I) (Clave 12-100), dentro del perímetro de la demarcación territorial, construcción de Centro Cultural para Exhibición de Películas Obras de Teatro y Danza sobre La calle Las Torres frente a la Base de RTP (Xaxalco) (Clave 12-200), dentro del perímetro, construcción de aula para actividades físicas (Lomas de Padierna II) (clave 12-212), dentro del perímetro de la demarcación territorial, construcción de salón de usos múltiples techado beneficia 3800 habitantes de todas las edades para actividades recreativas culturales deportivas, construcción de tanque de captación de aguas pluviales en solidaridad (chimilli) (clave 12-022), dentro del perímetro de la demarcación territorial, sustitución de red de agua potable y tomas, por las calles prolongación de abasolo, fuentes buenas y calles perpendiculares a ésta (fuentes y pedregal de tepepan) (clave 12-048),cambio de la red de agua potable del interior de la u.h. tenorios 222, sustitución de válvulas deterioradas de la red hidráulica de la unidad (Villa Olímpica liberador Miguel Hidalgo (u hab)) (clave 12-195), dentro del perímetro de la demarcación, continuación de proyecto reparación de la red hidráulica, mantenimiento y acondicionamiento en avenidas del arbolillo y sendero, sustitución y mantenimiento a la red de distribución de agua
D30: potable incluyendo tubería, válvulas, y lo necesario para su funcionamiento (Fuentes Brotantes Miguel Hidalgo (u hab), Mantener y Rehabilitar los Planteles Educativos del Nivel Básico, construcción de gradas, barandales, baños y todo lo necesario para que el Ruedo de San Miguel Ajusco este en funcionamiento, Remodelación y mejoramiento del parque Busto de Juárez 2020 (Ampliación Miguel Hidalgo 2a secc.) (Clave 12-002), dentro del perímetro de la demarcación territorial. Arreglos y compostura del parque "Martín Torres Padilla" (Amsa) (clave 12-005), dentro del perímetro de la demarcación territorial. Rehabilitación de Banquetas de calidad (Arboledas del Sur) (clave 12-007), dentro del perímetro de la demarcación territorial. Construcción de Barreras anti-inundación y válvulas check para reducir la vulnerabilidad y el riesgo de inundación y pérdida del patrimonio en col Guadalupe Tla. (Arenal Guadalupe Tlalpan) (clave 12-008), Recuperación del área verde de la calle Río San Buenaventura con esquina Periférico Sur (Arenal puerta Tepepan) (clave 12-009), dentro del perímetro de la demarcación territorial. Por mencionar algunos. Convenios con Secretaria de Desarrollo Económico (Fondo de Aportaciones para el Fortalecimiento de las Entidades Federativas). Se adicionaron 9 millones 124 mil pesos mediante convenio celebrado con la Secretaría de Desarrollo Económico para el mantenimiento de cuatro mercados, siguientes: 1. Mercado de Flores San Fernando. 2. Mercado Fuentes Brotantes. 3. Mercado Villa Coapa. 4. Mercado Plaza Mexicana Del Sur. Con recurso del Fondo de Aportaciones para Fondo de Aportaciones para el Fortalecimiento de los Municipios y las Demarcaciones Territoriales, se llevan a cabo adquisiciones de insumos como papelería, material de limpieza, mezcla asfáltica, materiales de construcción, combustibles, vestuario para el personal operativo, se contratan los servicios de energía eléctrica, suministro de gas L.P, suministro de agua potable, agua trata, servicios de telefonía e internet, servicios de vigilancia, mantenimiento a inmuebles. Con el Fondo de Aportaciones para la Infraestructura Social (FAIS)-2021, se llevan a cabo 64 proyectos de Rehabilitación de superficie de rodamiento (repavimentación) en diversas ubicaciones, dentro del perímetro de la demarcación territorial (79,528.50 m2). ; Rehabilitación de superficie de rodamiento (repavimentación) en diversas ubicaciones, dentro del perímetro de la demarcación territorial (79,528.50 m2). ; Rehabilitación de banquetas en diversas ubicaciones dentro del perímetro de la demarcación territorial (9,497.40 m2). ; Rehabilitación del sistema de alumbrado público en diversas ubicaciones, dentro del perímetro de la demarcación territorial (1,000 luminarias).; Rehabilitación del sistema de alcantarillado pluvial en diversas ubicaciones, dentro del perímetro de la demarcación territorial (14 cajas de tormenta).; Construcción de resumidero en la esquina de calle guadalupana (Tecatitla) con 2a cerrada Tecatitla (la guadalupana), colonia la guadalupana, san miguel topilejo, dentro del perímetro de la demarcación territorial.; Construcción de drenaje en la calle camino viejo a san pedro, colonia la joya, dentro del perímetro de la demarcación territorial.; Construcción de drenaje en toda la colonia (san miguel tehuisco-los angeles-ayometitla) (clave 12-156), dentro del perímetro de la demarcación territorial.; Construcción de drenaje pluvial con pozo de absorción / cosecha de agua en las calles emiliano zapata y san francisco, colonia villa lázaro cárdenas, dentro del perímetro de la demarcación territorial.
B33: 4.- Acciones realizadas para prevención y atención del COVID-19 | C33: 71133961.93 | D33: (Eje de atención COVID 1)
D34: Se crearon siete acciones sociales: Apoyo a Personas con Discapacidad Permanente Frente al COVID-19, Apoyo emergente para mujeres cuidadoras de niñas y niños de 0 a 5 años de edad ante la emergencia sanitaria por COVID-19, Cultivando una vida libre y sin violencia hacia las mujeres en tiempos de COVID-19, Apoyo de emergencia social a personas en situación de vunerabilidad que perdieron su empleo derivado a la pandemia por COVID-19, Apoyo alimenticio a las familias de tlalpan (Mercomuna), Apoyo a la comunidad LGBTTTIQA frente al COVID-19 y Apoyo Económico en tiempos del COVID-19 a niñas y niños de primaria y secundarias públicas de Tlalpan; las cuales tienen como principal objetivo el apoyar a la economía de la población tlalpense que no cuenta con un ingreso o el que percibe no es suficiente para cubrir sus necesidades básicas. (Eje de atención COVID 2-Apoyos)
B56: Elaboró : _______________________________________________________________________________________________________ Autorizó :______________________________________________________________________________
B57: Daniel Alberto Pastrana Neria Subdirector de Presupuesto | E57: Gerardo Nieto García Director de Recursos Financieros y Presupuestales

Sheet ECG
B2: ECG EVOLUCIÓN PRESUPUESTAL POR CAPÍTULO DE GASTO
B4: Unidad Responsable de Gasto: | F4: ALCALDÍA DE TLALPAN
B5: Período: | F5: ENERO-DICIEMBRE DE 2021
B7: CAPÍTULO | C7: PRESUPUESTO (Pesos con dos decimales) | J7: VARIACIÓN | K7: % AVANCE | L7: EXPLICACIÓN A LAS VARIACIONES DEL SALDO COMPROMETIDO Y EJERCIDO RESPECTO AL PRESUPUESTO MODIFICADO AL PERIODO
C8: APROBADO | D8: MODIFICADO | E8: EJERCIDO | F8: SALDO DEL COMPROMISO | G8: DEVENGADO | H8: PAGADO | I8: EJERCIDO + COMPROMETIDO | J8: (SALDO DEL COMPROMISO + EJERCIDO)-MODIFICADO
B9: TOTAL GASTO CORRIENTE | C9: =SUM(C10:C34) -> 1604968146 | D9: =SUM(D10:D34) -> 1657307306 | E9: 1556222911 | F9: 195359659.1 | G9: 1090645189 | H9: 1545299478 | I9: 1621008630 | J9: =SUM(J10:J35) -> 94275263.86 | Q9: CAPITULO | R9: EXPLICACION
B10: 1000 | C10: 648495421 | D10: 631792122.2 | E10: 602130852.9 | F10: 12624570.73 | G10: 614755423.6 | H10: 602130852.9 | I10: =+E10+F10 -> 614755423.6 | J10: =+F10+E10-D10 -> -17036698.57 | K10: 1 | L10: Otros | Q10: 1000 | R10: Plazas vacantes
Q11: 1000 | R11: Sueldos no cobrados | S11: Etiquetas de fila | T11: Suma de APROBADO | U11: Suma de MODIFICADO | V11: Suma de EJERCIDO | W11: Suma de SALDO DE COMPROMISO | X11: Suma de DEVENGADO | Y11: Suma de PAGADO | Z11: Suma de EJERCIDO MAS COMPROMETIDO
Q12: 1000 | R12: Laudos no ejecutados o no concluidos | S12: 1 | T12: 1604968146 | U12: 1657307306 | V12: 1543888228 | W12: 78885856.37 | X12: 1618460969 | Y12: 1543888228 | Z12: 1622774084
B13: 2000 | C13: 138843481 | D13: 163603502.2 | E13: 144164281 | F13: 145082156.4 | G13: 158309056.9 | H13: 144164281 | I13: 158672497.4 | J13: =+F13+E13-D13 -> 125642935.2 | K13: 0.76 | L13: Existencia de bienes en el almacén | Q13: 1000 | R13: Otros | S13: 1 | T13: 648495421 | U13: 631792122.2 | V13: 602130852.9 | W13: 13456917.79 | X13: 615587770.7 | Y13: 602130852.9 | Z13: 615587770.7
K14: 0.24 | L14: Recursos centralizados | Q14: 2000 | R14: Economías en procesos de adquisición | S14: 2 | T14: 138843481 | U14: 163603502.2 | V14: 144164281 | W14: 14144775.91 | X14: 158309056.9 | Y14: 144164281 | Z14: 158309056.9
Q15: 2000 | R15: Existencia de bienes en el almacén | S15: 3 | T15: 531157482 | U15: 594852398.7 | V15: 560242001.4 | W15: 28946503.32 | X15: 584875390 | Y15: 560242001.4 | Z15: 589188504.7
B16: 3000 | C16: 531157482 | D16: 594852398.7 | E16: 572576684.6 | F16: 15361989.84 | G16: 57938674.45 | H16: 572576684.6 | I16: 587938674.5 | J16: =+F16+E16-D16 -> -6913724.22 | K16: 0.15 | L16: Economías en procesos de contratación | Q16: 2000 | R16: Bienes no requeridos | S16: 4 | T16: 262800000 | U16: 265814128 | V16: 237351092.3 | W16: 22337659.35 | X16: 259688751.6 | Y16: 237351092.3 | Z16: 259688751.6
K17: 0.85 | L17: No se requirieron los servicios programados | Q17: 2000 | R17: Recursos centralizados | S17: 5
Q18: 2000 | R18: Licitación o Invitación Restringida desierta | S18: 6
B19: 4000 | C19: 262800000 | D19: 265814128 | E19: 237351092.3 | F19: 22290942.13 | G19: 259642034.4 | H19: 226427659.4 | I19: =+E19+F19 -> 259642034.4 | J19: =+F19+E19-D19 -> -6172093.61 | K19: 1 | L19: Otros | Q19: 2000 | R19: Otros | S19: 7 | T19: 23671762 | U19: 1245154.94 | V19: 0 | W19: 0 | X19: 0 | Y19: 0 | Z19: 0
Q20: 3000 | R20: Economías en procesos de contratación
Q21: 3000 | R21: No se requirieron los servicios programados
B22: 5000 | C22: 0 | D22: 0 | E22: 0 | F22: 0 | G22: 0 | H22: 0 | I22: =+E22+F22 -> 0 | J22: =+F22+E22-D22 -> 0 | K22: 0 | Q22: 3000 | R22: Licitación o Invitación Restringida desierta
Q23: 3000 | R23: Otros
Q24: 4000 | R24: No fueron cobradas las ayudas
B25: 6000 | C25: 0 | D25: 0 | E25: 0 | F25: 0 | G25: 0 | H25: 0 | I25: =+E25+F25 -> 0 | J25: =+F25+E25-D25 -> 0 | K25: 0 | Q25: 4000 | R25: Las reglas de operación no salieron en tiempo
Q26: 4000 | R26: El número de beneficiarios inscritos fue menor al programado
Q27: 4000 | R27: El programa social se canceló
B28: 7000 | C28: 23671762 | D28: 1245154.94 | E28: 0 | F28: 0 | G28: 0 | H28: 0 | I28: =+E28+F28 -> 0 | J28: =+F28+E28-D28 -> -1245154.94 | K28: 1 | L28: Otros | Q28: 4000 | R28: Otros
Q29: 5000 | R29: Existencia de bienes en el almacén
Q30: 5000 | R30: Bienes no requeridos
B31: 8000 | C31: 0 | D31: 0 | E31: 0 | F31: 0 | G31: 0 | H31: 0 | I31: 0 | J31: =+F31+E31-D31 -> 0 | K31: 0 | Q31: 5000 | R31: Licitación o Invitación Restringida desierta
Q32: 5000 | R32: Economías en procesos de adquisición
B33: 9000 | C33: 0 | D33: 0 | E33: 0 | F33: 0 | G33: 0 | H33: 0 | I33: =+E33+F33 -> 0 | J33: =+F33+E33-D33 -> 0 | K33: 0 | Q33: 5000 | R33: Otros
Q34: 6000 | R34: Licitación Desierta
Q35: 6000 | R35: Cancelación de obra por temas legales o sociales
B36: TOTAL GASTO DE CAPITAL | C36: =+SUM(C37:C62) -> 921454018 | D36: =+SUM(D37:D62) -> 888653447.6 | E36: 618133033.5 | F36: 263207724.4 | G36: 880929645.8 | H36: 618133033.5 | I36: 880929645.8 | J36: =I36-D36 -> -7723801.79 | Q36: 6000 | R36: Otros
B37: 1000 | C37: 384259812 | D37: 402454432 | E37: 398464258.5 | G37: 398464258.5 | H37: 398464258.5 | I37: =+E37+F37 -> 398464258.5 | J37: =+F37+E37-D37 -> -3990173.52 | K37: 1 | L37: Otros | Q37: 7000 | R37: Los recursos se trasladaron a otros capítulos con la finalidad de fortalecer las políticas públicas
Q38: 7000 | R38: No se presento ninguna contingencia socioeconómica | S38: 2 | T38: 921454018 | U38: 888653447.6 | V38: 618133033.5 | W38: 267193634.3 | X38: 885326667.8 | Y38: 618133033.5 | Z38: 885326667.8
Q39: 7000 | R39: Otros | S39: 1 | T39: 384259812 | U39: 402454432 | V39: 398464258.5 | W39: 3985909.9 | X39: 402450168.4 | Y39: 398464258.5 | Z39: 402450168.4
B40: 2000 | C40: 0 | D40: 104472126.7 | E40: 27336613.03 | F40: 74727538.09 | G40: 101653039 | H40: 27336613.03 | I40: 101653039 | J40: =+F40+E40-D40 -> -2407975.59 | K40: 1 | L40: Otros | Q40: 8000 | R40: Los recursos se verán reflejados en el pasivo circulante | S40: 2 | T40: 0 | U40: 104472126.7 | V40: 27336613.03 | W40: 74727538.09 | X40: 102064151.1 | Y40: 27336613.03 | Z40: 102064151.1
Q41: 8000 | R41: Otros | S41: 3 | T41: 10926622 | U41: 30524212.89 | V41: 26162941.75 | W41: 3916998.74 | X41: 30079940.49 | Y41: 26162941.75 | Z41: 30079940.49
Q42: 9000 | R42: Incumplimiento de los contratos derivados de la emisión de certificados bursátiles por parte del GCDMX en el mercado de valores. | S42: 4
B43: 3000 | C43: 10926622 | D43: 30524212.89 | E43: 26162941.75 | F43: 3916998.74 | G43: 30079940.49 | H43: 26162941.75 | I43: =+E43+F43 -> 30079940.49 | J43: =+F43+E43-D43 -> -444272.4 | K43: 1 | L43: No se requirieron los servicios programados | Q43: 9000 | R43: No se adquirieron insumos | S43: 5 | T43: 16560000 | U43: 18055667.42 | V43: 17449745.46 | W43: 604399.58 | X43: 18054145.04 | Y43: 17449745.46 | Z43: 18054145.04
Q44: 9000 | R44: No se realizaron proyectos, acciones o programas públicos | S44: 6 | T44: 509707584 | U44: 333147008.6 | V44: 148719474.8 | W44: 183958788 | X44: 332678262.8 | Y44: 148719474.8 | Z44: 332678262.8
Q45: 9000 | R45: Otros | S45: Total general | T45: 2526422164 | U45: 2545960754 | V45: 2162021261 | W45: 346079490.7 | X45: 2503787637 | Y45: 2162021261 | Z45: 2508100752
B46: 4000 | C46: 0 | D46: 0 | E46: 0 | F46: 0 | G46: 0 | H46: 0 | I46: =+E46+F46 -> 0 | J46: =+F46+E46-D46 -> 0 | K46: 0
B49: 5000 | C49: 16560000 | D49: 18055667.42 | E49: 17449745.46 | F49: 604399.58 | G49: 18054145.04 | H49: 17449745.46 | I49: =+E49+F49 -> 18054145.04 | J49: =+F49+E49-D49 -> -1522.38 | K49: 1 | L49: Economías en procesos de adquisición
B52: 6000 | C52: 509707584 | D52: 333147008.6 | E52: 148719474.8 | F52: 183958788 | G52: 332678262.8 | H52: 148719474.8 | I52: =+E52+F52 -> 332678262.8 | J52: =+F52+E52-D52 -> -468745.77 | K52: 1 | L52: Otros
B55: 7000 | C55: 0 | D55: 0 | E55: 0 | F55: 0 | G55: 0 | H55: 0 | I55: =+E55+F55 -> 0 | J55: =+F55+E55-D55 -> 0 | K55: 0
B58: 8000 | C58: 0 | D58: 0 | E58: 0 | F58: 0 | G58: 0 | H58: 0 | I58: 0 | J58: 0 | K58: 0
B60: 9000 | C60: 0 | D60: 0 | E60: 0 | F60: 0 | G60: 0 | H60: 0 | I60: =+E60+F60 -> 0 | J60: =+F60+E60-D60 -> 0 | K60: 0
B63: TOTAL URG | C63: =+C36+C9 -> 2526422164 | D63: 2545960754 | E63: 2174355944 | F63: 458567383.5 | G63: 1971574835 | H63: 2163432511 | I63: 2501938276 | J63: 86551462.07

Sheet EPC
B2: EPC EVOLUCIÓN PRESUPUESTAL DE PARTIDAS CENTRALIZADAS O CONSOLIDADAS
B4: Unidad Responsable de Gasto: | E4: 02CD14 ALCALDÍA TLALPAN
B5: Período: | E5: ENERO - DICIEMBRE 2021
B7: PARTIDA ESPECÍFICA | C7: PRESUPUESTO (Pesos con dos decimales) | J7: VARIACIÓN | K7: % AVANCE | L7: A) EXPLICACIÓN A LAS VARIACIONES DEL SALDO COMPROMETIDO Y EJERCIDO RESPECTO AL PRESUPUESTO MODIFICADO AL PERIODO
C8: APROBADO | D8: MODIFICADO | E8: EJERCIDO | F8: SALDO DEL COMPROMISO | G8: DEVENGADO | H8: PAGADO | I8: EJERCIDO + COMPROMETIDO | J8: (SALDO DEL COMPROMISO + EJERCIDO)-MODIFICADO
Q9: La unidad determinó un mayor presupuesto aprobado, derivado del comportamiento en ejercicios anteriores
Q10: Los recursos se erogarán en pasivo circulante
Q11: No se realizó un proceso de consolidación para la compra de bienes informáticos
Q12: Otros

Sheet PPI
B2: PPI PROGRAMAS Y PROYECTOS DE INVERSIÓN
B4: Unidad Responsable de Gasto: | D4: 02CD14 ALCALDÍA TLALPAN
B5: Período: | D5: ENERO - DICIEMBRE 2021
B7: CLAVE PROYECTO DE INVERSIÓN | C7: DENOMINACIÓN DEL PROYECTO DE INVERSIÓN | D7: AVANCE % | E7: PRESUPUESTO (Pesos con dos decimales) | L7: DESCRIPCION DE ACCIONES REALIZADAS
E8: APROBADO | F8: MODIFICADO | G8: EJERCIDO | H8: SALDO DEL COMPROMISO | I8: DEVENGADO | J8: PAGADO | K8: EJERCIDO + COMPROMETIDO
B9: A21NR0045 | C9: Adquisición de material informático para el fortalecimiento a la infraestructura de Equipo de Cómputo y Comunicaciones de la Alcaldìa. | D9: 1 | E9: 16560000 | F9: 15800125.2 | G9: 15198250.4 | H9: 600352.42 | I9: 15798602.82 | J9: 15198250.4 | K9: 15798602.82 | L9: Meta 1: 503 (EIN) Adquisicion de (120) impresoras con resolución de 1200x1200 ppm, (20) multifuncionales con resolucion de 1200x1200 ppm,(1) Plotter resolucion 2400 x 1200 dpi, (20) scaners de 1200 dpi, (15) pc de escritorio con 1 tb de disco duro 16 GB de ram, (320) pc de escritorio con 1 tb de disco duro 8 gb ram, (5) licencias Adobe Creative Cloud, (1) Advanced Gateway Security Suite Bundle for nsa 3600 (3 años), (1) Comprensive anti-spam service for nsa 3600 (3 años) ; Meta 2: 650 (EEL) (650) No break de 650 VA.
B10: A21NR0187 | C10: Adquisición de Equipo Fotográfico, Grabación, Video y Accesorios para la Transmision en Vivo de la Alcaldía Tlalpan y Sesiones de Concejo. | D10: 1 | E10: 0 | F10: 67462.82 | G10: 67462.82 | H10: 0 | I10: 67462.82 | J10: 67462.82 | K10: 67462.82 | L10: Meta 1: 4(EAV) Adquisición de (1) Video Cámara Full HD para transmisiones en vivo y grabaciones de video con sensor CMDS 1920 x 1080 de 1/2.82" que captura video a varias velocidades de cuadro hasta 59.94p, incluido con modo de 24P para una sensación más cinematográfica. El Lente con zoom óptico Canon 20 x HD tiene un rango de zoom equivalente a 35 mm. de 26.8 a 576 mm. y cuenta con un iris de 88 hojas para representar los reflejos de una manera más natural.,Adquisición de (1) Sistema de Consola de audio con mezclador de sonido profesional, interfaz de 4 canales USB, bluetooth MP3, entrada de computadora, 48V, potencia fantasma, estereo, DI, estudio, transmisión FX, procesador DSP de 16 bits, Adquisición de (1) sistema de micrófono inalámbrico de 48 canales UHR con un receptor, Adquisición de (1) tripie 177 cm portable de aluminio.
B11: A21NR0207 | C11: Adquisición de material para el fortalecimiento de la atención en Consultorios Médicos y/o jornada de salud | D11: 0 | E11: 0 | F11: 144292.4 | G11: 144292.4 | H11: 0 | I11: 144292.4 | J11: 144292.4 | K11: 144292.4 | L11: Al período no se refleja avance en las acciones en los proyectos para este ejercicio 2021, debido a los tiempos de los procesos licitorios; por elque , los trabajos realizados como ubicaciones se reportará a partir de los informes subsecuentes
B12: A21NR0208 | C12: Adquisición de mobiliario para el equipamiento del Centro de Atención Integral para Mujeres Víctimas de Violencia de Género "Justa Hernández Farfán" | D12: 0 | E12: 0 | F12: 143811 | G12: 143811 | H12: 0 | I12: 143811 | J12: 143811 | K12: 143811 | L12: Al período no se refleja avance en las acciones en los proyectos para este ejercicio 2021, debido a los tiempos de los procesos licitorios; por elque , los trabajos realizados como ubicaciones se reportará a partir de los informes subsecuentes
B13: A21NR0227 | C13: Adquisicion de tanques de oxigeno para el fortalecimiento de la atencion a la poblacion tlalpense | D13: 0 | E13: 0 | F13: 299976 | G13: 299976 | H13: 0 | I13: 299976 | J13: 299976 | K13: 299976 | L13: Meta 1: 100 herramientas, 10 motosierras MS-210, espada de 18", cilindrada de 35.2 cm3, potencia 2.1 H.P., peso 4.4 kg. 10 Motosierras MS-382, espada de 25", cilindrada de 72.2 cm3, potencia 5.2 H.P., peso 6.2 kg. 10 Motosierras MS-462, espada de 30", cilindrada de 72.2 cm3, potencia 5.9 H.P., peso 6.4 kg. 10 Motosierras telescópica (extención) modelo HT-101. 60 Desmalezadora modelo FS-460, cilindrada 45.6 cm3, potencia 2.95 H.P., peso 8.5 kg, con aditamentos de corte y cabezal autocut.
B14: A21NR0339 | C14: Adquisición de Herramientas (Equipo de corte y poda de árboles) | D14: 0.8 | E14: 0 | F14: 1600000 | G14: 1595952.84 | H14: 4047.16 | I14: 1600000 | J14: 1595952.84 | K14: 1600000 | L14: META 1: 1 (ECO)Adquisición de (1) equipo de receptor de alerta sisimica, receptor de siete canales del NOAA, con frecuencias de 162.400 MHz a 162.550 MHz, 30 km de alcance para su recepción en áreas abiertas; Sensibilidad de 0.25 micro volts; Sonido oficial de alerta sismica incluido; Salida de relevador para activador de alerta sismica; caja ip 65; Boton de simulacro, Boton de sirena; Boton de incendio;facil de programar con iconos indicados en el display.
B15: A21NR0350 | C15: Adquisición de Equipo de Seguridad, (Receptor de Alerta Sísmica) | D15: 0 | E15: 0 | F15: 0 | G15: 0 | H15: 0 | I15: 0 | J15: 0 | K15: 0 | L15: Al período no se refleja avance en las acciones en los proyectos para este ejercicio 2021, debido a los tiempos de los procesos licitorios; por elque , los trabajos realizados como ubicaciones se reportará a partir de los informes subsecuentes
B16: O21NR0058 | C16: 'Obras en el Marco del Presupuesto Participativo | D16: 0 | E16: 90024788 | F16: 1409194.49 | G16: 0 | H16: 940473.24 | I16: 940473.24 | J16: 0 | K16: 940473.24 | L16: 'En Proceso de Licitación y Contratación
B17: O21NR0076 | C17: Obras en el Marco del Presupuesto Participativo 2021 | D17: 0 | E17: 87710757 | F17: 0 | G17: 0 | H17: 0 | I17: 0 | J17: 0 | K17: 0 | L17: 'En Proceso de Licitación y Contratación
B18: O21NR0079 | C18: Construcción y Rehabilitación de Resumideros | D18: 0.83 | E18: 24992990 | F18: 17933401.45 | G18: 17111498.35 | H18: 821903.1 | I18: 17933401.45 | J18: 17111498.35 | K18: 17933401.45 | L18: Con el beneficio Social de contar con estructuras para la infiltración de agua pluvial al subsuelo, y de esta forma mitigar el riesgo de encharcamientos e inundaciones en las partes bajas de esta Alcaldía.Con lo que se aprovechará la alta permeabilidad de la zona sur poniente de esta demarcación, permitiendo además apoyar en la recarga el acuifero de la ciudad de México.Se realizaron 10 piezas en el proyecto denominado Construcción y Rehabilitación de Resumideros, con trabajos para la construcción de Resumideros en las siguientes colonias: Cultura Maya, Pueblo San Andrés Totoltepec, Pedregal de San Nicolas 2a. Sección, Pedregal de San Nicolás 3a sección, Torres de Padierna, Miguel Hidalgo 3a. Sección, Héroes de Padierna, Lomas de Padierna, Pedregal de San Nicolás 1a. Sección. Trabajos realizados en cada uno de los frentes: Trazo y nivelación,corte y/o demolición de la carpeta asfáltica,excavación de la zanja hasta la profundidad que se encuentre la grieta, proteccion de las paredes de la zanja, extraccion del agua de la zanja, construcción de coladeras(todos los tipos), bocas de tormenta, construcción de muros de mpostería,suministro y colocación de acero de refuerzo, cimbra para losa tapa de concreto armado, colado de concreto, relleno de las zanjas con material de banco, compactación de terreno, reconstrucción de pavimento, decimbrado de losa tapa, acarreos, limpieza de rejillas y estructuras que contengan azolve, retiro de material del sitio y limpieza final. Por otro lado; Se dejaron de atender, las colonias: Pueblo San Miguel Topilejo, Pedregal Santa Úrsula Xitla, Pedregal de San Nicolás 4a sección, Lomas Hidalgo, Popular Santa Teresa, Miguel Hidalgo 4a. Seccion, Miguel Hidalgo 2a. Seccion, debido a que los recursos se reorientaron a los capítulos: 2000, 3000 Y 4000 y así poder cubrir las necesidades prioritarias de la Alcaldía; razón por la cual no se pudo completar la meta programada.
B19: O21NR0090 | C19: Mantenimiento, Conservación y Rehabilitación en Vialidades Secundarias. | D19: 1 | E19: 46295700 | F19: 13308786.89 | G19: 12584049.67 | H19: 724737.22 | I19: 13308786.89 | J19: 12584049.67 | K19: 13308786.89 | L19: Como beneficio Social en la Alcaldía Tlalpan, se disminiyeron los tiempos de traslado. los daños a vehículos particulares y de servicio público, se corrigieron las fisuras, grietas y hundimientos, que se presentan en la carpeta asfáltica y calles con empedrado en algunas colonias, las cuales tendrán la capacidad de soportar las cargas del transporte pesado, reduciendo las emisiones que dañan la salud de la población. Se realizaron 20,785.39 m2 en el proyecto denominado: Mantenimiento, Conservación y Rehabilitación en Vialidades Secundarias en las colonias: San Andrés Totoltepec, Héroes de Padierna, Miguel Hidalgo. Trabajos realizados en cada uno de los frentes: trazo y nivelación, fresado, brocales, barrido de la base para aplicar el riego de liga, carpeta de mezcla asfáltica, etc.
B20: O21NR0094 | C20: Construcción y Ampliación de Infraestructura de Agua Potable | D20: 1 | E20: 315230 | F20: 315077.04 | G20: 315077.04 | H20: 0 | I20: 315077.04 | J20: 315077.04 | K20: 315077.04 | L20: La Alcaldía de Tlalpan garantiza el mantenimiento y la operación del sistema en obras hidráulicas, con la calidad necesaria hacia la población de la Ciudad de México, esta acción no distingue género, ya que con su ejecución se benefician tanto a hombres, mujeres, niños, personas de la tercera edad y personas vulnerables, es decir los beneficios son para todos por igual. No obstante, el beneficio directo se brinda a las mujeres que en calidad de amas de casa son las que pasan la mayor parte del día en los hogares, así como los niños.Por lo que; se realizaron, 78.20 metros lineales en el proyecto denominado Construcción y Ampliación de Infraestructura de Agua Potable en el: Pueblo de San Pedro Mártir. Trabajos realizados: instalación de tuberia de P.A.D. y tomas domiciliarias
B21: O21NR0102 | C21: Conservación y Rehabilitación de Banquetas | D21: 1 | E21: 2278928 | F21: 2191965.81 | G21: 2191965.75 | H21: 0.06 | I21: 2191965.81 | J21: 2191965.75 | K21: 2191965.81 | L21: La Alcaldía Tlalpan garantizar a la población Tlalpense de una circulación cómoda, eficiente, accesible y segura a las personas que transitan en la vía pública, que priorice a los peatones, ciclistas y usuarios del transporte público, mediante el desarrollo de una red de “Calles Completas” en vialidades primarias, así como la pacificación del tránsito y ordenamiento de las calles secundarias, con mantenimiento y señalización adecuados. Con una perspectiva social del urbanismo y el medio ambiente, nuestro gobierno establecerá como fundamentales los espacios públicos como articuladores del tejido social y la equidad. Se realizaron 1,398.92 metros cuadrados en el proyecto denominado: Conservación y Rehabilitación de Banquetas en las colonias: Isidro Fabela, Miguel Hidalgo. Trabajos realizados:Trazo y nivelación, Extracción manual de tocón, Demolición por medios manuales de guarniciones y banquetas de concreto simple, preparación, conformación y compactación de subrasante para banquetas, Suministro y colocación de tepetate de 10 cm de espesor, Banqueta de 10 cm de espesor de concreto hidráulico. Acabado con volteador en las aristas de banquetas, Guarnición de concreto hidráulico, renivelación de rejillas de registro.
B22: O21NR0113 | C22: Construccion de Vialidades Secundarias | D22: 0 | E22: 3411407 | F22: 0 | G22: 0 | H22: 0 | I22: 0 | J22: 0 | K22: 0 | L22: Con la cancelación de este proyecto, se deja de garantizar a la población Tlalpense una circulación cómoda, eficiente, accesible y segura a las personas que transitan en la vía pública, que priorice a los peatones, ciclistas y usuarios del transporte público, mediante el desarrollo de una red de “Calles Completas” en vialidades primarias, así como la pacificación del tránsito y ordenamiento de las calles secundarias, con mantenimiento y señalización adecuados. Cbe señalar que los recursos se reorientan al Capítulo 2000, (Mezcla asfáltica yProductos químicos básicos.
B23: O21NR0123 | C23: Construcción y Ampliación de Banquetas | D23: 0 | E23: 635876 | F23: 0 | G23: 0 | H23: 0 | I23: 0 | J23: 0 | K23: 0 | L23: Con la cancelación de este proyecto, se deja de garantizar a la población Tlalpense de una circulación cómoda, eficiente, accesible y segura a las personas que transitan en la vía pública. Los recursos se reorientan al Capítulo 2000, (Mezcla asfáltica)
B24: O21NR0133 | C24: Colocación de luminarias | D24: 1 | E24: 1685384 | F24: 1352285.81 | G24: 467824.86 | H24: 884460.95 | I24: 1352285.81 | J24: 467824.86 | K24: 1352285.81 | L24: Contar con una buena iluminación en las calles, para contribuir y brindar mayor seguridad a las personas que transitan en ellas y así inhibir el delito,reforzando las acciones para dar mantenimiento y modernizar las luminarias en beneficio de la ciudadania.,. Se relizó la colocación de l 50 luminarias en el proyecto denominado: Colocación de luminariasen la colonia: Pueblo San Miguel Ajusco. Trabajos realziados: Trazo y nivelación; suministro y colocación de tubos y coples conduit; suministro e instalación de cable; conexiones y pruebas; instalación de lámparas; suministro e instalación de pruebas de luminarias completas; construcción de cimiento para poste; construcción de registro; suministro, instalación y pintura de postes; corte con sierra de pavimento, demolición, carga y acarreo producto de la demolición; excavación y relleno; piso de concreto hidráulico
B25: O21NR0143 | C25: Conservación y Rehabilitación de Espacios Públicos | D25: 0.75 | E25: 20005525 | F25: 5313444.42 | G25: 1609969.23 | H25: 3703475.19 | I25: 5313444.42 | J25: 1609969.23 | K25: 5313444.42 | L25: Dotar a la población de calles seguras para su libre tránsito, a través del mantenimiento, conservación y rehabilitación de banquetas, garantizando su derecho a más y mejores servicios, coadyuvando a la disminución de accidentes peatonales.Se realizó la conservación y rehabilitación de 3 Espacios Públicos en;1.-Estabilización de talud en la colonia San Nicolás ll, con una superficie de 108.24 m3, 2.-Estabilización de talud en la colonia Cantera Puente de Piedra y Ampliación Isidro Fabela,con una superficie de 20.00 m3, 3.-Estabilización de talud en la colonia Comuneros de Santa Úrsula, con una superficie de 130.00 m3. Trabajos realizados en cada frente: Trazo y nivelación, excavación, cimbra, compacatación del terreno, filtros para drenes,trabajos con plantilla de concreto hidrahulico y trabajos de acero, así como el barrido y la limpieza del área. Se dejó de atender el frente : Construcción del Arco de Identidad del Pueblo Magdalena Petlacalco, por problemas de oposición vecinal.
B26: O21NR0152 | C26: Conservación y Rehabilitación de Espacios Deportivos | D26: 1 | E26: 37132990 | F26: 12799997.8 | G26: 12388935.44 | H26: 411062.36 | I26: 12799997.8 | J26: 12388935.44 | K26: 12799997.8 | L26: Promover en la población en general , la práctica de las actividades físicas, recreativas y predeportivas en los espacios públicos de su comunidad (parques, jardines, canchas deportivas, centros de salud comunitarios, gimnasios alaire libre), orientadas al fomento del cuidado de la salud física y la integración social, brindandocapacitación de promotoras/es de actividad física y recreación para su desarrollo. Se relizaron 4 inmuebles en el proyecto denominado: Conservación y Rehabilitación de Espacios Deportivos en las siguientes ubicaciones: 1.-Deportivo CEFORMA, Col. Fuentes Brotantes, U.H. Fuentes Brotantes, Trabajos realizados: Rehabilitación de baños y exteriores, trabajos de iluminación interior y exterior, rehabilitación y cambio depisos, trabajos de herrería y para evitar acceso a palomas, aplicación de pintura en interiores y exteriores, 2.-Deportivo Parres el Guarda, Col. Parres el Guarda, Trabajos realizados: rehabilitación cancha de furbol soccer, , malla ciclónica e instalación eléctrica, 3.-Deportivo San Andrés Totoltepec, Pueblo San Andrés Totoltepec, Trabajos realizados: techumbre en alberca y panel solar, 4.-Deportivo Guayacanes, Col. Bosques del Pedregal, Trabajos realizados: Techumbre,estructura metálica,alumbrado publico,mantenimiento al area de juegos infantiles, aplicación de pintura,reconstrucción de muro.
B27: O21NR0161 | C27: Construcción y Adecuación de Espacios Deportivos | D27: 0 | E27: 21291768 | F27: 0 | G27: 0 | H27: 0 | I27: 0 | J27: 0 | K27: 0 | L27: Con la cancelación de este proyecto, se deja depromover a la población en general , la práctica de las actividades físicas, recreativas y predeportivas en los espacios públicos de su comunidad (parques, jardines, canchas deportivas, centros de salud comunitarios, gimnasios alaire libre), orientadas al fomento del cuidado de la salud física y la integración social, brindandocapacitación de promotoras/es de actividad física y recreación para su desarrollo. Los recursos.se transfirieron a los capitulos 2000, 3000 y 4,000 del presupuesto participativo, con el fin de cumplir con prioridades de la Alcaldía de Tlalpan
B28: O21NR0170 | C28: Construir y adecuar Planteles Educativos del Nivel Básico | D28: 1 | E28: 26272990 | F28: 26272989.94 | G28: 21374184.17 | H28: 4898805.77 | I28: 26272989.94 | J28: 21374184.17 | K28: 26272989.94 | L28: Orientar el desarrollo a través de la construcción, ampliación y mejoramiento de la infraestructura pública y educativa hacia una ciudad compacta, dinámica y equitativa, que potencie las vocaciones productivas y que fomente la inversión, para alcanzar un patrón de ocupación eficiente que induzca la redistribución de la población a zonas que combinen los diversos usos del suelo, mejore la infraestructura pública y la construcción de construcción y mejoramiento de infraestructura educativa, Se han realizaron 15 inmuebles en el proyecto denominado: Construir y Adecuar Planteles Educativos del Nivel Básico en los siguientes planteles educativos: Jardín de Niños: 1.-Itzcalli, ubicada en calle Guadalajara s/n, Col. Miguel Hidalgo 1a sección, Trabajos realizados: construcción de techumbre, 2.-Kantuni, ubicada en calle lmani y Dzemul, S/N, Col. Pedregal de San Nicolás 4a Seccion, Trabajos realizados: construcción de techumbre, 3.-Año Internacional del Niño, ubicada en calle Hacienda San Nicolás Tolentino s/n, Col. Prado Coapa 3ra. Sección, Trabajos realizados: restructuración de pasillos, aplicación de pintura e impermeabilización, 4.-Año de la República Federal, ubicada en calle María Hernández Zarco y Roque Estrada, Col. Fraccionamiento Belisario Domínguez, Trabajos realizados: construcción de techumbre, 5.-Ana María Navarro Becerra, ubiada en calle Nahoas esquina Otomies S/N, Col. Tlalcoligía,Trabajos realziados: construcción de sanitarios e impermeabilización, 6.-Tzinti, ubicada en calle Cuauhtemoc S/N, Pueblo Quieto, Trabajos realizados: construcción de techumbre.Escuelas Primarias: 7-Luis de la Brena, ubicada en calle Reforma No. 1, Pueblo San Miguel Xicalco, Trabajos
E29: 0 | F29: 0 | G29: 0 | H29: 0 | I29: 0 | J29: 0 | K29: 0 | L29: realizados: reconstrucción de edificio de aulas, TIENE UN AVANCE FISICO DEL 50% CON UN CONVENIO DE AMPLIACIÓN DE TIEMPO, 8.-Lázaro Cárdenas, ubicada en Club Deportivo Universidad No. 300, Col. Fraccionamiento Villa Lázaro Cárdenas,'Trabajos realizados:construcción de techumbre, 9-Niger, ubicadad en Calle Torreón S/N, Manzana 7, Unidad Habitacional Narciso Mendoza Super Manzana 7, Trabajos realizados: construcción de techumbre, 10.-De Participáción Social No. 5, ubicada en Avenida San Fernando No. 12, Col. Centro de Tlalpan, Trabajos realizados: sustitución de cancelería y puertas, aplicación de pintura, construcción de consultorio médico,11.-Somalia, ubicada en Avenida el Fortín # 46 y Andador 9 No. 3, Unidad Habitacional Narciso Mendoza Supermanzana 3, Trabajos realizados: construcción de techumbre y aplicación de pintura, 12.-Vidal Alcocer, ubicada en Calle Magisterio Nacional No. 102, Col. Centro de Tlalpan, Río Pánuco, Col. Toriello Guerra,Trabajos realizados: construcción de techumbre 13.-Río Panuco, ubicada en calle Puente de Piedra No. 72, Col. Toriello Guerra, Trabajos realizados: construcción de techumbre.Escuelas Secundarias: 14.-Técnica No. 96, ubicada en calle Guadalupe Victoria s/n, Pueblo Santo Tomás Ajusco, Trabajos realziados: construcción de rampas y loseta.15.-No. 155, ubicada en Callejón Zapote No. 148, Col. Isidro Fabela,Trabajos realizados: construcción de techumbre, 16.-No. 173, ubicada en calle Querétaro s/n, Col. Miguel Hidalgo 1a sección, Trabajos realizados: construcción de bebederos y pisos de loseta.
B30: O21NR0177 | C30: Mantener y Rehabilitar los Planteles Educativos del Nivel Básico | D30: 0.83 | E30: 32812990 | F30: 24911894.3 | G30: 24839737.09 | H30: 72157.21 | I30: 24911894.3 | J30: 24839737.09 | K30: 24911894.3 | L30: Orientar el desarrollo a través de la construcción, ampliación y mejoramiento de la infraestructura pública y educativa hacia una ciudad compacta, dinámica y equitativa, que potencie las vocaciones productivas y que fomente la inversión, para alcanzar un patrón de ocupación eficiente que induzca la redistribución de la población a zonas que combinen los diversos usos del suelo, mejore la infraestructura pública y la construcción de construcción y mejoramiento de infraestructura educativa, Se realizaron 33 inmuebles para los trabajos referentes al proyecto denominado: Mantener y Rehabilitar los Planteles Educativos del Nivel Básico en: Jardines de Niños: 1.-Fidencio Soria Barajas, lote 326, mz 3, Fortín y Farol U.H. Narciso Mendoza SP.M. 3, Col. Villa Coapa, Trabajos realizados: Impermeabilización, aplicación de pintura, 2.-Salvador M. Lima, Avenida Acoxpa andador 68 mz. 6, Unidad Habitacional Narciso Mendoza SPM. 6, Col. Villa Coapa,Trabajos realizados: Impermeabilización, aplicación de pintura, 3.-Cámara Junior, San Juan Bosco No.1, Col. San Lorenzo Huipulco, 4.-Xochicalpilli, Av. Altillos s/n, Unidad Habitacional Narciso Mendoza Supermanzana 1,Trabajos realizados: Impermeabilización, aplicación de pintura, 5.-Chimalcoyotl,Cristobal Colón no. 12, Colonia Chimalcoyotl,Trabajos realizados: Impermeabilización, aplicación de pintura, 6.-Miguel Hidalgo, Avenida las Torres y Jesús Lecuona, Col. Miguel Hidalgo 2a Sección, Trabajos realizados:Sustitución de ciclopista, aplicación de pintura, impermeabilizante, mantenimiento a
B31: O21NR0184 | C31: Construcción, Ampliación de Infraestructura Social | D31: 0.13 | E31: 29385693 | F31: 1462233.86 | G31: 1429523.06 | H31: 32710.8 | I31: 1462233.86 | J31: 1429523.06 | K31: 1462233.86 | L31: Se realizó 1 inmueble en el proyecto denominado: Construcción, Ampliación de Infraestructura Social 1.-Construcción de la 2da. etapa del Auditorio Comunal de la Magdalena Petlacalco, Trabajos realizados: albañilería,azotea,instalación sanitaria,instalacion hidráulica,instalación eléctrica,herrería, carpintería,acabados. Se dejaron de atender 7 frentes : 1.-Construcción de Centro comunitario en la colonia Paraje Tecorral,2.-Construcción de la Casa del Adulto Mayor en el Pueblo San Miguel Ajusco,3.-Centro Integral de Esparcimiento Lúdico y Orientación en la colonia Isidro Fabela, 4.-Conclución de techo de la cancha de usos múltiples en la colonia Diamante,5.-Proyección y Construcción del CAO de la colonia Pedregal de San Nicolás 3ra. Sección,6.-Ampliación del CEDIC Cultura Maya,7.-Centro Comunitario Santo Tomás Ajusco, los recursos se reorientaron a los capitulo 2000, 3000 y 4000.
B32: O21NR0210 | C32: Construcción y Ampliación de Edificios Públicos | D32: 0.5 | E32: 3583376 | F32: 2499307.52 | G32: 293937.81 | H32: 2205369.71 | I32: 2499307.52 | J32: 293937.81 | K32: 2499307.52 | L32: Se realizó lleva el avance Físico del 50% en el inmueble : 1.-Construcción 2do Piso de la Subdelegación de Santo Tomás Ajusco Trabajos realziados: trazo y nivelación, preliminares, elementos de concreto reforzado, albañilerías, habilitado de cimbra y acero de refuerzo Se dejan de atender los siguientes frentes: 1.-Ampliación de la Sede del Consejo Comunitario en Pueblo San Andrés Totoltepec,2.-Construcción a la 2a etapa del Campamento Limantitla,3.-Construcción de Arco de identidad Magdalena Petlacalco., los recursos se reorientaron a los capitulos 2000, 3000 y 4000
B33: O21NR0211 | C33: Construcción y/o Adecuación de Infraestructura Cultural | D33: 0 | E33: 6283540 | F33: 0 | G33: 0 | H33: 0 | I33: 0 | J33: 0 | K33: 0 | L33: Cancelación del presente proyecto por un importe de $6,283,540.00, por instrucciones de la Dirección de Recursos Financieros y Presupuestales, los recursos se reorientan al Capítulo 2000 a las partidas: 2461 Material eléctrico y electrónico, 2471 Artículos metálicos para la construcción, 2481 Materiales complementarios, 2491 Otros materiales y artículos de construcción y reparación, 2541 Materiales, accesorios y suministro médico, 2561 Fibras sintéticas, hules, plásticos y derivados, 2911 Herramientas menores, por un importe de $6,119,000.00 y al capítulo 3000 partida. 3391 Servicios profesionales, científicos, técnicos integrales y otros, por un importe de $164,540.00 y no como se mando en la versión anterior.
B34: O21NR0212 | C34: Mantenimiento, Conservación y Rehabilitación a Centros de Desarrollo Social | D34: 1 | E34: 341768 | F34: 341767.99 | G34: 341767.98 | H34: 0.01 | I34: 341767.99 | J34: 341767.98 | K34: 341767.99 | L34: Se realizó 1 inmueble con el proyecto denominado: Mantenimiento, Conservación y Rehabilitación a Centros de Desarrollo Social en : 1.-Centro de Servicios de Atención Ciudadana, ubicado adentro del Deportivo Vivanco ubicado en Calle Moneda 64, Tlalpan Centro I. Trabajos realizados: trabajos preliminares, albañileria, acabados, impermeabilización.
B35: O21NR0213 | C35: Mantenimiento y Rehabilitación a Mercados | D35: 0 | E35: 6082990 | F35: 15899716.6 | G35: 12703322.7 | H35: 3196369.38 | I35: 15899692.08 | J35: 12703322.7 | K35: 15899692.08 | L35: Se relizaron los trabajos en los siguientes frentes: 1.-Mercado Flores San Fernando, ubicado en Calzada de Tlalpan y avenida San Fernando, Colonia Barrio de Niño Jesús, Trabajos realizados: instalación eléctrica interna, módulos, instalación eléctrica exterior, 2.-Mercado Fuentes Brotantes, ubicado en Interior del Parque Nacional Fuentes Brotantes, colonia Fuentes Brotantes, Trabajos realizados: instalación eléctrica, sistema de drenaje, ampliación de baños, áreas verdes y juegos, 3.-Mercado Villa Coapa, ubicado en Avenida canal de Miramontes s/n entre avenida Acoxpa y Caporal, colonia Villa Coapa, Trabajos realizados: sustitución de luminaria led, alimentadores a locales, alimentador a hidroneumático, alumbrado exterior, alimentadores en baja tensión CCTV y telefonía, extracción de aire, 4.-Mercado Plaza Mexicana del Sur, ubicado en Avenida Acoxpa, entre Calzada de Tlalpan y Viaducto Tlalpan, Col. San Lorenzo Huipulco, Trabajos realizados: instalación eléctrica
B36: O21NR0214 | C36: Mantenimiento, Conservación y Rehabilitación a Infraestructura pública. | D36: 0 | E36: 2382990 | F36: 1496925.05 | G36: 650888.05 | H36: 846037 | I36: 1496925.05 | J36: 650888.05 | K36: 1496925.05 | L36: Se realizó 2 inmubles en: 1.- Panteón de San Agustin Pueblo San Andrés Totoltepec, ubicado en Km 23.5 Carretera Federal a Cuernavaca, Pueblo San Andrés Totoltepec, Trabajos realizados: Trabajos generales, albañilería y acabados en general, 2.-2da. Etapa al Campamento Limantitla, Col.Tlalpan Centro, Trabajos realizados:trazo y nivelación, albañilería, estructura de concreto reforzado, instalaciones eléctricas, instalaciones hidráulicas, instalaciones sanitarias, acabados, cancelerías
B37: O21NR0215 | C37: Rehabilitación a la Red de Agua Potable | D37: 1 | E37: 15381690 | F37: 14949521.79 | G37: 13751712.05 | H37: 1197809.74 | I37: 14949521.79 | J37: 13751712.05 | K37: 14949521.79 | L37: Se realizaron 3,429.95 metros Rehabilitación a la Red de Agua Potable en las siguientes colonias: 1.-Tlalmille, 2.-Cruz del Farol, 3.-Los encinos, 4.-Torres de Padierna, 5.-Cultura Maya, 6.-Miguel Hidalgo 3ra. Sección, 7.-Héroes de Padierna, 8.-Miguel Hidalgo 2da Sección, 9.-San Andrés Totoltepec. Trabajos realizados: Trazo y nivelación, demoliciones, excavaciones, rellenos, cambio de tubería de polietileno de alta densidad de diferentes diámetros, construcción y/o sustitución de cajas de válvulas, trabajos de bacheo y Reparación de fugas de diversos diámetros, en válvulas y tubería de diferentes materiales.
B38: O21NR0227 | C38: Construcción rehabilitacion y Proyecto ejecutivo de carcamo para la infraestructura del sistema de Drenaje | D38: 1 | E38: 21442684 | F38: 3265334.26 | G38: 1457108.67 | H38: 1808225.59 | I38: 3265334.26 | J38: 1457108.67 | K38: 3265334.26 | L38: Los recursos ejercidos refieren al Proyecto Ejecutivo de Cárcamos para la Infraestructura del Sistema de Drenaje en las colonias: 1.-Cantera Puente de Piedra, 2.-Isidro Fabela, 3.- El Zapote, 4.-Ejidos de San Pedro Mártir Trabajos realizados:levantamientos físicos de necesidades en los 3 cárcamos para rehabilitar y la construcción de 1 cárcamo nuevo, realización de memoria descriptiva,memoria de cálculo deacuerdo con los requerimientos de cada cárcamo,planos ejecutivos.
B39: O21NR0228 | C39: Construcción y Ampliación de la Infraestructura del Sistema de Drenaje | D39: 0.97 | E39: 8632990 | F39: 5633830.65 | G39: 5633830.62 | H39: 0.03 | I39: 5633830.65 | J39: 5633830.62 | K39: 5633830.65 | L39: Se realizaron 0.678 kilómetros en el proyecto denominado: Construcción y Ampliación de la Infraestructura del Sistema de Drenaje 1.-Pueblo San Andrés Totoltepec, 2.- Cultura Maya. trabajos realziados: introducción de la Red de Drenaje, tendido de tubería,relleno y compactación, bacheo, retiro de material,producto de compactación. No se cumplió con l ameta debido a que se cancelaron los siguientes frentes :1.-Miguel Hidalgo 4ta. sección, 2.-Manantial Peña Pobre, 3.- Pueblo Chimalcoyoc, debido a que los recursos se reorientaron a los capítulos: 2000, 3000 Y 4000
B40: O21NR0235 | C40: Desazolve de la Red del Sistema de Drenaje | D40: 1 | E40: 8072990 | F40: 4901270.17 | G40: 4900733.6 | H40: 536.57 | I40: 4901270.17 | J40: 4900733.6 | K40: 4901270.17 | L40: Se realizaron 4,571.07 metros en las siguientes colonias: 1.-Héroes de Padierna, 2.Cuchilla de Padierna, 3.-Torres de Padierna, 4.-Miguel Hidalgo 3a. Sección, 5.-Miguel Hidalgo 4a. Sección, 6.-Pedregal de San Nicolás 2a. Sección, 7.-Pedregal de San Nicolás 3a. Sección, 8.-Bosques del Pedregal, 9.-Cultura Maya, 10.-La Primavera, 11.-Popular Santa Teresa, 12.-Lomas de Padierna, 13.-Miguel Hidalgo 1a. Sección, 14.- Miguel Hidalgo 2a. Sección, 15.-Jardines del Ajusco Trabajos realizados: Limpieza del sistema de alcantarillado sanitario, pluvial o combinado, considerando todos sus elementos de captación como pueden ser albañales, bocas de tormenta, rejillas, coladeras, tuberías, pozos de visita, cajas rompedoras de presión, canales encofrados o canales a cielo abierto, resumideros, etc., en los cuales se llevara a cabo el retiro de todo el azolve generado por tierra y basura que fue arrastrada por las lluvias, resumideros limpieza de la grieta natural por la cual el agua se filtra hasta los mantos acuíferos, y para la red secundaria se limpiaron las tuberías y pozos de visita realizando el desazolve por medios mecánicos, con el uso de malacates y del Camión Vactor. Se dejaron de atender las siguientes colonias: 1.-Pedregal de San Nicolás 1a. Sección,2.-Pedregal de San Nicolás 4a. Sección,3.-Lomas Altas de Padierna,4.-Lomas Hidalgo,5.-San Pedro Martir,6.-Cruz del Farol,7.-Zacatón,8.-2 de Octubre,9.-San Andrés Totoltepec,10.-Pueblo de San Miguel Xicalco,11.-Pueblo San Miguel Topilejo,12.-La Lonja, 13.-Cantera Puente de Piedra, 14.-Pedregal de Santa Úrsula Xitla,15.-Talcoligía,16.-San Pedro Apostol, los recursos se reorientaron para atender presupuesto participativo de los capitulos 6000, 2000, 3000 y 4000 Sin embargo aún reduciendo los recursos se lograron optimizarlos y se superó la meta programada.
B41: O21NR0236 | C41: Rehabilitación de las Redes de Drenaje | D41: 1 | E41: 13249550 | F41: 0 | G41: 0 | H41: 0 | I41: 0 | J41: 0 | K41: 0 | L41: Cancelación del prsnte proyecto por un importe de $13,249,550.00, los recursos se transfieren a la partida 3252 (Arrendamiento de equipo de transporte destinado a servicios públicos y la operación de programas públicos), de este mismo programa presupuestario.
B42: O21NR0560 | C42: Realizar 7 Proyectos Ejecutivos para la elaboración de la construcción de los Proyectos de Obra | D42: 1 | E42: 0 | F42: 1159960.81 | G42: 1159960.81 | H42: 0 | I42: 1159960.81 | J42: 1159960.81 | K42: 1159960.81 | L42: Realizar 7 Proyectos Ejecutivos para la elaboración de la Construcción de los Proyectos de Obra para los siguientes frentes : Proyecto Ejecutivo de la Casa del adulto Mayor y construcción de Biblioteca en el Pueblo de San Miguel Ajusco, 2.Proyecto ejecutivo para la Construcción de Módulos Sanitarios en la colonia Santísima Trinidad, 3.-Proyecto Ejecutivo para la construcción del Centro de Artes y Oficios de la colonia Pedregal de San Nicolás 3ra. Sección, 4.-Proyecto Ejecutivo para la Construcción del Centro Comunitario en el Pueblo Santo Tomás Ajusco, 5.-Proyecto Ejecutivo para la construcción del 2do piso de la subdelegación del Pueblo Santo Tomás Ajusco, 6.-Proyecto Ejecutivo para la construcción del Centro de Artes y Oficios de la colonia Tecorral, 7.-Proyecto Ejecutivo para la construcción del Centro de Desarrollo Integral Comunitario en la colonia Cultura Maya. Los proyectos consisten en la elaboración de: estudio mecánica de suelos,proyecto arquitectónico,proyecto estructural con aval de DRO, proyecto de instalaciones eléctricas con aval de corresponsal,proyecto de instalaciones hidráulicas, sanitarias y pluviales con aval de corresponsal. Trabajos realizados: Proyecto arquitectónico, proyecto estructural con aval de DRO, proyecto de instalaciones eléctricas con aval de corresponsal
B43: O21NR0561 | C43: Elaboración de Proyectos Ejecutivos para Obras de Rehabilitación y Mantenimiento en la imagen Urbana dentro del perímetro de la Alcaldía de Tlalpan | D43: 0.31 | E43: 0 | F43: 409500 | G43: 409499.99 | H43: 0.01 | I43: 409500 | J43: 409499.99 | K43: 409500 | L43: Elaboración de 4 Proyectos Ejecutivos para Obras de Rehabilitación y Mantenimiento en la imagen Urbana dentro del perímetro de la Alcaldía de Tlalpan: Elaboración de los proyectos de obra para la rehabilitación y mantenimiento de las obras públicas en: 1- Arco de Identidad en el Pueblo Magdalena Petlacalco, 2.- San Nicolás II, 3.- Comuneros de Santa Ursula y 4.- Parque Morelos dentro del perímetro de la Alcaldía Tlalpan.Trabajos realziados: proyecto arquitectónico,proyecto estructural con aval de DRO,proyecto de instalaciones eléctricas con aval de corresponsal.
B44: O21NR0562 | C44: Realizar 6 Proyectos Ejecutivos para la elaboración de la Construcción de los Proyectos de Obra de Mercados Públicos | D44: 1 | E44: 0 | F44: 1457909.62 | G44: 1443014.75 | H44: 14894.87 | I44: 1457909.62 | J44: 1443014.75 | K44: 1457909.62 | L44: Realización de Proyectos Ejecutivos y Eléctricos para 6 Mercados: 1.-Proyecto Eléctrico para el Mercado Plaza Mexicana del Sur, 2.-Proyecto Eléctrico para el Mercado Flores San Fernando, 3.-Proyecto Ejecutivo para la Construcción del Mercado Topilejo Pueblo San Miguel Topilejo, 4.-Proyecto Ejecutivo para la Construcción del Mercado Concentración 10 de Mayo 5.-Proyecto Eléctrico para el Mercado Villa Coapa, 6.- Proyecto Eléctrico para el Mercado Fuentes Brotantes. Los Proyectos Eléctricos consisten en: Desarrollo Eléctrico (Diagrama unifilar, Cuadros de carga, Distribución de circuitos, Análisis Sistema de alumbrado, Sistema de tierras, Cálculo de circuitos alimentadores (conductores, caídas de tensión, canalizaciones, conductor de puesta a tierra, protecciones), Cálculo de circuitos derivados (conductores, caídas de tensión, canalizaciones, conductor de puesta a tierra, protecciones), Firma de los planos que integran el proyecto eléctrico por un ingeniero electricista con cédula profesional, revisión y firma de planos por unidad verificadora de instalaciones eléctricas. (UVIE). Los Proyectos Ejecutivos consisten en: elaboración de Levantamiento Topográfico, Levantamiento Arquitectónico, Estudios de Mécanica de Suelos, Estudio de mecánica de suelos geofisicos-geoelectricos , Proyecto Arquitectónico (Planta de conjunto, Planos de plantas arquitectónicas, Planos de elevaciones arquitectónicas o alzados, Plano de cortes arquitectónicos o secciones, Planos de detalles arquitectónicos, Calculo Estructural con firma de DRO, Proyecto Eléctrico,
B45: O21NR1154 | C45: Rehabilitación del Sistema de Alumbrado Público en Diversas Ubicaciones, Dentro del Perímetro de la Demarcación Territorial | D45: 0 | E45: 0 | F45: 14145604.53 | G45: 7312446.91 | H45: 6833157.62 | I45: 14145604.53 | J45: 7312446.91 | K45: 14145604.53 | L45: FAIS Estos recursos se contrataron a finales de noviembre por lo cual no hay avance físico realizado y será hasta el Cierre de la Cuenta Pública del ejercicio 2021, donde se verá la meta realizada al 100% terminada
B46: O21NR1155 | C46: Rehabilitación de Banquetas en Diversas Ubicaciones Dentro del Perímetro de la Demarcación Territorial | D46: 0 | E46: 0 | F46: 4603116.5 | G46: 0 | H46: 4603116.5 | I46: 4603116.5 | J46: 0 | K46: 4603116.5 | L46: FAIS Estos recursos se contrataron a finales de noviembre por lo cual no hay avance físico realizado y será hasta el Cierre de la Cuenta Pública del ejercicio 2021, donde se verá la meta realizada al 100% terminada
B47: O21NR1156 | C47: Rehabilitación de Superficie de Rodamiento (Repavimentación) en Diversas Ubicaciones, Dentro del Perímetro de la Demarcación Territorial | D47: 0 | E47: 0 | F47: 69447618.11 | G47: 4348486.18 | H47: 65099131.93 | I47: 69447618.11 | J47: 4348486.18 | K47: 69447618.11 | L47: FAIS Estos recursos se contrataron a finales de noviembre por lo cual no hay avance físico realizado y será hasta el Cierre de la Cuenta Pública del ejercicio 2021, donde se verá la meta realizada al 100% terminada
B48: O21NR1157 | C48: Rehabilitación del Sistema de Alcantarillado Pluvial en Diversas Ubicaciones, Dentro del Perímetro de la Demarcación Territorial | D48: 0 | E48: 0 | F48: 3108985.73 | G48: 0 | H48: 3108985.73 | I48: 3108985.73 | J48: 0 | K48: 3108985.73 | L48: FAIS Estos recursos se contrataron a finales de noviembre por lo cual no hay avance físico realizado y será hasta el Cierre de la Cuenta Pública del ejercicio 2021, donde se verá la meta realizada al 100% terminada
B49: O21NR1158 | C49: Verificación y Seguimiento de las Obras FISMDF | D49: 0 | E49: 0 | F49: 2835917.43 | G49: 0 | H49: 2835917.43 | I49: 2835917.43 | J49: 0 | K49: 2835917.43 | L49: FAIS Estos recursos se contrataron a finales de noviembre por lo cual no hay avance físico realizado y será hasta el Cierre de la Cuenta Pública del ejercicio 2021, donde se verá la meta realizada al 100% terminada
B50: O21NR1159 | C50: Mantenimiento de Salón de usos múltiples (granjas Coapa) (clave 12-050), dentro del perímetro de la demarcación territorial Alcaldía Tlalpan | D50: 0 | E50: 0 | F50: 482598 | G50: 0 | H50: 482598 | I50: 482598 | J50: 0 | K50: 482598 | L50: Los trabajos se inciaron a finales del mes de noviembre; se relizaron los procesos de elaboración de fichas, suficiencias, licitaciones y contrataciones por lo que será hasta la Cuenta Pública donde se verán los Cierres definitivos de las obras de cada uno de los Comités del Presupuesto Participativo.
B51: O21NR1160 | C51: Mantenimiento de Módulo De Vigilancia para la colonia (Mirador I) (Clave 12-100), dentro del perímetro de la demarcación territorial. | D51: 0 | E51: 0 | F51: 388903 | G51: 0 | H51: 388903 | I51: 388903 | J51: 0 | K51: 388903 | L51: Los trabajos se inciaron a finales del mes de noviembre; se relizaron los procesos de elaboración de fichas, suficiencias, licitaciones y contrataciones por lo que será hasta la Cuenta Pública donde se verán los Cierres definitivos de las obras de cada uno de los Comités del Presupuesto Participativo.
B52: O21NR1161 | C52: Construcción de Centro Cultural para Exhibición de Películas Obras de Teatro y Danza sobre La calle Las Torres frente a la Base de RTP (Xaxalco) (Clave 12-200), dentro del perímetro. | D52: 0 | E52: 0 | F52: 444900 | G52: 0 | H52: 444900 | I52: 444900 | J52: 0 | K52: 444900 | L52: Los trabajos se inciaron a finales del mes de noviembre; se relizaron los procesos de elaboración de fichas, suficiencias, licitaciones y contrataciones por lo que será hasta la Cuenta Pública donde se verán los Cierres definitivos de las obras de cada uno de los Comités del Presupuesto Participativo.
B53: O21NR1162 | C53: Construcción de aula para actividades físicas (Lomas de Padierna II) (clave 12-212), dentro del perímetro de la demarcación territorial. | D53: 0 | E53: 0 | F53: 847882 | G53: 0 | H53: 847882 | I53: 847882 | J53: 0 | K53: 847882 | L53: Los trabajos se inciaron a finales del mes de noviembre; se relizaron los procesos de elaboración de fichas, suficiencias, licitaciones y contrataciones por lo que será hasta la Cuenta Pública donde se verán los Cierres definitivos de las obras de cada uno de los Comités del Presupuesto Participativo.
B54: O21NR1163 | C54: Remodelación y mejoramiento del parque Busto de Juárez 2020 (Ampliación Miguel Hidalgo 2a secc.) (Clave 12-002), dentro del perímetro de la demarcación territorial. | D54: 0 | E54: 0 | F54: 1004156 | G54: 0 | H54: 1004156 | I54: 1004156 | J54: 0 | K54: 1004156 | L54: Los trabajos se inciaron a finales del mes de noviembre; se relizaron los procesos de elaboración de fichas, suficiencias, licitaciones y contrataciones por lo que será hasta la Cuenta Pública donde se verán los Cierres definitivos de las obras de cada uno de los Comités del Presupuesto Participativo.
B55: O21NR1164 | C55: Arreglos y compostura del parque "Martín Torres Padilla" (Amsa) (clave 12-005), dentro del perímetro de la demarcación territorial. | D55: 0 | E55: 0 | F55: 344107 | G55: 0 | H55: 344107 | I55: 344107 | J55: 0 | K55: 344107 | L55: Los trabajos se inciaron a finales del mes de noviembre; se relizaron los procesos de elaboración de fichas, suficiencias, licitaciones y contrataciones por lo que será hasta la Cuenta Pública donde se verán los Cierres definitivos de las obras de cada uno de los Comités del Presupuesto Participativo.
B56: O21NR1165 | C56: Rehabilitación de Banquetas de calidad (Arboledas del Sur) (clave 12-007), dentro del perímetro de la demarcación territorial. | D56: 0 | E56: 0 | F56: 483912 | G56: 0 | H56: 483912 | I56: 483912 | J56: 0 | K56: 483912 | L56: Los trabajos se inciaron a finales del mes de noviembre; se relizaron los procesos de elaboración de fichas, suficiencias, licitaciones y contrataciones por lo que será hasta la Cuenta Pública donde se verán los Cierres definitivos de las obras de cada uno de los Comités del Presupuesto Participativo.
B57: O21NR1166 | C57: Construcción de Barreras anti inundación y válvulas check para reducir la vulnerabilidad y el riesgo de inundación y pérdida del patrimonio en col Guadalupe Tlalpan. | D57: 0 | E57: 0 | F57: 421186 | G57: 0 | H57: 421186 | I57: 421186 | J57: 0 | K57: 421186 | L57: Los trabajos se inciaron a finales del mes de noviembre; se relizaron los procesos de elaboración de fichas, suficiencias, licitaciones y contrataciones por lo que será hasta la Cuenta Pública donde se verán los Cierres definitivos de las obras de cada uno de los Comités del Presupuesto Participativo.
B58: O21NR1167 | C58: Recuperación del área verde de la calle Río San Buenaventura con esquina Periférico Sur (Arenal puerta Tepepan) (clave 12-009), dentro del perímetro de la demarcación territorial. | D58: 0 | E58: 0 | F58: 358047 | G58: 0 | H58: 358047 | I58: 358047 | J58: 0 | K58: 358047 | L58: Los trabajos se inciaron a finales del mes de noviembre; se relizaron los procesos de elaboración de fichas, suficiencias, licitaciones y contrataciones por lo que será hasta la Cuenta Pública donde se verán los Cierres definitivos de las obras de cada uno de los Comités del Presupuesto Participativo.
B59: O21NR1168 | C59: Rescate de área verde de la colonia Belvedere para habilitar un pabellón para actividades culturales y ecológicas, juegos lúdicos y bancas (Belvedere) (clave 12-013) | D59: 0 | E59: 0 | F59: 574522 | G59: 0 | H59: 574522 | I59: 574522 | J59: 0 | K59: 574522 | L59: Los trabajos se inciaron a finales del mes de noviembre; se relizaron los procesos de elaboración de fichas, suficiencias, licitaciones y contrataciones por lo que será hasta la Cuenta Pública donde se verán los Cierres definitivos de las obras de cada uno de los Comités del Presupuesto Participativo.
B60: O21NR1169 | C60: Mantenimiento en Espacio cultural y educativo abierto en acalzala para todos en Cantera pte. de piedra, proyecto sostenible amigable con el medio ambiente 1ra. Etapa | D60: 0 | E60: 0 | F60: 520317 | G60: 0 | H60: 520317 | I60: 520317 | J60: 0 | K60: 520317 | L60: Los trabajos se inciaron a finales del mes de noviembre; se relizaron los procesos de elaboración de fichas, suficiencias, licitaciones y contrataciones por lo que será hasta la Cuenta Pública donde se verán los Cierres definitivos de las obras de cada uno de los Comités del Presupuesto Participativo.
B61: O21NR1170 | C61: Instalación de corredor recreativo ecológico (Cruz del Farol) (clave 12-029), dentro del perímetro de la demarcación territorial. | D61: 0 | E61: 0 | F61: 409324 | G61: 0 | H61: 409324 | I61: 409324 | J61: 0 | K61: 409324 | L61: Los trabajos se inciaron a finales del mes de noviembre; se relizaron los procesos de elaboración de fichas, suficiencias, licitaciones y contrataciones por lo que será hasta la Cuenta Pública donde se verán los Cierres definitivos de las obras de cada uno de los Comités del Presupuesto Participativo.
B62: O21NR1171 | C62: Instalación y Adquisición de sistemas de captación de agua pluvial (Cuilotepec II) (clave 12-031), dentro del perímetro de la demarcación territorial. | D62: 0 | E62: 0 | F62: 304527 | G62: 0 | H62: 304527 | I62: 304527 | J62: 0 | K62: 304527 | L62: Los trabajos se inciaron a finales del mes de noviembre; se relizaron los procesos de elaboración de fichas, suficiencias, licitaciones y contrataciones por lo que será hasta la Cuenta Pública donde se verán los Cierres definitivos de las obras de cada uno de los Comités del Presupuesto Participativo.
B63: O21NR1172 | C63: Mantenimiento del techado de cancha deportiva de la colonia 2020 (diamante) (clave 12-033), dentro del perímetro de la demarcación t erritorial. | D63: 0 | E63: 0 | F63: 366848 | G63: 0 | H63: 366848 | I63: 366848 | J63: 0 | K63: 366848 | L63: Los trabajos se inciaron a finales del mes de noviembre; se relizaron los procesos de elaboración de fichas, suficiencias, licitaciones y contrataciones por lo que será hasta la Cuenta Pública donde se verán los Cierres definitivos de las obras de cada uno de los Comités del Presupuesto Participativo.
B64: O21NR1173 | C64: Rehabilitación de juegos infantiles y colocación de nuevos juegos (camellón Prolongación canal de Miramontes) (Ex Hacienda San Juan de Dios) (clave 12-042), dentro del perímetro d | D64: 0 | E64: 0 | F64: 520673 | G64: 0 | H64: 520673 | I64: 520673 | J64: 0 | K64: 520673 | L64: Los trabajos se inciaron a finales del mes de noviembre; se relizaron los procesos de elaboración de fichas, suficiencias, licitaciones y contrataciones por lo que será hasta la Cuenta Pública donde se verán los Cierres definitivos de las obras de cada uno de los Comités del Presupuesto Participativo.
B65: O21NR1174 | C65: Concluir de manera correcta los proyectos inconclusos de 2017, 2018 y 2019. Construir un huerto urbano y arreglar las banquetas | D65: 0 | E65: 0 | F65: 444300 | G65: 0 | H65: 444300 | I65: 444300 | J65: 0 | K65: 444300 | L65: Los trabajos se inciaron a finales del mes de noviembre; se relizaron los procesos de elaboración de fichas, suficiencias, licitaciones y contrataciones por lo que será hasta la Cuenta Pública donde se verán los Cierres definitivos de las obras de cada uno de los Comités del Presupuesto Participativo.
B66: O21NR1175 | C66: Reparación y recuperación de la fuente del parque los ilusos en la colonia fuentes del pedregal (camellón prolongación canal de Miramontes) (Fuentes del Pedregal) (clave 12-049), | D66: 0 | E66: 0 | F66: 605251 | G66: 0 | H66: 605251 | I66: 605251 | J66: 0 | K66: 605251 | L66: Los trabajos se inciaron a finales del mes de noviembre; se relizaron los procesos de elaboración de fichas, suficiencias, licitaciones y contrataciones por lo que será hasta la Cuenta Pública donde se verán los Cierres definitivos de las obras de cada uno de los Comités del Presupuesto Participativo.
B67: O21NR1176 | C67: Embellecimiento del camellón de calzada del hueso y restitución del retorno (granjas Coapa Oriente) (clave 12-051), dentro del perímetro de la demarcación territorial. | D67: 0 | E67: 0 | F67: 371411 | G67: 0 | H67: 371411 | I67: 371411 | J67: 0 | K67: 371411 | L67: Los trabajos se inciaron a finales del mes de noviembre; se relizaron los procesos de elaboración de fichas, suficiencias, licitaciones y contrataciones por lo que será hasta la Cuenta Pública donde se verán los Cierres definitivos de las obras de cada uno de los Comités del Presupuesto Participativo.
B68: O21NR1177 | C68: Recuperación, mantenimiento y rescate de los parques de la colonia 1) el ubicado entre prolongación canal de Miramontes entre Xomali y transmisiones (Hacienda San Juan-Rincón de San Juan Chimalli | D68: 0 | E68: 0 | F68: 541199 | G68: 0 | H68: 541199 | I68: 541199 | J68: 0 | K68: 541199 | L68: Los trabajos se inciaron a finales del mes de noviembre; se relizaron los procesos de elaboración de fichas, suficiencias, licitaciones y contrataciones por lo que será hasta la Cuenta Pública donde se verán los Cierres definitivos de las obras de cada uno de los Comités del Presupuesto Participativo.
B69: O21NR1178 | C69: Rehabilitación de Andador peatonal en parada La Palma, desde retorno la Palma hasta capilla en calle Oyamel esquina Roble (La Palma) (clave 12-075), dentro del perímetro de la demarcación. | D69: 0 | E69: 0 | F69: 411551 | G69: 0 | H69: 411551 | I69: 411551 | J69: 0 | K69: 411551 | L69: Los trabajos se inciaron a finales del mes de noviembre; se relizaron los procesos de elaboración de fichas, suficiencias, licitaciones y contrataciones por lo que será hasta la Cuenta Pública donde se verán los Cierres definitivos de las obras de cada uno de los Comités del Presupuesto Participativo.
B70: O21NR1179 | C70: Rehabilitación de banquetas, Caminando seguros (lomas altas de Padierna Sur) (clave 12-079), dentro del perímetro de la demarcación territorial. | D70: 0 | E70: 0 | F70: 571153 | G70: 0 | H70: 571153 | I70: 571153 | J70: 0 | K70: 571153 | L70: Los trabajos se inciaron a finales del mes de noviembre; se relizaron los procesos de elaboración de fichas, suficiencias, licitaciones y contrataciones por lo que será hasta la Cuenta Pública donde se verán los Cierres definitivos de las obras de cada uno de los Comités del Presupuesto Participativo.
B71: O21NR1180 | C71: Rehabilitación de postes luminarias de 7.5 metros en la colonia Lomas del Pedregal (Lomas del Pedregal) (clave 12-085), dentro del perímetro de la demarcación territorial. | D71: 0 | E71: 0 | F71: 341072 | G71: 0 | H71: 341072 | I71: 341072 | J71: 0 | K71: 341072 | L71: Los trabajos se inciaron a finales del mes de noviembre; se relizaron los procesos de elaboración de fichas, suficiencias, licitaciones y contrataciones por lo que será hasta la Cuenta Pública donde se verán los Cierres definitivos de las obras de cada uno de los Comités del Presupuesto Participativo.
B72: O21NR1181 | C72: Rehabilitación y mantenimiento de 5 pozos de absorción (Ma. Esther Zuno de Echeverria-Tlalpuente) (clave 12-092), dentro del perímetro de la demarcación territorial. | D72: 0 | E72: 0 | F72: 391084 | G72: 0 | H72: 391084 | I72: 391084 | J72: 0 | K72: 391084 | L72: Los trabajos se inciaron a finales del mes de noviembre; se relizaron los procesos de elaboración de fichas, suficiencias, licitaciones y contrataciones por lo que será hasta la Cuenta Pública donde se verán los Cierres definitivos de las obras de cada uno de los Comités del Presupuesto Participativo.
B73: O21NR1182 | C73: Rehabilitacion y embellecimiento de toda la unidad territorial (Nueva Oriental Coapa-Ex Hacienda Coapa) (clave 12-109), dentro del perímetro de la demarcación territorial. | D73: 0 | E73: 0 | F73: 503636 | G73: 0 | H73: 503636 | I73: 503636 | J73: 0 | K73: 503636 | L73: Los trabajos se inciaron a finales del mes de noviembre; se relizaron los procesos de elaboración de fichas, suficiencias, licitaciones y contrataciones por lo que será hasta la Cuenta Pública donde se verán los Cierres definitivos de las obras de cada uno de los Comités del Presupuesto Participativo.
B74: O21NR1183 | C74: Instalación de sistema de captación de agua pluvial en la calle ave del paraíso y alrededores (Ocotla - Ocotla chico) (clave 12-111) | D74: 0 | E74: 0 | F74: 343101 | G74: 0 | H74: 343101 | I74: 343101 | J74: 0 | K74: 343101 | L74: Los trabajos se inciaron a finales del mes de noviembre; se relizaron los procesos de elaboración de fichas, suficiencias, licitaciones y contrataciones por lo que será hasta la Cuenta Pública donde se verán los Cierres definitivos de las obras de cada uno de los Comités del Presupuesto Participativo.
B75: O21NR1184 | C75: Mantenimiento de Cancha de usos múltiples (basquetbol, voleibol, futbol y actividades culturales) (Pedregal de San Nicolás 3a secc) (clave 12-119), dentro del perímetro de la demarcación. | D75: 0 | E75: 0 | F75: 906433 | G75: 0 | H75: 906433 | I75: 906433 | J75: 0 | K75: 906433 | L75: Los trabajos se inciaron a finales del mes de noviembre; se relizaron los procesos de elaboración de fichas, suficiencias, licitaciones y contrataciones por lo que será hasta la Cuenta Pública donde se verán los Cierres definitivos de las obras de cada uno de los Comités del Presupuesto Participativo.
B76: O21NR1185 | C76: Rehabilitación de luminarias en la vía publica para mayor seguridad pública, retirando postes viejos y/o cambiando por postes nuevos (Plan de Ayala) (clave 12-125), dentro del perímetro. | D76: 0 | E76: 0 | F76: 349182 | G76: 0 | H76: 349182 | I76: 349182 | J76: 0 | K76: 349182 | L76: Los trabajos se inciaron a finales del mes de noviembre; se relizaron los procesos de elaboración de fichas, suficiencias, licitaciones y contrataciones por lo que será hasta la Cuenta Pública donde se verán los Cierres definitivos de las obras de cada uno de los Comités del Presupuesto Participativo.
B77: O21NR1186 | C77: Habilitación de área para juegos del jardín de niños Bikit (popular Sta. Teresa) (clave 12-127), dentro del perímetro de la demarcación territorial. | D77: 0 | E77: 0 | F77: 635527 | G77: 0 | H77: 635527 | I77: 635527 | J77: 0 | K77: 635527 | L77: Los trabajos se inciaron a finales del mes de noviembre; se relizaron los procesos de elaboración de fichas, suficiencias, licitaciones y contrataciones por lo que será hasta la Cuenta Pública donde se verán los Cierres definitivos de las obras de cada uno de los Comités del Presupuesto Participativo.
B78: O21NR1187 | C78: Rehabilitación de cuatro parques de la colonia Prado Coapa 3a sección-potrero Acoxpa, dentro del perímetro de la demarcación. | D78: 0 | E78: 0 | F78: 415734 | G78: 0 | H78: 415734 | I78: 415734 | J78: 0 | K78: 415734 | L78: Los trabajos se inciaron a finales del mes de noviembre; se relizaron los procesos de elaboración de fichas, suficiencias, licitaciones y contrataciones por lo que será hasta la Cuenta Pública donde se verán los Cierres definitivos de las obras de cada uno de los Comités del Presupuesto Participativo.
B79: O21NR1188 | C79: Mantenimiento general del deportivo de la colonia (Pueblo Quieto) (clave 12-133), dentro del perímetro de la demarcación territorial. | D79: 0 | E79: 0 | F79: 354764 | G79: 0 | H79: 354764 | I79: 354764 | J79: 0 | K79: 354764 | L79: Los trabajos se inciaron a finales del mes de noviembre; se relizaron los procesos de elaboración de fichas, suficiencias, licitaciones y contrataciones por lo que será hasta la Cuenta Pública donde se verán los Cierres definitivos de las obras de cada uno de los Comités del Presupuesto Participativo.
B80: O21NR1189 | C80: Instalación de Lámparas solares para calzada las Brujas en la unidad territorial de rincón las Hadas, villa Royale, fuentes y arconada Coapa | D80: 0 | E80: 0 | F80: 351748 | G80: 0 | H80: 351748 | I80: 351748 | J80: 0 | K80: 351748 | L80: Los trabajos se inciaron a finales del mes de noviembre; se relizaron los procesos de elaboración de fichas, suficiencias, licitaciones y contrataciones por lo que será hasta la Cuenta Pública donde se verán los Cierres definitivos de las obras de cada uno de los Comités del Presupuesto Participativo.
B81: O21NR1190 | C81: Rehabilitación de escaleras en la entrada de Tetequilo (Tezontitla - el calvario (Ampl) (clave 12-174), dentro del perímetro de la demarcación territorial. | D81: 0 | E81: 0 | F81: 298949 | G81: 0 | H81: 298949 | I81: 298949 | J81: 0 | K81: 298949 | L81: Los trabajos se inciaron a finales del mes de noviembre; se relizaron los procesos de elaboración de fichas, suficiencias, licitaciones y contrataciones por lo que será hasta la Cuenta Pública donde se verán los Cierres definitivos de las obras de cada uno de los Comités del Presupuesto Participativo.
B82: O21NR1191 | C82: Rehabilitación de áreas verdes y suelo permeable (Valle Escondido) (clave 12-184), dentro del perímetro de la demarcación territorial. | D82: 0 | E82: 0 | F82: 450897 | G82: 0 | H82: 450897 | I82: 450897 | J82: 0 | K82: 450897 | L82: Los trabajos se inciaron a finales del mes de noviembre; se relizaron los procesos de elaboración de fichas, suficiencias, licitaciones y contrataciones por lo que será hasta la Cuenta Pública donde se verán los Cierres definitivos de las obras de cada uno de los Comités del Presupuesto Participativo.
B83: O21NR1192 | C83: Remodelación sustentable e incluyente del parque ubicado en residencial villa Coapa súper manzana 5 (villa Coapa (rdcial)) (clave 12-191), dentro del perímetro de la demarcación territorial. | D83: 0 | E83: 0 | F83: 387417 | G83: 0 | H83: 387417 | I83: 387417 | J83: 0 | K83: 387417 | L83: Los trabajos se inciaron a finales del mes de noviembre; se relizaron los procesos de elaboración de fichas, suficiencias, licitaciones y contrataciones por lo que será hasta la Cuenta Pública donde se verán los Cierres definitivos de las obras de cada uno de los Comités del Presupuesto Participativo.
B84: O21NR1193 | C84: Rehabilitación de áreas verdes, camellones, espacios deportivos, iluminación y reencarpetado de la colonia villa Lázaro Cárdenas (villa Lázaro Cárdenas) (clave 12-194), dentro del perímetro. | D84: 0 | E84: 0 | F84: 532959 | G84: 0 | H84: 532959 | I84: 532959 | J84: 0 | K84: 532959 | L84: Los trabajos se inciaron a finales del mes de noviembre; se relizaron los procesos de elaboración de fichas, suficiencias, licitaciones y contrataciones por lo que será hasta la Cuenta Pública donde se verán los Cierres definitivos de las obras de cada uno de los Comités del Presupuesto Participativo.
B85: O21NR1194 | C85: Renovación de las escalinatas de la calle Chabacano esq. Totolepec (vistas del pedregal) (clave 12-198), dentro del perímetro de la demarcación territorial. | D85: 0 | E85: 0 | F85: 352370 | G85: 0 | H85: 352370 | I85: 352370 | J85: 0 | K85: 352370 | L85: Los trabajos se inciaron a finales del mes de noviembre; se relizaron los procesos de elaboración de fichas, suficiencias, licitaciones y contrataciones por lo que será hasta la Cuenta Pública donde se verán los Cierres definitivos de las obras de cada uno de los Comités del Presupuesto Participativo.
B86: O21NR1195 | C86: Pavimentación asfáltica de las calles primarias prolongación santa cruz y Ayocatitla en la colonia Ayocatitla/asunción las cuales se unifican | D86: 0 | E86: 0 | F86: 369220 | G86: 0 | H86: 369220 | I86: 369220 | J86: 0 | K86: 369220 | L86: Los trabajos se inciaron a finales del mes de noviembre; se relizaron los procesos de elaboración de fichas, suficiencias, licitaciones y contrataciones por lo que será hasta la Cuenta Pública donde se verán los Cierres definitivos de las obras de cada uno de los Comités del Presupuesto Participativo.
B87: O21NR1196 | C87: Terminación de reencarpetado de la calle Dr. Atl. (Jardines Coapa-Belisario Domínguez) (Clave 12-064), dentro del perímetro de la de marcación territorial. | D87: 0 | E87: 0 | F87: 354466 | G87: 0 | H87: 354466 | I87: 354466 | J87: 0 | K87: 354466 | L87: Los trabajos se inciaron a finales del mes de noviembre; se relizaron los procesos de elaboración de fichas, suficiencias, licitaciones y contrataciones por lo que será hasta la Cuenta Pública donde se verán los Cierres definitivos de las obras de cada uno de los Comités del Presupuesto Participativo.
B88: O21NR1197 | C88: Reencarpetamiento de la calle Iztaccihuatl (la lonja) (clave 12-069), dentro del perímetro de la demarcación territorial. | D88: 0 | E88: 0 | F88: 403182 | G88: 0 | H88: 403182 | I88: 403182 | J88: 0 | K88: 403182 | L88: Los trabajos se inciaron a finales del mes de noviembre; se relizaron los procesos de elaboración de fichas, suficiencias, licitaciones y contrataciones por lo que será hasta la Cuenta Pública donde se verán los Cierres definitivos de las obras de cada uno de los Comités del Presupuesto Participativo.
B89: O21NR1198 | C89: Continuación de la pavimentación en la colonia en camino los arcos desde camino vecinal hasta la cerrada del camino de los Arcos (la Guadalupana) (clave 12-071) | D89: 0 | E89: 0 | F89: 399827 | G89: 0 | H89: 399827 | I89: 399827 | J89: 0 | K89: 399827 | L89: Los trabajos se inciaron a finales del mes de noviembre; se relizaron los procesos de elaboración de fichas, suficiencias, licitaciones y contrataciones por lo que será hasta la Cuenta Pública donde se verán los Cierres definitivos de las obras de cada uno de los Comités del Presupuesto Participativo.
B90: O21NR1199 | C90: Pavimentación de c. Francisco Javier Mina y c. Mariano Abasolo (la libertad - Ixtlahuaca) (clave 12-073), dentro del perímetro de la demarcación territorial. | D90: 0 | E90: 0 | F90: 333828 | G90: 0 | H90: 333828 | I90: 333828 | J90: 0 | K90: 333828 | L90: Los trabajos se inciaron a finales del mes de noviembre; se relizaron los procesos de elaboración de fichas, suficiencias, licitaciones y contrataciones por lo que será hasta la Cuenta Pública donde se verán los Cierres definitivos de las obras de cada uno de los Comités del Presupuesto Participativo.
B91: O21NR1200 | C91: Reencarpetado de la calle 3a cerrada cañaverales. Col. Magisterial (Coapa-villa Cuemanco) (clave 12-093), dentro del perímetro de la demarcación territorial. | D91: 0 | E91: 0 | F91: 393728 | G91: 0 | H91: 393728 | I91: 393728 | J91: 0 | K91: 393728 | L91: Los trabajos se inciaron a finales del mes de noviembre; se relizaron los procesos de elaboración de fichas, suficiencias, licitaciones y contrataciones por lo que será hasta la Cuenta Pública donde se verán los Cierres definitivos de las obras de cada uno de los Comités del Presupuesto Participativo.
B92: O21NR1201 | C92: Mantenimiento del adoquinado en la calle Zacatepetl y alborada (parques del pedregal) (clave 12-114), dentro del perímetro de la demarcación territorial. | D92: 0 | E92: 0 | F92: 423678 | G92: 0 | H92: 423678 | I92: 423678 | J92: 0 | K92: 423678 | L92: Los trabajos se inciaron a finales del mes de noviembre; se relizaron los procesos de elaboración de fichas, suficiencias, licitaciones y contrataciones por lo que será hasta la Cuenta Pública donde se verán los Cierres definitivos de las obras de cada uno de los Comités del Presupuesto Participativo.
B93: O21NR1202 | C93: Continuación de empedrado y muro de contención en camino piedra larga (rampa) (piedra larga) (clave 12-124), dentro del perímetro de la demarcación territorial. | D93: 0 | E93: 0 | F93: 314463 | G93: 0 | H93: 314463 | I93: 314463 | J93: 0 | K93: 314463 | L93: Los trabajos se inciaron a finales del mes de noviembre; se relizaron los procesos de elaboración de fichas, suficiencias, licitaciones y contrataciones por lo que será hasta la Cuenta Pública donde se verán los Cierres definitivos de las obras de cada uno de los Comités del Presupuesto Participativo.
B94: O21NR1203 | C94: Encarpetar todas las calles de la colonia (prado Coapa 2a sección) (clave 12-130), dentro del perímetro de la demarcación territorial. | D94: 0 | E94: 0 | F94: 394615 | G94: 0 | H94: 394615 | I94: 394615 | J94: 0 | K94: 394615 | L94: Los trabajos se inciaron a finales del mes de noviembre; se relizaron los procesos de elaboración de fichas, suficiencias, licitaciones y contrataciones por lo que será hasta la Cuenta Pública donde se verán los Cierres definitivos de las obras de cada uno de los Comités del Presupuesto Participativo.
B95: O21NR1204 | C95: Reencarpetado de la calle colonia (Real del Sur-villas del Sur-residencial Acoxpa) (clave 12-137), dentro del perímetro de la demar cación territorial. | D95: 0 | E95: 0 | F95: 385732 | G95: 0 | H95: 385732 | I95: 385732 | J95: 0 | K95: 385732 | L95: Los trabajos se inciaron a finales del mes de noviembre; se relizaron los procesos de elaboración de fichas, suficiencias, licitaciones y contrataciones por lo que será hasta la Cuenta Pública donde se verán los Cierres definitivos de las obras de cada uno de los Comités del Presupuesto Participativo.
B96: O21NR1205 | C96: Rehabilitación de asfalto en la calle prolongación de mayas y prolongación de navajos (Tlalcoligia) (clave 12-175), dentro del perím etro de la demarcación territorial. | D96: 0 | E96: 0 | F96: 685565 | G96: 0 | H96: 685565 | I96: 685565 | J96: 0 | K96: 685565 | L96: Los trabajos se inciaron a finales del mes de noviembre; se relizaron los procesos de elaboración de fichas, suficiencias, licitaciones y contrataciones por lo que será hasta la Cuenta Pública donde se verán los Cierres definitivos de las obras de cada uno de los Comités del Presupuesto Participativo.
B97: O21NR1206 | C97: Reencarpetado del callejón de Tetitla (Toriello Guerra) (clave 12-180), dentro del perímetro de la demarcación territorial. | D97: 0 | E97: 0 | F97: 750988 | G97: 0 | H97: 750988 | I97: 750988 | J97: 0 | K97: 750988 | L97: Los trabajos se inciaron a finales del mes de noviembre; se relizaron los procesos de elaboración de fichas, suficiencias, licitaciones y contrataciones por lo que será hasta la Cuenta Pública donde se verán los Cierres definitivos de las obras de cada uno de los Comités del Presupuesto Participativo.
B98: O21NR1207 | C98: Reencarpetamiento de calles de las colonias vergel de Coyoacán y vergel del sur (vergel de Coyoacán-vergel del sur) (clave 12-188), dentro del perímetro de la demarcación territorial. | D98: 0 | E98: 0 | F98: 450333 | G98: 0 | H98: 450333 | I98: 450333 | J98: 0 | K98: 450333 | L98: Los trabajos se inciaron a finales del mes de noviembre; se relizaron los procesos de elaboración de fichas, suficiencias, licitaciones y contrataciones por lo que será hasta la Cuenta Pública donde se verán los Cierres definitivos de las obras de cada uno de los Comités del Presupuesto Participativo.
B99: O21NR1208 | C99: Pavimentación y guarnición cerrada de pirules y prolongación la palma (viveros de Coactetlan) (clave 12-199), dentro del perímetro de la demarcación territorial. | D99: 0 | E99: 0 | F99: 432927 | G99: 0 | H99: 432927 | I99: 432927 | J99: 0 | K99: 432927 | L99: Los trabajos se inciaron a finales del mes de noviembre; se relizaron los procesos de elaboración de fichas, suficiencias, licitaciones y contrataciones por lo que será hasta la Cuenta Pública donde se verán los Cierres definitivos de las obras de cada uno de los Comités del Presupuesto Participativo.
B100: O21NR1209 | C100: Continuación de trabajos de pavimentación de la calle granjas hasta calle Ayocatitla (Xaxalipac) (clave 12-201), dentro del perímetro de la demarcación territorial. | D100: 0 | E100: 0 | F100: 376223 | G100: 0 | H100: 376223 | I100: 376223 | J100: 0 | K100: 376223 | L100: Los trabajos se inciaron a finales del mes de noviembre; se relizaron los procesos de elaboración de fichas, suficiencias, licitaciones y contrataciones por lo que será hasta la Cuenta Pública donde se verán los Cierres definitivos de las obras de cada uno de los Comités del Presupuesto Participativo.
B101: O21NR1210 | C101: Construcción de tanque de captación de aguas pluviales en solidaridad (chimilli) (clave 12-022), dentro del perímetro de la demarcación territorial. | D101: 0 | E101: 0 | F101: 448742 | G101: 0 | H101: 448742 | I101: 448742 | J101: 0 | K101: 448742 | L101: Los trabajos se inciaron a finales del mes de noviembre; se relizaron los procesos de elaboración de fichas, suficiencias, licitaciones y contrataciones por lo que será hasta la Cuenta Pública donde se verán los Cierres definitivos de las obras de cada uno de los Comités del Presupuesto Participativo.
B102: O21NR1211 | C102: Sustitución de red de agua potable y tomas, por las calles prolongación de abasolo, fuentes buenas y calles perpendiculares a ésta (fuentes y pedregal de tepepan) (clave 12-048), | D102: 0 | E102: 0 | F102: 513969 | G102: 0 | H102: 513969 | I102: 513969 | J102: 0 | K102: 513969 | L102: Los trabajos se inciaron a finales del mes de noviembre; se relizaron los procesos de elaboración de fichas, suficiencias, licitaciones y contrataciones por lo que será hasta la Cuenta Pública donde se verán los Cierres definitivos de las obras de cada uno de los Comités del Presupuesto Participativo.
B103: O21NR1212 | C103: Rehabilitación y Mantenimiento de rampas de acceso principales para vehículos (chimalcoyoc) (clave 12-020), dentro del perímetro de la demarcación territorial. | D103: 0 | E103: 0 | F103: 553682 | G103: 0 | H103: 553682 | I103: 553682 | J103: 0 | K103: 553682 | L103: Los trabajos se inciaron a finales del mes de noviembre; se relizaron los procesos de elaboración de fichas, suficiencias, licitaciones y contrataciones por lo que será hasta la Cuenta Pública donde se verán los Cierres definitivos de las obras de cada uno de los Comités del Presupuesto Participativo.
B104: O21NR1213 | C104: Rehabilitación de Área deportiva y recreativa para perros (colinas del bosque-las tórtolas) (clave 12-025), dentro del perímetro de la demarcación territorial. | D104: 0 | E104: 0 | F104: 347278 | G104: 0 | H104: 347278 | I104: 347278 | J104: 0 | K104: 347278 | L104: Los trabajos se inciaron a finales del mes de noviembre; se relizaron los procesos de elaboración de fichas, suficiencias, licitaciones y contrataciones por lo que será hasta la Cuenta Pública donde se verán los Cierres definitivos de las obras de cada uno de los Comités del Presupuesto Participativo.
B105: O21NR1214 | C105: Mantenimiento de alumbrado público en todo el condominio (condominio del bosque (fracc)-bosque de Tlalpan) (clave 12-026), dentro del perímetro de la demarcación territorial. | D105: 0 | E105: 0 | F105: 329577 | G105: 0 | H105: 329577 | I105: 329577 | J105: 0 | K105: 329577 | L105: Los trabajos se inciaron a finales del mes de noviembre; se relizaron los procesos de elaboración de fichas, suficiencias, licitaciones y contrataciones por lo que será hasta la Cuenta Pública donde se verán los Cierres definitivos de las obras de cada uno de los Comités del Presupuesto Participativo.
B106: O21NR1215 | C106: Reparación de filtraciones en estacionamiento y accesos, para la detención de daño estructural que representa riesgo inminente para la comunidad | D106: 0 | E106: 0 | F106: 336056 | G106: 0 | H106: 336056 | I106: 336056 | J106: 0 | K106: 336056 | L106: Los trabajos se inciaron a finales del mes de noviembre; se relizaron los procesos de elaboración de fichas, suficiencias, licitaciones y contrataciones por lo que será hasta la Cuenta Pública donde se verán los Cierres definitivos de las obras de cada uno de los Comités del Presupuesto Participativo.
B107: O21NR1216 | C107: Cambio de cableado eléctrico de todos los postes de la unidad (conjunto urbano cuemanco (u hab)) (clave 12-027), dentro del perímetro de la demarcación territorial. | D107: 0 | E107: 0 | F107: 340348 | G107: 0 | H107: 340348 | I107: 340348 | J107: 0 | K107: 340348 | L107: Los trabajos se inciaron a finales del mes de noviembre; se relizaron los procesos de elaboración de fichas, suficiencias, licitaciones y contrataciones por lo que será hasta la Cuenta Pública donde se verán los Cierres definitivos de las obras de cada uno de los Comités del Presupuesto Participativo.
B108: O21NR1217 | C108: Reparación de cisterna de agua potable que suministra a toda la unidad Emilio Portes Gil Pemex picacho, por medio de bombeo (Emilio Portes Gil Pemex picacho (u hab)) (clave 12-040 | D108: 0 | E108: 0 | F108: 408917 | G108: 0 | H108: 408917 | I108: 408917 | J108: 0 | K108: 408917 | L108: Los trabajos se inciaron a finales del mes de noviembre; se relizaron los procesos de elaboración de fichas, suficiencias, licitaciones y contrataciones por lo que será hasta la Cuenta Pública donde se verán los Cierres definitivos de las obras de cada uno de los Comités del Presupuesto Participativo.
B109: O21NR1218 | C109: Instalacion al interior de la unidad de luminarias fotovoltaicas con paneles solares (Fovissste san pedro mártir (u hab)) (clave 12-045), dentro del perímetro de la demarcación territorial. | D109: 0 | E109: 0 | F109: 0 | G109: 0 | H109: 0 | I109: 0 | J109: 0 | K109: 0
B110: O21NR1219 | C110: Reencarpetado dentro de la unidad (hueso periferico-isssfam no. 7 (u habs)) (clave 12-057), dentro del perímetro de la demarcación t erritorial. | D110: 0 | E110: 0 | F110: 399413 | G110: 0 | H110: 399413 | I110: 399413 | J110: 0 | K110: 399413 | L110: Los trabajos se inciaron a finales del mes de noviembre; se relizaron los procesos de elaboración de fichas, suficiencias, licitaciones y contrataciones por lo que será hasta la Cuenta Pública donde se verán los Cierres definitivos de las obras de cada uno de los Comités del Presupuesto Participativo.
B111: O21NR1220 | C111: Rehabilitación y mantenimiento del Módulo de juegos infantiles en áreas verdes comunes de la unidad Ignacio Chávez dentro de los regímenes I,II ,III,V y VI y deportivo | D111: 0 | E111: 0 | F111: 338479 | G111: 0 | H111: 338479 | I111: 338479 | J111: 0 | K111: 338479 | L111: Los trabajos se inciaron a finales del mes de noviembre; se relizaron los procesos de elaboración de fichas, suficiencias, licitaciones y contrataciones por lo que será hasta la Cuenta Pública donde se verán los Cierres definitivos de las obras de cada uno de los Comités del Presupuesto Participativo.
B112: O21NR1221 | C112: Cambio de tubos de albañal o drenaje de casas, dúplex y edificios de la súper manzana 2 (que van de 5 a 10 metros por conexión a colectores) | D112: 0 | E112: 0 | F112: 433885 | G112: 0 | H112: 433885 | I112: 433885 | J112: 0 | K112: 433885 | L112: Los trabajos se inciaron a finales del mes de noviembre; se relizaron los procesos de elaboración de fichas, suficiencias, licitaciones y contrataciones por lo que será hasta la Cuenta Pública donde se verán los Cierres definitivos de las obras de cada uno de los Comités del Presupuesto Participativo.
B113: O21NR1222 | C113: Rehabilitación y remodelación del parque y canchas de básquetbol de la sm7 en la u.h. narciso Mendoza villa Coapa. c.p.14390 (narciso Mendoza-villa Coapa súper manzana 7 (u hab)) | D113: 0 | E113: 0 | F113: 435714 | G113: 0 | H113: 435714 | I113: 435714 | J113: 0 | K113: 435714 | L113: Los trabajos se inciaron a finales del mes de noviembre; se relizaron los procesos de elaboración de fichas, suficiencias, licitaciones y contrataciones por lo que será hasta la Cuenta Pública donde se verán los Cierres definitivos de las obras de cada uno de los Comités del Presupuesto Participativo.
B114: O21NR1223 | C114: Instalación de celdas solares (rancho los colorines (fracc)) (clave 12-136), dentro del perímetro de la demarcación territorial. | D114: 0 | E114: 0 | F114: 313832 | G114: 0 | H114: 313832 | I114: 313832 | J114: 0 | K114: 313832 | L114: Los trabajos se inciaron a finales del mes de noviembre; se relizaron los procesos de elaboración de fichas, suficiencias, licitaciones y contrataciones por lo que será hasta la Cuenta Pública donde se verán los Cierres definitivos de las obras de cada uno de los Comités del Presupuesto Participativo.
B115: O21NR1224 | C115: Construcción de salón de usos múltiples techado beneficia 3800 habitantes de todas las edades para actividades recreativas culturales deportivas (residencial insurgentes sur (u ha | D115: 0 | E115: 0 | F115: 359000 | G115: 0 | H115: 359000 | I115: 359000 | J115: 0 | K115: 359000 | L115: Los trabajos se inciaron a finales del mes de noviembre; se relizaron los procesos de elaboración de fichas, suficiencias, licitaciones y contrataciones por lo que será hasta la Cuenta Pública donde se verán los Cierres definitivos de las obras de cada uno de los Comités del Presupuesto Participativo.
B116: O21NR1225 | C116: Mejoramiento de espacios públicos (sauzales cebadales (u hab)) (clave 12-164), dentro del perímetro de la demarcación territorial. | D116: 0 | E116: 0 | F116: 346835 | G116: 0 | H116: 346835 | I116: 346835 | J116: 0 | K116: 346835 | L116: Los trabajos se inciaron a finales del mes de noviembre; se relizaron los procesos de elaboración de fichas, suficiencias, licitaciones y contrataciones por lo que será hasta la Cuenta Pública donde se verán los Cierres definitivos de las obras de cada uno de los Comités del Presupuesto Participativo.
B117: O21NR1226 | C117: Cambio de la red de agua potable del interior de la u.h. tenorios 222 | D117: 0 | E117: 0 | F117: 388492 | G117: 0 | H117: 388492 | I117: 388492 | J117: 0 | K117: 388492 | L117: Los trabajos se inciaron a finales del mes de noviembre; se relizaron los procesos de elaboración de fichas, suficiencias, licitaciones y contrataciones por lo que será hasta la Cuenta Pública donde se verán los Cierres definitivos de las obras de cada uno de los Comités del Presupuesto Participativo.
B118: O21NR1227 | C118: Reencarpetado de la calle rincón fresales (villa del puente fovissste (u hab)) (clave 12-193), dentro del perímetro de la demarcación territorial. | D118: 0 | E118: 0 | F118: 318383 | G118: 0 | H118: 318383 | I118: 318383 | J118: 0 | K118: 318383 | L118: Los trabajos se inciaron a finales del mes de noviembre; se relizaron los procesos de elaboración de fichas, suficiencias, licitaciones y contrataciones por lo que será hasta la Cuenta Pública donde se verán los Cierres definitivos de las obras de cada uno de los Comités del Presupuesto Participativo.
B119: O21NR1228 | C119: Sustitución de válvulas deterioradas de la red hidráulica de la unidad (Villa Olímpica liberador Miguel Hidalgo (u hab)) (clave 12-195), dentro del perímetro de la demarcación. | D119: 0 | E119: 0 | F119: 372362 | G119: 0 | H119: 372362 | I119: 372362 | J119: 0 | K119: 372362 | L119: Los trabajos se inciaron a finales del mes de noviembre; se relizaron los procesos de elaboración de fichas, suficiencias, licitaciones y contrataciones por lo que será hasta la Cuenta Pública donde se verán los Cierres definitivos de las obras de cada uno de los Comités del Presupuesto Participativo.
B120: O21NR1229 | C120: Rehabilitación urbana a andador sin nombre (Zapote-Luis Donaldo Colosio (u habs)) (clave 12-204), dentro del perímetro de la demarcación territorial. | D120: 0 | E120: 0 | F120: 337910 | G120: 0 | H120: 337910 | I120: 337910 | J120: 0 | K120: 337910 | L120: Los trabajos se inciaron a finales del mes de noviembre; se relizaron los procesos de elaboración de fichas, suficiencias, licitaciones y contrataciones por lo que será hasta la Cuenta Pública donde se verán los Cierres definitivos de las obras de cada uno de los Comités del Presupuesto Participativo.
B121: O21NR1230 | C121: Continuación de proyecto reparación de la red hidráulica, mantenimiento y acondicionamiento en avenidas del arbolillo y sendero | D121: 0 | E121: 0 | F121: 393659 | G121: 0 | H121: 393659 | I121: 393659 | J121: 0 | K121: 393659 | L121: Los trabajos se inciaron a finales del mes de noviembre; se relizaron los procesos de elaboración de fichas, suficiencias, licitaciones y contrataciones por lo que será hasta la Cuenta Pública donde se verán los Cierres definitivos de las obras de cada uno de los Comités del Presupuesto Participativo.
B122: O21NR1231 | C122: Sustitución y mantenimiento a la red de distribución de agua potable incluyendo tubería, válvulas, y lo necesario para su funcionamiento (Fuentes Brotantes Miguel Hidalgo (u hab)) | D122: 0 | E122: 0 | F122: 556054 | G122: 0 | H122: 556054 | I122: 556054 | J122: 0 | K122: 556054 | L122: Los trabajos se inciaron a finales del mes de noviembre; se relizaron los procesos de elaboración de fichas, suficiencias, licitaciones y contrataciones por lo que será hasta la Cuenta Pública donde se verán los Cierres definitivos de las obras de cada uno de los Comités del Presupuesto Participativo.
B123: O21NR1239 | C123: Remodelación, demolición, ampliación, construcción y acabados del salón de usos múltiples con baños y oficina, en el jardín de Chimali (Hacienda San Juan-Rincón de San Juan-Chimali | D123: 0 | E123: 0 | F123: 545724 | G123: 0 | H123: 545724 | I123: 545724 | J123: 0 | K123: 545724 | L123: Los trabajos se inciaron a finales del mes de noviembre; se relizaron los procesos de elaboración de fichas, suficiencias, licitaciones y contrataciones por lo que será hasta la Cuenta Pública donde se verán los Cierres definitivos de las obras de cada uno de los Comités del Presupuesto Participativo.
B124: O21NR1240 | C124: Recuperación del parque del niño Jesús para rehabilitarlo para recreación y paseo de perros (niño Jesús (barr)) (clave 12-108), dentro del perímetro de la demarcación territorial. | D124: 0 | E124: 0 | F124: 361176 | G124: 0 | H124: 361176 | I124: 361176 | J124: 0 | K124: 361176 | L124: Los trabajos se inciaron a finales del mes de noviembre; se relizaron los procesos de elaboración de fichas, suficiencias, licitaciones y contrataciones por lo que será hasta la Cuenta Pública donde se verán los Cierres definitivos de las obras de cada uno de los Comités del Presupuesto Participativo.
B125: O21NR1241 | C125: Continuación de la barda de contención del centro comunitario (Ma Esther Zuno de Echeverria-Tlalpuente) (clave 12-092), dentro del perímetro de la demarcación territorial. | D125: 0 | E125: 0 | F125: 403053 | G125: 0 | H125: 403053 | I125: 403053 | J125: 0 | K125: 403053 | L125: Los trabajos se inciaron a finales del mes de noviembre; se relizaron los procesos de elaboración de fichas, suficiencias, licitaciones y contrataciones por lo que será hasta la Cuenta Pública donde se verán los Cierres definitivos de las obras de cada uno de los Comités del Presupuesto Participativo.
B126: O21NR1242 | C126: Adecuación del módulo de alheña de la colonia movimiento organizado de Tlalpan, como módulo multifuncional (movimiento organizado de Tlalpan-el Mirador (rncda)) (clave 12-102) | D126: 0 | E126: 0 | F126: 319770 | G126: 0 | H126: 319770 | I126: 319770 | J126: 0 | K126: 319770 | L126: Los trabajos se inciaron a finales del mes de noviembre; se relizaron los procesos de elaboración de fichas, suficiencias, licitaciones y contrataciones por lo que será hasta la Cuenta Pública donde se verán los Cierres definitivos de las obras de cada uno de los Comités del Presupuesto Participativo.
B127: O21NR1243 | C127: Mantenimiento al salón de usos múltiples para actividades físicas y manuales para personas de la tercera edad, jóvenes, adultos y niños (San Lorenzo Huipulco) (clave 12-153). | D127: 0 | E127: 0 | F127: 665835 | G127: 0 | H127: 665835 | I127: 665835 | J127: 0 | K127: 665835 | L127: Los trabajos se inciaron a finales del mes de noviembre; se relizaron los procesos de elaboración de fichas, suficiencias, licitaciones y contrataciones por lo que será hasta la Cuenta Pública donde se verán los Cierres definitivos de las obras de cada uno de los Comités del Presupuesto Participativo.
B128: O21NR1244 | C128: Rehabilitación e innovación San Fernando calle nueva Tlalpan (Tlalpan centro) (clave 12-177), dentro del perímetro de la Alcaldía de Tlalpan. | D128: 0 | E128: 0 | F128: 887082 | G128: 0 | H128: 887082 | I128: 887082 | J128: 0 | K128: 887082 | L128: Los trabajos se inciaron a finales del mes de noviembre; se relizaron los procesos de elaboración de fichas, suficiencias, licitaciones y contrataciones por lo que será hasta la Cuenta Pública donde se verán los Cierres definitivos de las obras de cada uno de los Comités del Presupuesto Participativo.
B129: O21NR1245 | C129: Obras de término y equipamiento, planta alta centro comunitario (víveros de Coactetlan) (clave 12-199), dentro del perímetro de la Alcaldía de Tlalpan. | D129: 0 | E129: 0 | F129: 450270 | G129: 0 | H129: 450270 | I129: 450270 | J129: 0 | K129: 450270 | L129: Los trabajos se inciaron a finales del mes de noviembre; se relizaron los procesos de elaboración de fichas, suficiencias, licitaciones y contrataciones por lo que será hasta la Cuenta Pública donde se verán los Cierres definitivos de las obras de cada uno de los Comités del Presupuesto Participativo.
B130: O21NR1246 | C130: Remodelación y mejoramiento del parque busto de Juárez 2021 (ampliación Miguel Hidalgo 2a secc) (clave 12-002), dentro del perímetro de la Alcaldía de Tlalpan. | D130: 0 | E130: 0 | F130: 1038834 | G130: 0 | H130: 1038834 | I130: 1038834 | J130: 0 | K130: 1038834 | L130: Los trabajos se inciaron a finales del mes de noviembre; se relizaron los procesos de elaboración de fichas, suficiencias, licitaciones y contrataciones por lo que será hasta la Cuenta Pública donde se verán los Cierres definitivos de las obras de cada uno de los Comités del Presupuesto Participativo.
B131: O21NR1247 | C131: Iluminación del parque "concordia" ubicado en la calle río San Buenaventura y cerrada río San Buenaventura (Arenal puerta Tepepan) ( clave 12-009). | D131: 0 | E131: 0 | F131: 356448 | G131: 0 | H131: 356448 | I131: 356448 | J131: 0 | K131: 356448 | L131: Los trabajos se inciaron a finales del mes de noviembre; se relizaron los procesos de elaboración de fichas, suficiencias, licitaciones y contrataciones por lo que será hasta la Cuenta Pública donde se verán los Cierres definitivos de las obras de cada uno de los Comités del Presupuesto Participativo.
B132: O21NR1248 | C132: Mantenimiento al parque para las madres (Calvario camisetas) (clave 12-017), dentro del perímetro de la Alcaldía de Tlalpan. | D132: 0 | E132: 0 | F132: 319806 | G132: 0 | H132: 319806 | I132: 319806 | J132: 0 | K132: 319806 | L132: Los trabajos se inciaron a finales del mes de noviembre; se relizaron los procesos de elaboración de fichas, suficiencias, licitaciones y contrataciones por lo que será hasta la Cuenta Pública donde se verán los Cierres definitivos de las obras de cada uno de los Comités del Presupuesto Participativo.
B133: O21NR1249 | C133: Embellecer el camellón de pról. Miramontes desde calle escuela a glorieta de Vaqueritos (Ex Hacienda San Juan de Dios) (clave 12-042). | D133: 0 | E133: 0 | F133: 512105 | G133: 0 | H133: 512105 | I133: 512105 | J133: 0 | K133: 512105 | L133: Los trabajos se inciaron a finales del mes de noviembre; se relizaron los procesos de elaboración de fichas, suficiencias, licitaciones y contrataciones por lo que será hasta la Cuenta Pública donde se verán los Cierres definitivos de las obras de cada uno de los Comités del Presupuesto Participativo.
B134: O21NR1250 | C134: Cambio de sistema de alumbrado de la colonia (Floresta-Prado-Vergel Coapa) (clave 12-043), dentro del perímetro de la Alcaldía de Tlalpan. | D134: 0 | E134: 0 | F134: 417912 | G134: 0 | H134: 417912 | I134: 417912 | J134: 0 | K134: 417912 | L134: Los trabajos se inciaron a finales del mes de noviembre; se relizaron los procesos de elaboración de fichas, suficiencias, licitaciones y contrataciones por lo que será hasta la Cuenta Pública donde se verán los Cierres definitivos de las obras de cada uno de los Comités del Presupuesto Participativo.
B135: O21NR1251 | C135: Construcción de cisterna para captación de agua pluvial para riego del parque los Ilusos (Fuentes del Pedregal) (clave 12-049), dentro del perímetro de la Alcaldía de Tlalpan. | D135: 0 | E135: 0 | F135: 606944 | G135: 0 | H135: 606944 | I135: 606944 | J135: 0 | K135: 606944 | L135: Los trabajos se inciaron a finales del mes de noviembre; se relizaron los procesos de elaboración de fichas, suficiencias, licitaciones y contrataciones por lo que será hasta la Cuenta Pública donde se verán los Cierres definitivos de las obras de cada uno de los Comités del Presupuesto Participativo.
B136: O21NR1252 | C136: Instalación de 12 (LUM) LED en el camellón de la calle sauzales (granjas Coapa oriente) (clave 12-051), dentro del perímetro de la Alcaldía de Tlalpan. | D136: 0 | E136: 0 | F136: 374300 | G136: 0 | H136: 374300 | I136: 374300 | J136: 0 | K136: 374300 | L136: Los trabajos se inciaron a finales del mes de noviembre; se relizaron los procesos de elaboración de fichas, suficiencias, licitaciones y contrataciones por lo que será hasta la Cuenta Pública donde se verán los Cierres definitivos de las obras de cada uno de los Comités del Presupuesto Participativo.
B137: O21NR1253 | C137: Rehabilitación de banqueta para caminar seguro en camino a la Marina (Héroes de 1910) (clave 12-055), dentro del perímetro de la Alcaldía de Tlalpan. | D137: 0 | E137: 0 | F137: 340952 | G137: 0 | H137: 340952 | I137: 340952 | J137: 0 | K137: 340952 | L137: Los trabajos se inciaron a finales del mes de noviembre; se relizaron los procesos de elaboración de fichas, suficiencias, licitaciones y contrataciones por lo que será hasta la Cuenta Pública donde se verán los Cierres definitivos de las obras de cada uno de los Comités del Presupuesto Participativo.
B138: O21NR1254 | C138: Recuperación de espacios públicos y colocación de malla con protección con tubulares y refuerzos (Isidro Fabela (ampl)) (clave 12-061). | D138: 0 | E138: 0 | F138: 353535 | G138: 0 | H138: 353535 | I138: 353535 | J138: 0 | K138: 353535 | L138: Los trabajos se inciaron a finales del mes de noviembre; se relizaron los procesos de elaboración de fichas, suficiencias, licitaciones y contrataciones por lo que será hasta la Cuenta Pública donde se verán los Cierres definitivos de las obras de cada uno de los Comités del Presupuesto Participativo.
B139: O21NR1255 | C139: Cierre del cruce entre calle Reforma agraria y Viaducto Tlalpan (Isssfam no. 1 (u hab)-villa Tlalpan) (clave 12-062), dentro del perímetro de la Alcaldía de Tlalpan. | D139: 0 | E139: 0 | F139: 353519 | G139: 0 | H139: 353519 | I139: 353519 | J139: 0 | K139: 353519 | L139: Los trabajos se inciaron a finales del mes de noviembre; se relizaron los procesos de elaboración de fichas, suficiencias, licitaciones y contrataciones por lo que será hasta la Cuenta Pública donde se verán los Cierres definitivos de las obras de cada uno de los Comités del Presupuesto Participativo.
B140: O21NR1256 | C140: Mantenimiento de 30 luminarias suburbanas de LED´S con poste metálico de 6 metros y brazo de 1 metro: en ampliación la venta (jardines de San Juan) (clave 12-065). | D140: 0 | E140: 0 | F140: 577546 | G140: 0 | H140: 577546 | I140: 577546 | J140: 0 | K140: 577546 | L140: Los trabajos se inciaron a finales del mes de noviembre; se relizaron los procesos de elaboración de fichas, suficiencias, licitaciones y contrataciones por lo que será hasta la Cuenta Pública donde se verán los Cierres definitivos de las obras de cada uno de los Comités del Presupuesto Participativo.
B141: O21NR1257 | C141: Mantenimiento de alumbrado público en toda la colonia (jardines del Ajusco) (clave 12-066), dentro del perímetro de la Alcaldía de Tlalpan. | D141: 0 | E141: 0 | F141: 470689 | G141: 0 | H141: 470689 | I141: 470689 | J141: 0 | K141: 470689 | L141: Los trabajos se inciaron a finales del mes de noviembre; se relizaron los procesos de elaboración de fichas, suficiencias, licitaciones y contrataciones por lo que será hasta la Cuenta Pública donde se verán los Cierres definitivos de las obras de cada uno de los Comités del Presupuesto Participativo.
B142: O21NR1258 | C142: Construcción de un paso peatonal sobre el río Temporal (La libertad - Ixtlahuaca) (clave 12-073), dentro del perímetro de la Alcaldía de Tlalpan. | D142: 0 | E142: 0 | F142: 328062 | G142: 0 | H142: 328062 | I142: 328062 | J142: 0 | K142: 328062 | L142: Los trabajos se inciaron a finales del mes de noviembre; se relizaron los procesos de elaboración de fichas, suficiencias, licitaciones y contrataciones por lo que será hasta la Cuenta Pública donde se verán los Cierres definitivos de las obras de cada uno de los Comités del Presupuesto Participativo.
B143: O21NR1259 | C143: Rehabilitación del andador peatonal en parada la Palma desde retorno la Palma, hasta la capilla nuestra señora de Guadalupe, calle Oyamel (La Palma) (clave 12-075). | D143: 0 | E143: 0 | F143: 396598 | G143: 0 | H143: 396598 | I143: 396598 | J143: 0 | K143: 396598 | L143: Los trabajos se inciaron a finales del mes de noviembre; se relizaron los procesos de elaboración de fichas, suficiencias, licitaciones y contrataciones por lo que será hasta la Cuenta Pública donde se verán los Cierres definitivos de las obras de cada uno de los Comités del Presupuesto Participativo.
B144: O21NR1260 | C144: Rehabilitación y mantenimiento de bancas para descanso, reforestación y balizamiento para las calles de la colonia la primavera (La primavera) (clave 12-076). | D144: 0 | E144: 0 | F144: 391035 | G144: 0 | H144: 391035 | I144: 391035 | J144: 0 | K144: 391035 | L144: Los trabajos se inciaron a finales del mes de noviembre; se relizaron los procesos de elaboración de fichas, suficiencias, licitaciones y contrataciones por lo que será hasta la Cuenta Pública donde se verán los Cierres definitivos de las obras de cada uno de los Comités del Presupuesto Participativo.
B145: O21NR1261 | C145: Ampliar, acondicionar y embellecer el área que se propone y equipar con juegos infantiles para sana recreación y esparcimiento en un ambiente apacible (clave 12-079). | D145: 0 | E145: 0 | F145: 560910 | G145: 0 | H145: 560910 | I145: 560910 | J145: 0 | K145: 560910 | L145: Los trabajos se inciaron a finales del mes de noviembre; se relizaron los procesos de elaboración de fichas, suficiencias, licitaciones y contrataciones por lo que será hasta la Cuenta Pública donde se verán los Cierres definitivos de las obras de cada uno de los Comités del Presupuesto Participativo.
B146: O21NR1262 | C146: Construcción de arco de piedra para reconocimiento de la colonia (Lomas de Padierna (ampl)) (clave 12-082) | D146: 0 | E146: 0 | F146: 298611 | G146: 0 | H146: 298611 | I146: 298611 | J146: 0 | K146: 298611 | L146: Los trabajos se inciaron a finales del mes de noviembre; se relizaron los procesos de elaboración de fichas, suficiencias, licitaciones y contrataciones por lo que será hasta la Cuenta Pública donde se verán los Cierres definitivos de las obras de cada uno de los Comités del Presupuesto Participativo.
B147: O21NR1263 | C147: Rehabilitación y mantenimiento de alumbrado en la primera cerrada de los pastores (Los pastores) (clave 12-088). | D147: 0 | E147: 0 | F147: 308217 | G147: 0 | H147: 308217 | I147: 308217 | J147: 0 | K147: 308217 | L147: Los trabajos se inciaron a finales del mes de noviembre; se relizaron los procesos de elaboración de fichas, suficiencias, licitaciones y contrataciones por lo que será hasta la Cuenta Pública donde se verán los Cierres definitivos de las obras de cada uno de los Comités del Presupuesto Participativo.
B148: O21NR1264 | C148: Remodelación y nivelación de banquetas en calle sauzales, con bolardos en las esquinas (Coapa-villa Cuemanco) (clave 12-093), dentro del perímetro de la demarcación territorial. | D148: 0 | E148: 0 | F148: 380396 | G148: 0 | H148: 380396 | I148: 380396 | J148: 0 | K148: 380396 | L148: Los trabajos se inciaron a finales del mes de noviembre; se relizaron los procesos de elaboración de fichas, suficiencias, licitaciones y contrataciones por lo que será hasta la Cuenta Pública donde se verán los Cierres definitivos de las obras de cada uno de los Comités del Presupuesto Participativo.
B149: O21NR1265 | C149: Instalación de luminarias de última generación para proyecto de iluminación especial en toda la colonia: seguridad, cuidado ambiental y recuperación de espacios | D149: 0 | E149: 0 | F149: 337436 | G149: 0 | H149: 337436 | I149: 337436 | J149: 0 | K149: 337436 | L149: Los trabajos se inciaron a finales del mes de noviembre; se relizaron los procesos de elaboración de fichas, suficiencias, licitaciones y contrataciones por lo que será hasta la Cuenta Pública donde se verán los Cierres definitivos de las obras de cada uno de los Comités del Presupuesto Participativo.
B150: O21NR1266 | C150: Reparación de banquetas y nivelación de andadores (Narciso Mendoza-villa Coapa súper manzana 2 (u hab)) (clave 12-104), dentro del perímetro de la demarcación territorial. | D150: 0 | E150: 0 | F150: 416384 | G150: 0 | H150: 416384 | I150: 416384 | J150: 0 | K150: 416384 | L150: Los trabajos se inciaron a finales del mes de noviembre; se relizaron los procesos de elaboración de fichas, suficiencias, licitaciones y contrataciones por lo que será hasta la Cuenta Pública donde se verán los Cierres definitivos de las obras de cada uno de los Comités del Presupuesto Participativo.
B151: O21NR1267 | C151: Instalación de luminarias led de 100 watts en zonas necesarias (postes) de la súper manzana 6 (Narciso Mendoza-villa Coapa súper manzana 6 (u hab)) (clave 12-106) | D151: 0 | E151: 0 | F151: 450456 | G151: 0 | H151: 450456 | I151: 450456 | J151: 0 | K151: 450456 | L151: Los trabajos se inciaron a finales del mes de noviembre; se relizaron los procesos de elaboración de fichas, suficiencias, licitaciones y contrataciones por lo que será hasta la Cuenta Pública donde se verán los Cierres definitivos de las obras de cada uno de los Comités del Presupuesto Participativo.
B152: O21NR1268 | C152: Construcción de salón de usos múltiples en calle Caoba (juventud unida) (clave 12-068), dentro del perímetro de la demarcación territorial. | D152: 0 | E152: 0 | F152: 339784 | G152: 0 | H152: 339784 | I152: 339784 | J152: 0 | K152: 339784 | L152: Los trabajos se inciaron a finales del mes de noviembre; se relizaron los procesos de elaboración de fichas, suficiencias, licitaciones y contrataciones por lo que será hasta la Cuenta Pública donde se verán los Cierres definitivos de las obras de cada uno de los Comités del Presupuesto Participativo.
B153: O21NR1269 | C153: Mantenimiento de Luminarias led - mejora de la iluminación de la colonia (Parques del Pedregal) (clave 12-114) | D153: 0 | E153: 0 | F153: 406476 | G153: 0 | H153: 406476 | I153: 406476 | J153: 0 | K153: 406476 | L153: Los trabajos se inciaron a finales del mes de noviembre; se relizaron los procesos de elaboración de fichas, suficiencias, licitaciones y contrataciones por lo que será hasta la Cuenta Pública donde se verán los Cierres definitivos de las obras de cada uno de los Comités del Presupuesto Participativo.
B154: O21NR1270 | C154: Construcción del camellón central en la calle Lacandones (Pedregal de las águilas) (clave 12-116) | D154: 0 | E154: 0 | F154: 392925 | G154: 0 | H154: 392925 | I154: 392925 | J154: 0 | K154: 392925 | L154: Los trabajos se inciaron a finales del mes de noviembre; se relizaron los procesos de elaboración de fichas, suficiencias, licitaciones y contrataciones por lo que será hasta la Cuenta Pública donde se verán los Cierres definitivos de las obras de cada uno de los Comités del Presupuesto Participativo.
B155: O21NR1271 | C155: Mantenimiento del techado de las canchas de las calles Yaxcaba y Tixkokob (pedregal de San Nicolás 2a secc) (clave 12-118) | D155: 0 | E155: 0 | F155: 719418 | G155: 0 | H155: 719418 | I155: 719418 | J155: 0 | K155: 719418 | L155: Los trabajos se inciaron a finales del mes de noviembre; se relizaron los procesos de elaboración de fichas, suficiencias, licitaciones y contrataciones por lo que será hasta la Cuenta Pública donde se verán los Cierres definitivos de las obras de cada uno de los Comités del Presupuesto Participativo.
B156: O21NR1272 | C156: Mantenimiento de pasto en cancha de futbol rápido y acondicionar cancha de basquetbol, para hacerla de volibol, cuando se requiera, en deportivo Ismael Reséndiz (Pedregal de Santa | D156: 0 | E156: 0 | F156: 480097 | G156: 0 | H156: 480097 | I156: 480097 | J156: 0 | K156: 480097 | L156: Los trabajos se inciaron a finales del mes de noviembre; se relizaron los procesos de elaboración de fichas, suficiencias, licitaciones y contrataciones por lo que será hasta la Cuenta Pública donde se verán los Cierres definitivos de las obras de cada uno de los Comités del Presupuesto Participativo.
B157: O21NR1273 | C157: Construcción de sistema de reciclaje de aguas grises para rancho los Colorines (Rancho los Colorines (fracc)) (clave 12-136) | D157: 0 | E157: 0 | F157: 311316 | G157: 0 | H157: 311316 | I157: 311316 | J157: 0 | K157: 311316 | L157: Los trabajos se inciaron a finales del mes de noviembre; se relizaron los procesos de elaboración de fichas, suficiencias, licitaciones y contrataciones por lo que será hasta la Cuenta Pública donde se verán los Cierres definitivos de las obras de cada uno de los Comités del Presupuesto Participativo.
B158: O21NR1274 | C158: Rehabilitación de jardineras en las banquetas, pintar todas las fachadas, pintar guarniciones y señalamientos. Colocar nombre de calles (San Pedro Apóstol (barr)) (clave 12-159) | D158: 0 | E158: 0 | F158: 307542 | G158: 0 | H158: 307542 | I158: 307542 | J158: 0 | K158: 307542 | L158: Los trabajos se inciaron a finales del mes de noviembre; se relizaron los procesos de elaboración de fichas, suficiencias, licitaciones y contrataciones por lo que será hasta la Cuenta Pública donde se verán los Cierres definitivos de las obras de cada uno de los Comités del Presupuesto Participativo.
B159: O21NR1275 | C159: Instalación de luminarias públicas con paneles solares integrados para mayor seguridad (Santa Úrsula Xitla) (clave 12-161) | D159: 0 | E159: 0 | F159: 977404 | G159: 0 | H159: 977404 | I159: 977404 | J159: 0 | K159: 977404 | L159: Los trabajos se inciaron a finales del mes de noviembre; se relizaron los procesos de elaboración de fichas, suficiencias, licitaciones y contrataciones por lo que será hasta la Cuenta Pública donde se verán los Cierres definitivos de las obras de cada uno de los Comités del Presupuesto Participativo.
B160: O21NR1276 | C160: Instalación de postes de 7.5 m en la colonia Tepetlica el alto (Tepetlica el alto-3 de mayo) (clave 12-170), dentro del perímetro de la demarcación territorial. | D160: 0 | E160: 0 | F160: 353384 | G160: 0 | H160: 353384 | I160: 353384 | J160: 0 | K160: 353384 | L160: Los trabajos se inciaron a finales del mes de noviembre; se relizaron los procesos de elaboración de fichas, suficiencias, licitaciones y contrataciones por lo que será hasta la Cuenta Pública donde se verán los Cierres definitivos de las obras de cada uno de los Comités del Presupuesto Participativo.
B161: O21NR1277 | C161: Colocación de protecciones de jardineras (Tlalmille) (clave 12-176), dentro del perímetro de la demarcación territorial. | D161: 0 | E161: 0 | F161: 364124 | G161: 0 | H161: 364124 | I161: 364124 | J161: 0 | K161: 364124 | L161: Los trabajos se inciaron a finales del mes de noviembre; se relizaron los procesos de elaboración de fichas, suficiencias, licitaciones y contrataciones por lo que será hasta la Cuenta Pública donde se verán los Cierres definitivos de las obras de cada uno de los Comités del Presupuesto Participativo.
B162: O21NR1278 | C162: Rehabilitación del nodo cultural Toriello Guerra. Espacio dedicado para las artes en el jardín Toriello. Centro de reunión para toda la población (Toriello guerra) (clave 12-180) | D162: 0 | E162: 0 | F162: 729136 | G162: 0 | H162: 729136 | I162: 729136 | J162: 0 | K162: 729136 | L162: Los trabajos se inciaron a finales del mes de noviembre; se relizaron los procesos de elaboración de fichas, suficiencias, licitaciones y contrataciones por lo que será hasta la Cuenta Pública donde se verán los Cierres definitivos de las obras de cada uno de los Comités del Presupuesto Participativo.
B163: O21NR1279 | C163: Instalación de alumbrado público para toda la colonia (Valle de Tepepan) (clave 12-183), dentro del perímetro de la demarcación territorial. | D163: 0 | E163: 0 | F163: 407691 | G163: 0 | H163: 407691 | I163: 407691 | J163: 0 | K163: 407691 | L163: Los trabajos se inciaron a finales del mes de noviembre; se relizaron los procesos de elaboración de fichas, suficiencias, licitaciones y contrataciones por lo que será hasta la Cuenta Pública donde se verán los Cierres definitivos de las obras de cada uno de los Comités del Presupuesto Participativo.
B164: O21NR1280 | C164: Segunda etapa: recuperación áreas verdes y suelo permeable (Valle Escondido) (clave 12-184) | D164: 0 | E164: 0 | F164: 410785 | G164: 0 | H164: 410785 | I164: 410785 | J164: 0 | K164: 410785 | L164: Los trabajos se inciaron a finales del mes de noviembre; se relizaron los procesos de elaboración de fichas, suficiencias, licitaciones y contrataciones por lo que será hasta la Cuenta Pública donde se verán los Cierres definitivos de las obras de cada uno de los Comités del Presupuesto Participativo.
B165: O21NR1281 | C165: Remodelación total de la sección parques vergel de Coyoacán (Vergel de Coyoacán-Vergel del sur) (clave 12-188), dentro del perímetro de la demarcación territorial. | D165: 0 | E165: 0 | F165: 436853 | G165: 0 | H165: 436853 | I165: 436853 | J165: 0 | K165: 436853 | L165: Los trabajos se inciaron a finales del mes de noviembre; se relizaron los procesos de elaboración de fichas, suficiencias, licitaciones y contrataciones por lo que será hasta la Cuenta Pública donde se verán los Cierres definitivos de las obras de cada uno de los Comités del Presupuesto Participativo.
B166: O21NR1282 | C166: Balizamiento para toda la colonia y velarías para el parque (paraje y portillo) (Villa Coapa (rdcial)) (clave 12-191), dentro del perímetro de la demarcación territorial. | D166: 0 | E166: 0 | F166: 381710 | G166: 0 | H166: 381710 | I166: 381710 | J166: 0 | K166: 381710 | L166: Los trabajos se inciaron a finales del mes de noviembre; se relizaron los procesos de elaboración de fichas, suficiencias, licitaciones y contrataciones por lo que será hasta la Cuenta Pública donde se verán los Cierres definitivos de las obras de cada uno de los Comités del Presupuesto Participativo.
B167: O21NR1283 | C167: Rehabilitación del "callejón zapote" (Zapote-Luis Donaldo Colosio (u hab)) (clave 12-204), dentro del perímetro de la Alcaldía Tlalpan | D167: 0 | E167: 0 | F167: 320331 | G167: 0 | H167: 320331 | I167: 320331 | J167: 0 | K167: 320331 | L167: Los trabajos se inciaron a finales del mes de noviembre; se relizaron los procesos de elaboración de fichas, suficiencias, licitaciones y contrataciones por lo que será hasta la Cuenta Pública donde se verán los Cierres definitivos de las obras de cada uno de los Comités del Presupuesto Participativo.
B168: O21NR1284 | C168: Pavimentación de calle poniente Padilla (Amsa) (clave 12-005), dentro del perímetro de la Alcaldía Tlalpan | D168: 0 | E168: 0 | F168: 352099 | G168: 0 | H168: 352099 | I168: 352099 | J168: 0 | K168: 352099 | L168: Los trabajos se inciaron a finales del mes de noviembre; se relizaron los procesos de elaboración de fichas, suficiencias, licitaciones y contrataciones por lo que será hasta la Cuenta Pública donde se verán los Cierres definitivos de las obras de cada uno de los Comités del Presupuesto Participativo.
B169: O21NR1285 | C169: Reencarpetamiento calles del fraccionamiento Rinconada Coapa 2a sección (Coapa 2a sección-Ramos Millán) (clave 12-024), dentro del perímetro de la demarcación territorial. | D169: 0 | E169: 0 | F169: 404171 | G169: 0 | H169: 404171 | I169: 404171 | J169: 0 | K169: 404171 | L169: Los trabajos se inciaron a finales del mes de noviembre; se relizaron los procesos de elaboración de fichas, suficiencias, licitaciones y contrataciones por lo que será hasta la Cuenta Pública donde se verán los Cierres definitivos de las obras de cada uno de los Comités del Presupuesto Participativo.
B170: O21NR1286 | C170: Pavimentación calle alta tensión (Dolores Tlali) (clave 12-034), dentro del perímetro de la Alcaldía Tlalpan | D170: 0 | E170: 0 | F170: 333056 | G170: 0 | H170: 333056 | I170: 333056 | J170: 0 | K170: 333056 | L170: Los trabajos se inciaron a finales del mes de noviembre; se relizaron los procesos de elaboración de fichas, suficiencias, licitaciones y contrataciones por lo que será hasta la Cuenta Pública donde se verán los Cierres definitivos de las obras de cada uno de los Comités del Presupuesto Participativo.
B171: O21NR1287 | C171: Reencarpetado de la calle Sebastián Lerdo de Tejada (Jardines Coapa-Belisario Domínguez) (clave 12-064), dentro del perímetro de la demarcación territorial. | D171: 0 | E171: 0 | F171: 341311 | G171: 0 | H171: 341311 | I171: 341311 | J171: 0 | K171: 341311 | L171: Los trabajos se inciaron a finales del mes de noviembre; se relizaron los procesos de elaboración de fichas, suficiencias, licitaciones y contrataciones por lo que será hasta la Cuenta Pública donde se verán los Cierres definitivos de las obras de cada uno de los Comités del Presupuesto Participativo.
B172: O21NR1288 | C172: Reencarpetamiento de la calle Chalpultenango de f.f.c.c. a Cuernavaca a Hecelchacan (Lomas del pedregal) (clave 12-085), dentro del perímetro de la demarcación territorial. | D172: 0 | E172: 0 | F172: 332262 | G172: 0 | H172: 332262 | I172: 332262 | J172: 0 | K172: 332262 | L172: Los trabajos se inciaron a finales del mes de noviembre; se relizaron los procesos de elaboración de fichas, suficiencias, licitaciones y contrataciones por lo que será hasta la Cuenta Pública donde se verán los Cierres definitivos de las obras de cada uno de los Comités del Presupuesto Participativo.
B173: O21NR1289 | C173: Reencarpetado de calle Tekax entre f.f.c.c. y Dzibalchem (Los encinos) (clave 12-087), dentro del perímetro de la demarcación territorial. | D173: 0 | E173: 0 | F173: 425649 | G173: 0 | H173: 425649 | I173: 425649 | J173: 0 | K173: 425649 | L173: Los trabajos se inciaron a finales del mes de noviembre; se relizaron los procesos de elaboración de fichas, suficiencias, licitaciones y contrataciones por lo que será hasta la Cuenta Pública donde se verán los Cierres definitivos de las obras de cada uno de los Comités del Presupuesto Participativo.
B174: O21NR1290 | C174: Reencarpetado calle Cuauhtemotzin (Miguel Hidalgo) (clave 12-095), dentro del perímetro de la demarcación territorial. | D174: 0 | E174: 0 | F174: 956256 | G174: 0 | H174: 956256 | I174: 956256 | J174: 0 | K174: 956256 | L174: Los trabajos se inciaron a finales del mes de noviembre; se relizaron los procesos de elaboración de fichas, suficiencias, licitaciones y contrataciones por lo que será hasta la Cuenta Pública donde se verán los Cierres definitivos de las obras de cada uno de los Comités del Presupuesto Participativo.
B175: O21NR1291 | C175: Pavimentación para la calle camino antiguo a Xicalco y confederación nacional de la pequeña propiedad, a espaldas de la primaria (Plan de Ayala) (clave 12-125) | D175: 0 | E175: 0 | F175: 353837 | G175: 0 | H175: 353837 | I175: 353837 | J175: 0 | K175: 353837 | L175: Los trabajos se inciaron a finales del mes de noviembre; se relizaron los procesos de elaboración de fichas, suficiencias, licitaciones y contrataciones por lo que será hasta la Cuenta Pública donde se verán los Cierres definitivos de las obras de cada uno de los Comités del Presupuesto Participativo.
B176: O21NR1292 | C176: Rehabilitación de adoquín en la c. Gral. Aguirre y José de Jesús entre Fco. Villa y G. Lobo y reacomodo en la c. Eulalio Gutiérrez entre Fco. Villa y G. Lobo | D176: 0 | E176: 0 | F176: 342073 | G176: 0 | H176: 342073 | I176: 342073 | J176: 0 | K176: 342073 | L176: Los trabajos se inciaron a finales del mes de noviembre; se relizaron los procesos de elaboración de fichas, suficiencias, licitaciones y contrataciones por lo que será hasta la Cuenta Pública donde se verán los Cierres definitivos de las obras de cada uno de los Comités del Presupuesto Participativo.
B177: O21NR1293 | C177: Reencarpetado de la calle Francisco Villa en la colonia San Bartolo el chico (San Bartolo el chico) (clave 12-148), dentro del perímetro de la demarcación territorial. | D177: 0 | E177: 0 | F177: 416457 | G177: 0 | H177: 416457 | I177: 416457 | J177: 0 | K177: 416457 | L177: Los trabajos se inciaron a finales del mes de noviembre; se relizaron los procesos de elaboración de fichas, suficiencias, licitaciones y contrataciones por lo que será hasta la Cuenta Pública donde se verán los Cierres definitivos de las obras de cada uno de los Comités del Presupuesto Participativo.
B178: O21NR1294 | C178: Reacondicionamiento de la carpeta asfáltica (Tlalcoligia) (clave 12-175), dentro del perímetro de la demarcación territorial. | D178: 0 | E178: 0 | F178: 660092 | G178: 0 | H178: 660092 | I178: 660092 | J178: 0 | K178: 660092 | L178: Los trabajos se inciaron a finales del mes de noviembre; se relizaron los procesos de elaboración de fichas, suficiencias, licitaciones y contrataciones por lo que será hasta la Cuenta Pública donde se verán los Cierres definitivos de las obras de cada uno de los Comités del Presupuesto Participativo.
B179: O21NR1295 | C179: Pavimentación en toda la calle cerezos desde cerrada y hasta el final (Xaxalipac) (clave 12-201), dentro del perímetro de la demarcación territorial. | D179: 0 | E179: 0 | F179: 376413 | G179: 0 | H179: 376413 | I179: 376413 | J179: 0 | K179: 376413 | L179: Los trabajos se inciaron a finales del mes de noviembre; se relizaron los procesos de elaboración de fichas, suficiencias, licitaciones y contrataciones por lo que será hasta la Cuenta Pública donde se verán los Cierres definitivos de las obras de cada uno de los Comités del Presupuesto Participativo.
B180: O21NR1296 | C180: Reencarpetado de la avenida del regidor en el Narciso Mendoza villa campo SM8 (u-h) (Narciso Mendoza villa Coapa supermanzana 8 (u hab)) (clave 12-217) | D180: 0 | E180: 0 | F180: 379201 | G180: 0 | H180: 379201 | I180: 379201 | J180: 0 | K180: 379201 | L180: Los trabajos se inciaron a finales del mes de noviembre; se relizaron los procesos de elaboración de fichas, suficiencias, licitaciones y contrataciones por lo que será hasta la Cuenta Pública donde se verán los Cierres definitivos de las obras de cada uno de los Comités del Presupuesto Participativo.
B181: O21NR1297 | C181: Construcción de Nueva red de agua potable en calle cerrada de paseo de los limoneros (La tortuga Xolalpa-hco colegio militar) (clave 12-077) | D181: 0 | E181: 0 | F181: 487189 | G181: 0 | H181: 487189 | I181: 487189 | J181: 0 | K181: 487189 | L181: Los trabajos se inciaron a finales del mes de noviembre; se relizaron los procesos de elaboración de fichas, suficiencias, licitaciones y contrataciones por lo que será hasta la Cuenta Pública donde se verán los Cierres definitivos de las obras de cada uno de los Comités del Presupuesto Participativo.
B182: O21NR1298 | C182: Rehabilitación de red hidráulica (Oriente (ampl)) (clave 12-112) | D182: 0 | E182: 0 | F182: 309430 | G182: 0 | H182: 309430 | I182: 309430 | J182: 0 | K182: 309430 | L182: Los trabajos se inciaron a finales del mes de noviembre; se relizaron los procesos de elaboración de fichas, suficiencias, licitaciones y contrataciones por lo que será hasta la Cuenta Pública donde se verán los Cierres definitivos de las obras de cada uno de los Comités del Presupuesto Participativo.
B183: O21NR1299 | C183: Mantenimiento y Cambio de válvulas de distribución de agua del cuarto de bombas a cada sector de la unidad sauzales-cebadales 83 col. Granjas Coapa | D183: 0 | E183: 0 | F183: 341280 | G183: 0 | H183: 341280 | I183: 341280 | J183: 0 | K183: 341280 | L183: Los trabajos se inciaron a finales del mes de noviembre; se relizaron los procesos de elaboración de fichas, suficiencias, licitaciones y contrataciones por lo que será hasta la Cuenta Pública donde se verán los Cierres definitivos de las obras de cada uno de los Comités del Presupuesto Participativo.
B184: O21NR1300 | C184: Construcción de resumidero en la esquina de c. Guadalupana (Tecatitla) con cda 2a Tecatitla (la Guadalupana) (clave 12-071), dentro del perímetro de la demarcación territorial. | D184: 0 | E184: 0 | F184: 404466 | G184: 0 | H184: 404466 | I184: 404466 | J184: 0 | K184: 404466 | L184: FAIS PRESUPUESTO PARTICIPATIVO DG: 65 Estos recursos se contrataron a afinales de noviembre por lo cual no hay avance físico realizado y será hasta el Cierre de la Cuenta Pública del ejercicio 2021, donde se verá la meta realizada al 100% terminada
B185: O21NR1301 | C185: Construcción de drenaje (La Joya) (clave 12-072), dentro del perímetro de la demarcación territorial. | D185: 0 | E185: 0 | F185: 401676 | G185: 0 | H185: 401676 | I185: 401676 | J185: 0 | K185: 401676 | L185: FAIS PRESUPUESTO PARTICIPATIVO DG: 65 Estos recursos se contrataron a afinales de noviembre por lo cual no hay avance físico realizado y será hasta el Cierre de la Cuenta Pública del ejercicio 2021, donde se verá la meta realizada al 100% terminada
B186: O21NR1302 | C186: Mantenimiento al Drenaje en toda la colonia (San Miguel Tehuisco-los Angeles-Ayometitla) (clave 12-156) | D186: 0 | E186: 0 | F186: 413302 | G186: 0 | H186: 413302 | I186: 413302 | J186: 0 | K186: 413302 | L186: FAIS PRESUPUESTO PARTICIPATIVO DG: 65 Estos recursos se contrataron a afinales de noviembre por lo cual no hay avance físico realizado y será hasta el Cierre de la Cuenta Pública del ejercicio 2021, donde se verá la meta realizada al 100% terminada
B187: O21NR1303 | C187: Construcción de drenaje pluvial con pozo de absorción o cosecha de agua en las calles Emiliano Zapata y callejón San Francisco (villa Lázaro Cárdenas) (clave 12-194) | D187: 0 | E187: 0 | F187: 522113 | G187: 0 | H187: 522113 | I187: 522113 | J187: 0 | K187: 522113 | L187: FAIS PRESUPUESTO PARTICIPATIVO DG: 65 Estos recursos se contrataron a afinales de noviembre por lo cual no hay avance físico realizado y será hasta el Cierre de la Cuenta Pública del ejercicio 2021, donde se verá la meta realizada al 100% terminada
B188: O21NR1424 | C188: Pavimentación de todas las calles del pueblo de San Andrés Totoltepec (clave 12-147) dentro del perímetro de la Alcaldía Tlalpan. | D188: 0 | E188: 0 | F188: 2247563 | G188: 0 | H188: 2247563 | I188: 2247563 | J188: 0 | K188: 2247563 | L188: Los trabajos se inciaron a finales del mes de noviembre; se relizaron los procesos de elaboración de fichas, suficiencias, licitaciones y contrataciones por lo que será hasta la Cuenta Pública donde se verán los Cierres definitivos de las obras de cada uno de los Comités del Presupuesto Participativo.
B189: O21NR1425 | C189: Construcción de gradas, barandales, baños y todo lo necesario para que el Ruedo de San Miguel Ajusco este en funcionamiento, Presupuesto participativo 2020 | D189: 0 | E189: 0 | F189: 1288742 | G189: 0 | H189: 1288742 | I189: 1288742 | J189: 0 | K189: 1288742 | L189: Los trabajos se inciaron a finales del mes de noviembre; se relizaron los procesos de elaboración de fichas, suficiencias, licitaciones y contrataciones por lo que será hasta la Cuenta Pública donde se verán los Cierres definitivos de las obras de cada uno de los Comités del Presupuesto Participativo.
B190: O21NR1426 | C190: Pavimentación asfáltica de todas las calles del pueblo de San Miguel Topilejo (clave 12-157), dentro del perímetro de la Alcaldía Tlalpan. | D190: 0 | E190: 0 | F190: 2026143 | G190: 0 | H190: 2026143 | I190: 2026143 | J190: 0 | K190: 2026143 | L190: Los trabajos se inciaron a finales del mes de noviembre; se relizaron los procesos de elaboración de fichas, suficiencias, licitaciones y contrataciones por lo que será hasta la Cuenta Pública donde se verán los Cierres definitivos de las obras de cada uno de los Comités del Presupuesto Participativo.
B191: O21NR1427 | C191: Rehabilitación integral del kiosko e iluminación en toda la plaza San Pedro Martir (clave 12-160) dentro de la demarcación territorial | D191: 0 | E191: 0 | F191: 1450856 | G191: 0 | H191: 1450856 | I191: 1450856 | J191: 0 | K191: 1450856 | L191: Los trabajos se inciaron a finales del mes de noviembre; se relizaron los procesos de elaboración de fichas, suficiencias, licitaciones y contrataciones por lo que será hasta la Cuenta Pública donde se verán los Cierres definitivos de las obras de cada uno de los Comités del Presupuesto Participativo.
B192: O21NR1428 | C192: Mejoramiento de la Plaza de Toros (techado de plaza conformación del espacio con material ecológico y construcción de baños públicos) (Clave 12-163) | D192: 0 | E192: 0 | F192: 1373368 | G192: 0 | H192: 1373368 | I192: 1373368 | J192: 0 | K192: 1373368 | L192: Los trabajos se inciaron a finales del mes de noviembre; se relizaron los procesos de elaboración de fichas, suficiencias, licitaciones y contrataciones por lo que será hasta la Cuenta Pública donde se verán los Cierres definitivos de las obras de cada uno de los Comités del Presupuesto Participativo.
B193: O21NR1429 | C193: Pavimentación de todas las calles del pueblo de San Andres Totoltepec (clave 12-147) Presupuesto Particpativo 2021 | D193: 0 | E193: 0 | F193: 2095269 | G193: 0 | H193: 2095269 | I193: 2095269 | J193: 0 | K193: 2095269 | L193: Los trabajos se inciaron a finales del mes de noviembre; se relizaron los procesos de elaboración de fichas, suficiencias, licitaciones y contrataciones por lo que será hasta la Cuenta Pública donde se verán los Cierres definitivos de las obras de cada uno de los Comités del Presupuesto Participativo.
B194: O21NR1430 | C194: Construcción de gradas, barandales, baños y todo lo necesario para que el Ruedo de San Miguel Ajusco este en funcionamiento, Presupuesto participativo 2021 | D194: 0 | E194: 0 | F194: 1251369 | G194: 0 | H194: 1251369 | I194: 1251369 | J194: 0 | K194: 1251369 | L194: Los trabajos se inciaron a finales del mes de noviembre; se relizaron los procesos de elaboración de fichas, suficiencias, licitaciones y contrataciones por lo que será hasta la Cuenta Pública donde se verán los Cierres definitivos de las obras de cada uno de los Comités del Presupuesto Participativo.
B195: O21NR1431 | C195: Pavimentación asfáltica de todas las calles del pueblo de San Miguel Topilejo (clave 12-157), dentro del perímetro de la Alcaldía Tlalpan. Presuspuesto Participativo 2021 | D195: 0 | E195: 0 | F195: 1987695 | G195: 0 | H195: 1987695 | I195: 1987695 | J195: 0 | K195: 1987695 | L195: Los trabajos se inciaron a finales del mes de noviembre; se relizaron los procesos de elaboración de fichas, suficiencias, licitaciones y contrataciones por lo que será hasta la Cuenta Pública donde se verán los Cierres definitivos de las obras de cada uno de los Comités del Presupuesto Participativo.
B196: O21NR1432 | C196: Instalación de Lámparas de led en calle 5 de mayo entre Arboledas hasta carretera federal México-Cuernavaca (San Pedro Martir) (Pblo) (Clave 12-160). Presupuesto participativo 21 | D196: 0 | E196: 0 | F196: 1388261 | G196: 0 | H196: 1388261 | I196: 1388261 | J196: 0 | K196: 1388261 | L196: Los trabajos se inciaron a finales del mes de noviembre; se relizaron los procesos de elaboración de fichas, suficiencias, licitaciones y contrataciones por lo que será hasta la Cuenta Pública donde se verán los Cierres definitivos de las obras de cada uno de los Comités del Presupuesto Participativo.
B197: O21NR1433 | C197: Mejoramiento de la Plaza de Toros (techado de plaza conformación del espacio con material ecológico y construcción de baños públicos)(Clave 12-163) Santo Tomas Ajusco P.P. 2021 | D197: 0 | E197: 0 | F197: 1398822 | G197: 0 | H197: 1398822 | I197: 1398822 | J197: 0 | K197: 1398822 | L197: Los trabajos se inciaron a finales del mes de noviembre; se relizaron los procesos de elaboración de fichas, suficiencias, licitaciones y contrataciones por lo que será hasta la Cuenta Pública donde se verán los Cierres definitivos de las obras de cada uno de los Comités del Presupuesto Participativo.
B198: O21NR1435 | C198: Construccion de Rampas para personas con discapacidad en la (Colonia Conjunto Urbano Cuemanco) (clave 12-027) dentro de la Alcaldía Tlalpan Presupuesto participativo 2021 | D198: 0 | E198: 0 | F198: 334553 | G198: 0 | H198: 334553 | I198: 334553 | J198: 0 | K198: 334553 | L198: Los trabajos se inciaron a finales del mes de noviembre; se relizaron los procesos de elaboración de fichas, suficiencias, licitaciones y contrataciones por lo que será hasta la Cuenta Pública donde se verán los Cierres definitivos de las obras de cada uno de los Comités del Presupuesto Participativo.
B199: O21NR1436 | C199: Pavimentación asfáltica de la (Calle Ignacio Chavez dentro de la Unidad Ignacio Chavez) (clave 12-059), dentro del perímetro de la Alcaldía Tlalpan Presupuesto participativo 2021 | D199: 0 | E199: 0 | F199: 328881 | G199: 0 | H199: 328881 | I199: 328881 | J199: 0 | K199: 328881 | L199: Los trabajos se inciaron a finales del mes de noviembre; se relizaron los procesos de elaboración de fichas, suficiencias, licitaciones y contrataciones por lo que será hasta la Cuenta Pública donde se verán los Cierres definitivos de las obras de cada uno de los Comités del Presupuesto Participativo.
B200: O21NR1437 | C200: Reconstrucción de dos casetas de vigilancia en la ( Unidad habitacional Tenorios Infonavit 1 y 2)( Clave 12-168) dentro de la Alcaldía Tlalpan Presupuesto participativo 2021 | D200: 0 | E200: 0 | F200: 367102 | G200: 0 | H200: 367102 | I200: 367102 | J200: 0 | K200: 367102 | L200: Los trabajos se inciaron a finales del mes de noviembre; se relizaron los procesos de elaboración de fichas, suficiencias, licitaciones y contrataciones por lo que será hasta la Cuenta Pública donde se verán los Cierres definitivos de las obras de cada uno de los Comités del Presupuesto Participativo.
B201: O21NR1438 | C201: Pavimentación asfáltica del acceso principal y área de estacionamiento en (Tenorios número 123) (clave 12-182), dentro del perímetro de la Alcaldía Tlalpan | D201: 0 | E201: 0 | F201: 319764 | G201: 0 | H201: 319764 | I201: 319764 | J201: 0 | K201: 319764 | L201: Los trabajos se inciaron a finales del mes de noviembre; se relizaron los procesos de elaboración de fichas, suficiencias, licitaciones y contrataciones por lo que será hasta la Cuenta Pública donde se verán los Cierres definitivos de las obras de cada uno de los Comités del Presupuesto Participativo.
B202: O21NR1439 | C202: Pavimentación asfáltica de las calles Rinconada Fresales y Fresales en Villa del (Puente Fovisstte) (clave 12-193), dentro del perímetro de la demarcación territorial. | D202: 0 | E202: 0 | F202: 304208 | G202: 0 | H202: 304208 | I202: 304208 | J202: 0 | K202: 304208 | L202: Los trabajos se inciaron a finales del mes de noviembre; se relizaron los procesos de elaboración de fichas, suficiencias, licitaciones y contrataciones por lo que será hasta la Cuenta Pública donde se verán los Cierres definitivos de las obras de cada uno de los Comités del Presupuesto Participativo.
B203: O21NR1440 | C203: Construcción y mantenimiento de Banquetas en toda la Unidad en (Villa Olimpica Liberador Miguel Hidalgo U Hab) (clave 12-195), dentro del perímetro de la demarcación territorial. | D203: 0 | E203: 0 | F203: 362542 | G203: 0 | H203: 362542 | I203: 362542 | J203: 0 | K203: 362542 | L203: Los trabajos se inciaron a finales del mes de noviembre; se relizaron los procesos de elaboración de fichas, suficiencias, licitaciones y contrataciones por lo que será hasta la Cuenta Pública donde se verán los Cierres definitivos de las obras de cada uno de los Comités del Presupuesto Participativo.
... 2 more rows

Sheet A-PP
B2: A-PP ADECUACIONES A PROGRAMAS PRESUPUESTARIOS
B4: Unidad Responsable de Gasto: | E4: 02CD14 ALCALDÍA TLALPAN
B5: Período: | E5: ENERO - DICIEMBRE 2021
B7: PROGRAMA PRESUPUESTARIO | C7: PRESUPUESTO (Pesos con dos decimales) | F7: ADECUACIONES PRESUPUESTALES | J7: METAS DEL PP | L7: FUNDAMENTOS, MOTIVOS Y RAZONAMIENTOS DE LAS MODIFICACIONES Y SU IMPACTO EN LAS METAS ORIGINALES PREVISTAS
C8: APROBADO | D8: MODIFICADO | E8: VARIACIÓN %: ((MODIFICADO/APROBADO)-1)*100 | F8: NÚMERO DE AFECTACIÓN | G8: DESTINO DEL GASTO | H8: AMPLIACIÓN | I8: REDUCCIÓN | J8: ORIGINAL | K8: MODIFICADO
B9: M001 | C9: 155648427 | D9: 153630306 | E9: =IFERROR((D9/C9)*100,"") -> 98.7034106 | F9: 4264 | G9: 00 | I9: 2924121 | J9: 1 | K9: 1 | L9: Se reduce debido a que de origen se presupuesto un costo por arriba de lo requerido, lo cual genero una economía, que es susceptible de utilizarse en otras necesidades.
B10: E150 | D10: 15207475 | E10: =IFERROR((D10/C10)*100,"") ->  | F10: 2399 | G10: 78 | H10: 7980000 | J10: 0 | K10: 1 | L10: Se amplia con la finalidad de mantener en condiciones óptimas de seguridad y operación la infraestructura comercial, el mejoramiento de los mercados cubrirá la atención a las demandas de los habitantes de Tlalpan, lo que nos permitirá dar mantenimiento y rehabilitación a 3 mercados: 1.-MERCADO FLORES SAN FERNANDO, 2.-MERCADO FUENTES BROTANTES y 3.-MERCADO VILLA COAPA.
B11: E150 | D11: 15207475 | F11: 3587 | G11: 78 | H11: 1144485 | L11: El compromiso se realizo con fondo FAFEF con la finalidad de mantener en condiciones óptimas de seguridad y operación, la infraestructura comercial (mejoramiento de mercados), lo cual cubrirá la atención a las demandas de los habitantes de Tlalpan.
B12: E150 | C12: 0 | D12: 15207475 | F12: 4884 | G12: 37 | H12: 6082990 | J12: 0 | K12: 1 | L12: La ampliación nos permitirá establecer el registro adecuado de los recursos que forman la contraparte del presupuesto del convenio que se celebrará con la Secretaría de Economía para Mantenimiento y Rehabilitación a los mercados: 1.-Mercado flores San Fernando, 2.-Mercado Fuentes Brotantes, y 3.-Mercado Villa Coapa.
B13: K014 | C13: 140452224 | D13: 118501584.6 | E13: 84.37145474 | F13: 4264 | G13: 00 | I13: 4431107 | J13: 1 | K13: 0.97 | L13: Se reduce debido a que de origen se presupuesto un costo por arriba de lo requerido, lo cual genero una economía, que es susceptible de utilizarse en otras necesidades.
B14: K015 | C14: 82994181 | D14: 78137914.03 | E14: 94.14866571 | F14: 6039 | G14: 0 | I14: 3672238 | J14: 1 | K14: 0 | L14: Se estableció que el proyecto O21NR0113 se cancelaría, por lo que los recursos se pueden reorientar y cubrir otros requerimientos.
B15: K016 | C15: 322849161 | D15: 290401228.4 | E15: 89.94950693 | F15: 4185 | G15: 00 | H15: 477000 | J15: 1 | L15: Se realiza la ampliación con la finalidad de la compra de arena, necesarias para que el personal operativo de obras, realice sus actividades. Los recursos se consideran como complemento para cumplir en su totalidad la meta programada de origen de los Programas Presupuestarios.
B16: K016 | C16: 322849161 | D16: 290401228.4 | E16: 89.94950693 | F16: 4884 | G16: 00 y 37 | I16: 6082990 | J16: 1 | K16: 0.98 | L16: Se realiza la reducción toda vez que dichos recursos corresponden a la contraparte del presupuesto para la realización de los convenios de colaboración que se establecerá con la Secretaría de Economía para el Fomento y Mejoramiento de los Mercados Públicos de la Ciudad de México. Lo anterior modifica la meta programada originalmente en 0.02 puntos porcentuales.
B17: M001 | C17: 1119782399 | D17: 1149648556 | E17: 102.6671393 | F17: 4264 | G17: 00 | I17: 4455769 | J17: 1 | K17: 1 | L17: Se reduce debido a que de origen se presupuesto un costo por arriba de lo requerido, lo cual genero una economía, que es susceptible de utilizarse en otras necesidades.
B18: M001 | C18: 1119782399 | D18: 1149648556 | E18: 102.6671393 | F18: 6039 | G18: 00 | H18: 3672238 | J18: 1 | K18: 0 | L18: Derivado del cierre temporal de actividades y de establecimientos por coronavirus (COVID-19), dentro de las cuales se encuentran los diversos centros generadores de esta Alcaldía, se requiere cubrir el pago de la nómina para el personal bajo el régimen de honorarios asimilables a salarios.
B19: O001 | C19: 114846621 | D19: 114280561.8 | E19: 99.50711719 | F19: 4185 | G19: 00 | H19: 4614934.74 | J19: 1 | L19: Se realiza la ampliación con la finalidad de adquirir alubricantes y aditivos, para estar en condiciones de cumplir con las necesidades del taller mecánico que brinda al parque vehicular de la Alcaldía el servicio de revisión básico, el cual comprende el cambio de aceite, por lo que se requiere adquirir tambos y galones de aceite para motor, aceite multigrado, aceite de transmisión automática, anticongelantes y grasa para chasis. Los recursos se consideran como complemento para cumplir en su totalidad la meta programada de origen de los Programas Presupuestarios.
B20: O001 | C20: 114846621 | D20: 114280561.8 | E20: 99.50711719 | F20: 4187 | G20: 00 | H20: 420169.01 | J20: 1 | L20: Se realiza la reducción derivados del cambio de Programa Presupuestal al U026.
B21: O001 | C21: 114846621 | D21: 114280561.8 | E21: 99.50711719 | F21: 4264 | G21: 00 | I21: 5601163 | J21: 1 | K21: 0.95 | L21: Se reduce debido a que de origen se presupuesto un costo por arriba de lo requerido, lo cual genero una economía, que es susceptible de utilizarse en otras necesidades.
B22: P002 | C22: 63321700 | D22: 80733860 | E22: 127.4979351 | F22: 4264 | G22: 00 | H22: 17412160 | J22: 1 | L22: Derivado de la necesidad de establecer un registro presupuestal para la actividad que esta Alcaldía tiene al distribuir agua potable en carro tanque a la población que carece de ésta en los pueblos y en las zona más alejadas, se determina incrementar la Meta Física en 1.000 Acción, para poder cubrir dicho desabasto.
B23: P004 | C23: 2700200 | D23: 4700200 | E23: 174.0685875 | F23: 4185 | G23: 26 | H23: 2000000 | J23: 1 | L23: Se realiza la ampliación con la finalidad de llevar acabo la revisión y valuación de los trabajos de obra pública, con el objetivo de contar con los recursos necesarios para cubrir los requerimientos alimenticios de la población de los Centros de Desarrollo Infantil al regreso a los espacios con la nueva normalidad. Los recursos se consideran como complemento para cumplir en su totalidad la meta programada de origen de los Programas Presupuestarios.
B24: U024 | C24: 83010000 | D24: 14487327 | E24: 17.45250813 | F24: 3682 | G24: 00 | I24: 64152273 | J24: 1 | K24: 0.1 | L24: Se reasigna el presupuesto debido a que el monto asignado de origen en esta clave presupuestal se le asigno de origen un presupuesto que excede los requerimientos, motivo por el cual se reclasifica a otras partidas , lo que nos permitirá atender otras necesidades de la ciudadanía en materia de ayudas. Este movimiento modifica la metas física en 0.9.
B25: U026 | C25: 0 | D25: 68522673 | F25: 3682 | G25: 00 y 87 | H25: 64152273 | J25: 0 | K25: 1 | L25: Se requiere dotar de recursos en esta partida y área funcional con el propósito de llevar acabo las diferentes Apoyos Sociales en esta Alcaldía. Este movimiento etablece la metas física en 1.0.
B26: K016 | C26: 322849161 | D26: 289049010.1 | E26: 89.5306679 | F26: 9948 | G26: 00 | I26: 1352218.3 | J26: 1 | K26: 0.98 | L26: Estos recursos serán reorientados debido a que en la integración del anteproyecto de presupuesto de egresos se consideró de manera provisional esta clave presupuestal que concentra los recursos provenientes del Fondo de Aportaciones para la Infraestructura Social (FAIS) 2021, hasta conocer las acciones específicas asociadas, que derivan de la planeación o direccionamiento de dichos recursos.
B27: K016 | C27: 322849161 | D27: 290401228.4 | E27: 89.94950693 | F27: 10019 | G27: 00 | H27: 1352218.3 | J27: 1 | K27: 0.98 | L27: Se requiere dotar de recursos con la finalidad de llevar a cabo la revisión y valuación de los trabajos de obra pública, garantizando la calidad y cantidades en las obras a desarrollar, así como su entrega a tiempo y en el costo pactado, de tal forma que cumpla en calidad por parte de la empresa constructora.
B28: K016 | C28: 322849161 | D28: 280533336.4 | E28: 86.89300464 | F28: 10469 | G28: 80 | I28: 9867892 | J28: 1 | K28: 0.98 | L28: Se requiere dotar de recursos con la finalidad de llevar a cabo la revisión y valuación de los trabajos de obra pública, garantizando la calidad y cantidades en las obras a desarrollar, así como su entrega a tiempo y en el costo pactado, de tal forma que cumpla en calidad por parte de la empresa constructora.
B29: U026 | C29: 0 | D29: 78390565 | E29: =IFERROR((D29/C29)*100,"") ->  | F29: 10469 | G29: 80 | H29: 9867892 | J29: 0 | K29: 1 | L29: Se requiere dotar de recursos en esta partida y área funcional con el propósito de llevar acabo la Acción Institucional denominada "Presupuesto Participativo 2020, este movimiento no modifica a la metafísica o actividades en el Programa Presupuestario , debido a que estos recursos se asignaron para adecuar presupuestalmente los proyectos ganadores del presupuesto participativo 2020, los cuales son propuestos por los habitantes de las colonias y no corresponden a la planeación de trabajo de este Órgano Político Administrativo.
B30: E118 | C30: 110754544 | D30: 107706455.3 | E30: =IFERROR((D30/C30)*100,"") -> 97.24788838 | F30: 10586 | G30: 00 | I30: 3048088.68 | J30: 1 | K30: =IFERROR((#REF!/$C30)*100,"") ->  | L30: Se reducen 3,048,088.68 , le comento que estos recursos fueron adicionados a este PP para el pago de un reconocimiento de adeudo, por lo que no estaba contemplado de origen, por lo que su reducción no impacta en las actividades que se contemplaron para el presente ejercicio. Por lo tanto, no hay reducción de metas porcentuales o actividades.
B31: E123 | C31: 70082449 | D31: 69892449 | E31: 99.72889075 | F31: 10586 | G31: 00 | I31: 190000 | J31: 1 | K31: 0.74 | L31: Esta reducción se plantea después de analizar los compromisos de gasto se determino que el recurso que fue programado en esta partida, fue solicitado con la finalidad de realizar un estudio de emisiones a la atmósfera de partículas sólidas, sin embargo se determinó ante las necesidades de gasto de esta Alcaldía que este se realizara con recursos de presupuesto de ingresos de aplicación automática. Por lo que estos recursos serán reorientados a otros conceptos de gasto, necesarios para llevar a cabo los proyectos del presupuesto participativo 2021. Se reduce un monto de 190,000.00, comento que esta reducción corresponde al 0.26% del presupuesto contenido en este PP, por lo que No afecta el cumplimiento de las cuatro actividades que se programaron para este ejercicio.
B32: E124 | C32: 59665308 | D32: 31882796.42 | E32: 53.43607113 | F32: 10586 | G32: 00 | I32: 2656745.9 | J32: 1 | K32: 0.92 | L32: Se reduce un monto de 2,656,745.90, le comento que esta reducción representa el 8.20% del presupuesto contenido en este PP, porcentaje que no es representativo para afectar el cumplimiento de las seis actividades para este año y No afecta el PP.
B33: F032 | C33: 2951317 | D33: 3063211.6 | E33: 103.7913447 | F33: 10586 | G33: 00 | I33: 1455000 | J33: 1 | L33: Esta reducción se plantea después de analizar los compromisos degasto establecidos y las presiones de gasto de esta Alcaldía, del cual se determino que los recursos contenidos en esta partida no serán requeridos, debido a las medidas de contención del covid-19 se dejaron de realizar eventos culturales, por lo que estos recursos serán reorientados a otros conceptos de gasto, necesarios para llevar a cabo los proyectos del presupuesto participativo 2021.
B34: K014 | C34: 140452224 | D34: 112882286.6 | E34: 80.37059395 | F34: 10586 | G34: 00 | I34: 5619297.95 | J34: 1 | K34: 0.93 | L34: Se reducen únicamente en 4,481,398.95 recurso que representa 4 % del presupuesto contenido en este PP,estos recursos no fueron requeridos por lo tanto no representan un impacto en las cuatro actividades programadas para el presente ejercicio.
B35: K014 | C35: 140452224 | D35: 114020185.7 | E35: 81.18076197 | F35: 10586 | G35: 65 | H35: 1137899 | J35: 1 | L35: Se incrementa en 1,137,899.00, en este PP , este movimiento no modifica a la meta porcentual o actividades en el Programa Presupuestario , debido a que estos recursos serán para ejecutar los proyectos ganadores del presupuesto participativo 2021, los cuales son propuestos por los habitantes de las colonias y no corresponden a la planeación de trabajo de este Órgano Político Administrativo.
B36: K015 | C36: 82994181 | D36: 69560428.83 | E36: 83.81362162 | F36: 10586 | G36: 00 | I36: 8577485.2 | J36: 1 | K36: 0.89 | L36: Se reducen 8,577 ,485.20 monto que representa el 10.98% del presupuesto contenido en este PP, le comento que estos recursos no fueron requeridos por lo tanto no por lo tanto no representan un impacto en las ocho actividades programadas para el presente ejercicio. | M36: #
B37: K016 | C37: 322849161 | D37: 279716224.2 | E37: 86.63991051 | F37: 10586 | G37: 00 | I37: 817112.27 | J37: 1 | K37: =IFERROR((#REF!/$C37)*100,"") ->  | L37: Se reduce por la cantidad de 817,112.27, sin embargo, esta cantidad se amplía en el mismo PP por lo que no hay reducción de metas porcentuales o actividades.
B38: K016 | C38: 322849161 | D38: 305951682.2 | E38: 94.76613822 | F38: 10586 | G38: 65 | H38: 26235458 | J38: 1 | K38: =IFERROR((#REF!/$C38)*100,"") ->  | L38: Se incrementa en 26,235,458.00, sin embargo, dentro de ese programa presupuestario ya se encontraban contempladas las acciones del presupuesto participativo en la Acción General dos, por lo que no se adicionan metas porcentuales o actividades.
B39: M001 | C39: 1119782399 | D39: 1147822511 | E39: 102.5040679 | F39: 10586 | G39: 00 | I39: 1826045 | J39: 1 | K39: 0.99 | L39: Se reducen 1,826,045.00 monto que representa el 0.16% del presupuesto contenido en este PP, le comento que estos recursos no fueron requeridos por lo tanto no por lo tanto no representan un impacto en las ocho actividades programadas para el presente ejercicio. Por lo tanto, no hay reducción de metas porcentuales o actividades.
B40: O001 | C40: 114846621 | D40: 111096979.8 | E40: 96.73508788 | F40: 10586 | G40: 00 | I40: 3183582 | J40: 1 | K40: 0.97 | L40: Se reducen 3,183,582.00 monto que representa el 2.79% del presupuesto contenido en este PP, al igual que el anterior, le comento que estos recursos no fueron requeridos por lo tanto no por lo tanto no representan un impacto en las tres actividades programadas para el presente ejercicio. Por lo tanto, no hay reducción de metas porcentuales o actividades.
B41: K016 | C41: 322849161 | D41: 304599463.9 | E41: 94.34729919 | F41: 11013 | G41: 00 | I41: 1352218.3 | J41: 1 | K41: =IFERROR((#REF!/$C41)*100,"") ->  | L41: Este presupuesto se orientara a el Proyecto número O21NR1156 "Rehabilitación de Superficie de Rodamiento (Repavimentación) en Diversas Ubicaciones, Dentro del Perímetro de la Demarcación Territorial". Este movimiento no modifica las metas físicas.
B42: K016 | C42: 322849161 | D42: 305951682.2 | E42: 94.76613822 | F42: 11015 | G42: 00 | H42: 1352218.3 | J42: 1 | K42: =IFERROR((#REF!/$C42)*100,"") ->  | L42: Los recursos se consideran como complemento para cumplir en su totalidad la meta programada de origen del Programa Presupuestario: K016 Rehabilitación y mantenimiento de infraestructura pública, por lo que no se modifica la meta.
B43: S207 | C43: 4000000 | D43: 10000 | E43: 0.25 | F43: 10046 | G43: 77 | I43: 3990000 | J43: 1 | L43: Los recursos que se reducen no han sido requeridos por la Direccion General de Desarrollo Social, sin embargo, aún se cuenta con recursos dentro del PP, para poder cumplir con la actividad, cuando la Dirección en comento, lo solicite; los recursos que se reducen se reorientaran para el desarrollo de los proyectos del presupuesto participativo 2021.
B44: M001 | C44: 1119782399 | D44: 1147858651 | E44: 102.5072953 | F44: 11091 | G44: 00 | H44: 36139.71 | J44: 1 | K44: =IFERROR((#REF!/$C44)*100,"") ->  | L44: Se amplian los recursos debido a que la Dirección General de Planeación Presupuestaria, Control y Evaluación del Gasto comunicó mediante oficio el monto que corresponde a esta Alcaldía por concepto de intereses acumulados al periodo.
B45: K016 | C45: 322849161 | D45: 306314178.5 | E45: 94.87841862 | F45: 11104 | G45: 00 | H45: 362496.32 | J45: 1 | K45: =IFERROR((#REF!/$C45)*100,"") ->  | L45: Se amplian los recursos debido a que la Dirección General de Planeación Presupuestaria, Control y Evaluación del Gasto comunicó mediante oficio el monto que corresponde a esta Alcaldía por concepto de intereses acumulados al periodo.
B46: M001 | C46: 1119782399 | D46: =1147858650.68-I46 -> 1147822511 | E46: 102.5040679 | F46: 11314 | G46: 00 | I46: 36139.71 | J46: 1 | K46: =IFERROR((#REF!/$C46)*100,"") ->  | L46: Los recursos se consideran como complemento para cumplir en su totalidad la meta programada de origen del Programa Presupuestario: M001 Actividades de apoyo administrativo, por lo que no se modifica la meta.
B47: M001 | C47: 1119782399 | D47: 1147858651 | E47: 102.5072953 | F47: 11315 | G47: 00 | H47: 36139.71 | J47: 1 | K47: =IFERROR((#REF!/$C47)*100,"") ->  | L47: Los recursos se consideran como complemento para cumplir en su totalidad la meta programada de origen del Programa Presupuestario: M001 Actividades de apoyo administrativo, por lo que no se modifica la meta.
B48: O001 | C48: 114846621 | D48: 110532194.8 | E48: 96.24331459 | F48: 11499 | G48: 00 | I48: 564785 | J48: 1 | K48: =IFERROR((#REF!/$C48)*100,"") ->  | L48: La reducción se realiza después de analizar el ritmo de gasto de esta partida, así como de los requerimientos de las áreas operativas, de esto se obtuvo que los recursos no serán requeridos. Es preciso mencionar que no se afectan metas del Programa Presupuestario, pues la adición de recursos se realizara en el mismo.
B49: O001 | C49: 114846621 | D49: =110532194.75+H49 -> 111096979.8 | E49: 96.73508788 | F49: 11500 | G49: 00 | H49: 564785 | J49: 1 | K49: =IFERROR((#REF!/$C49)*100,"") ->  | L49: Es preciso mencionar que no se afectan metas del Programa Presupuestario, pues la adición de recursos se realiza en el mismo de donde provienen los recursos.
B50: K016 | C50: 322849161 | D50: 305952509.5 | E50: 94.76639448 | F50: 11556 | G50: 65 | I50: 361669 | J50: 1 | K50: =IFERROR((#REF!/$C50)*100,"") ->  | L50: En este Programa Presupuestal se realizó un análisis por parte de la Dirección de Recursos Materiales y Servicios Generales de esta Alcaldía donde se determinó que conforme al Clasificador por Objeto de Gasto y los trabajos a realizar no le corresponde la Partida asignada, por lo que es necesario reasignarla a la clave presupuestal que le corresponde; dicha reducción obedece a la necesidad de ejecutar de manera inmediata los proyectos ganadores del presupuesto participativo del ejercicio 2021, atendiendo los Proyectos Ganadores de la Consulta Ciudadana sobre Presupuesto Participativo 2021 en las Colonias y Pueblos de la Alcaldía Tlalpan.
B51: U026 | C51: 0 | D51: 78752234 | F51: 11556 | G51: 65 | H51: 361669 | J51: 1 | K51: =IFERROR((#REF!/$C51)*100,"") ->  | L51: Estos recursos serán para ejecutar los proyectos ganadores del presupuesto participativo 2021, llevando a cabo los proyectos de alarmas sísmicas conectadas al C5 y cámaras de seguridad. en beneficio de la ciudadania que contempla los proyectos ganadores de esta Alcaldía.
B52: S205 | C52: 5000000 | D52: 100000 | E52: 2 | F52: 11701 | G52: 77 | I52: 4000000 | J52: 1 | K52: =IFERROR((#REF!/$C52)*100,"") ->  | L52: Se reduce debido a que estos recursos no han sido requeridos por la Dirección General de Desarrollo Social, para el establecimiento del compromiso de gasto en torno a este Programa Social, también es de considerar que no se cuenta con reglas de operación, lo que da la oportunidad de utilizarlo en otras necesidades de esta Alcaldía, sin afectar de manera alguna el ejercicio del mismo.
B53: U026 | C53: 0 | D53: 82752234 | F53: 11701 | G53: 00 | H53: 4000000 | J53: 1 | K53: =IFERROR((#REF!/$C53)*100,"") ->  | L53: Se requiere dotar de recursos con la finalidad de contar con los recursos necesarios para establecer el compromiso de gasto en la adquisición de insumos alimenticios para el personal como (Box Lunch), para personal que asiste en el desarrollo de las actividades de tequio o difusión de las acciones sociales; así como la adquisición de diversos productos como lijas, pinturas, recubrimientos, adhesivos y selladores e impermeabilizantes por mencionar algunos, que son requeridos para las campañas de limpia y mejoramiento de colonias tequio; para contar con los recursos para contratar los servicios de impresión de diversos carteles, panfletos etc. que servirán para difundir los eventos y acciones sociales que se desarrollan en beneficio de la población y para llevar a cabo diversos eventos que contribuyen a la difusión de las acciones sociales, tramites y servicios, así como desarrollar eventos que hagan participe a la población vulnerable fomentando los valores.
B54: O001 | C54: 114846621 | D54: 107408569.8 | E54: 93.52349143 | F54: 11800 | G54: 00 | I54: 3123625 | J54: 1 | K54: =IFERROR((#REF!/$C54)*100,"") ->  | L54: Esta reducción se realiza después de analizar los recursos comprometidos y el ritmo de gasto que presentan las Direcciones operativas y sustantivas de esta Alcaldía, de esto se determino que estos recursos no serán requeridos en la partida en comento, por lo que se solicita su reducción liquida para ser adicionados en partidas donde se requiere dotar de recursos para cubrir necesidades de operación.
B55: O001 | C55: 114846621 | D55: 107408569.8 | E55: 93.52349143 | F55: 11801 | G55: 00 | H55: 3123625 | J55: 1 | K55: =IFERROR((#REF!/$C55)*100,"") ->  | L55: Se dota de recursos las partidas 2161 "Material de limpieza" y 3552 "Reparación, mantenimiento y conservación de equipo de transporte destinados a servicios públicos y operación, recursos que son requeridos para la adquisición de insumos de material de limpieza y la contratación de los servicios de limpieza y relacionados con este rubro en los meses de noviembre y diciembre.
B56: K016 | C56: 322849161 | D56: 305985476.3 | E56: 94.77660569 | F56: 12559 | G56: 00 | H56: 32966.81 | J56: 1 | K56: =IFERROR((#REF!/#REF!)*100,"") ->  | L56: Se amplia en la partida 2471 "Artículos metálicos para la construcción" con la finalidad de estar en condiciones de establecer el compromiso de gasto para la adquisición de abrazaderas metálicas para tubería, codos metálicos para tubería y coples metálicos para tubería, que son requeridas por las Direcciones operativas, como obras y servicios urbanos, para atender solicitudes de mantenimiento en inmuebles de la Alcaldía o de la vía pública.
B57: M001 | C57: 1119782399 | D57: 1147668563 | E57: 102.4903199 | F57: 13117 | G57: 65 | I57: 190087.95 | J57: 1 | K57: =IFERROR((#REF!/#REF!)*100,"") ->  | L57: En este Programa Presupuestal se realizó un análisis por parte de la Dirección de Recursos Materiales y Servicios Generales de esta Alcaldía donde se determinó que conforme al Clasificador por Objeto de Gasto y los trabajos a realizar no le corresponde la Partida asignada, por lo que es necesario reasignarla a la clave presupuestal que le corresponde; dicha reducción obedece a la necesidad de ejecutar de manera inmediata los proyectos ganadores del presupuesto participativo del ejercicio 2021, atendiendo los Proyectos Ganadores de la Consulta Ciudadana sobre Presupuesto Participativo 2021 en las Colonias y Pueblos de la Alcaldía Tlalpan.
B58: K014 | C58: 140452224 | D58: 110932544.8 | E58: 78.98240528 | F58: 13117 | G58: 65 | I58: 3087640.87 | J58: 1 | K58: =IFERROR((#REF!/#REF!)*100,"") ->  | L58: En este Programa Presupuestal se realizó un análisis por parte de la Dirección de Recursos Materiales y Servicios Generales de esta Alcaldía donde se determinó que conforme al Clasificador por Objeto de Gasto y los trabajos a realizar no le corresponde la Partida asignada, por lo que es necesario reasignarla a la clave presupuestal que le corresponde; dicha reducción obedece a la necesidad de ejecutar de manera inmediata los proyectos ganadores del presupuesto participativo del ejercicio 2021, atendiendo los Proyectos Ganadores de la Consulta Ciudadana sobre Presupuesto Participativo 2021 en las Colonias y Pueblos de la Alcaldía Tlalpan.
B59: O001 | C59: 114846621 | D59: 107408569.8 | E59: 93.52349143 | F59: 13117 | G59: 65 | I59: 214179 | J59: 1 | K59: =IFERROR((#REF!/$C56)*100,"") ->  | L59: En este Programa Presupuestal se realizó un análisis por parte de la Dirección de Recursos Materiales y Servicios Generales de esta Alcaldía donde se determinó que conforme al Clasificador por Objeto de Gasto y los trabajos a realizar no le corresponde la Partida asignada, por lo que es necesario reasignarla a la clave presupuestal que le corresponde; dicha reducción obedece a la necesidad de ejecutar de manera inmediata los proyectos ganadores del presupuesto participativo del ejercicio 2021, atendiendo los Proyectos Ganadores de la Consulta Ciudadana sobre Presupuesto Participativo 2021 en las Colonias y Pueblos de la Alcaldía Tlalpan.
B60: U026 | C60: 0 | D60: 80428788 | F60: 13117 | G60: 65 | I60: 2323446 | J60: 1 | K60: =IFERROR((#REF!/$C57)*100,"") ->  | L60: En este Programa Presupuestal se realizó un análisis por parte de la Dirección de Recursos Materiales y Servicios Generales de esta Alcaldía donde se determinó que conforme al Clasificador por Objeto de Gasto y los trabajos a realizar no le corresponde la Partida asignada, por lo que es necesario reasignarla a la clave presupuestal que le corresponde; dicha reducción obedece a la necesidad de ejecutar de manera inmediata los proyectos ganadores del presupuesto participativo del ejercicio 2021, atendiendo los Proyectos Ganadores de la Consulta Ciudadana sobre Presupuesto Participativo 2021 en las Colonias y Pueblos de la Alcaldía Tlalpan.
B61: K016 | C61: 322849161 | D61: 306358801.9 | E61: 94.89224038 | F61: 13335 | G61: 00 | H61: 373325.62 | J61: 1 | K61: =IFERROR((#REF!/$C58)*100,"") ->  | L61: Se amplian los recursos debido a que la Dirección General de Planeación Presupuestaria, Control y Evaluación del Gasto comunicó mediante oficio el monto que corresponde a esta Alcaldía por concepto de intereses acumulados al periodo.
B62: P004 | C62: 2700200 | D62: 2700200 | E62: 100 | F62: 13713 | G62: 26 | I62: 2000000 | J62: 1 | K62: =IFERROR((#REF!/$C59)*100,"") ->  | L62: Esta reducción se realizará de la siguiente manera: El compromiso se realizó con recursos de rendimientos financieros, sin embargo, con fines de optimizar al máximo los recursos asignados a esta Alcaldía, se realizará el compromiso con el Fortalecimiento de los Municipios y las Demarcaciones Territoriales del Distrito Federal.
B63: O001 | C63: 114846621 | D63: 108686969.8 | E63: 94.63662823 | F63: 13714 | G63: 00 | H63: 1278400 | J63: 1 | K63: =IFERROR((#REF!/$C60)*100,"") ->  | L63: El compromiso en estas partidas se estableció en un principio con Fondo del Fortalecimiento de los Municipios y las Demarcaciones Territoriales del Distrito Federal y con la finalidad de optimizar al máximo los recursos asignados esta Alcaldía, se realizarán mediante rendimientos financieros de participaciones en ingresos federales.
B64: P002 | C64: 63321700 | D64: 81455460 | E64: 128.6375129 | F64: 13714 | G64: 00 | H64: 721600 | J64: 1 | K64: =IFERROR((#REF!/$C61)*100,"") ->  | L64: El compromiso en estas partidas se estableció en un principio con Fondo del Fortalecimiento de los Municipios y las Demarcaciones Territoriales del Distrito Federal y con la finalidad de optimizar al máximo los recursos asignados esta Alcaldía, se realizarán mediante rendimientos financieros de participaciones en ingresos federales.
B65: O001 | C65: 114846621 | D65: =108686969.75-I65 -> 107408569.8 | E65: 93.52349143 | F65: 14009 | G65: 00 | I65: 1278400 | J65: 1 | K65: =IFERROR((#REF!/$C62)*100,"") ->  | L65: La reducción se realiza con la finalidad de realizar cambio de fuente de financiamiento, y con ello optimizar los recursos que fueron asignados a esta Alcaldía.
B66: P002 | C66: 63321700 | D66: 80733860 | E66: 127.4979351 | F66: 14009 | G66: 00 | I66: 721600 | J66: 1 | K66: =IFERROR((#REF!/$C63)*100,"") ->  | L66: La reducción se realiza con la finalidad de realizar cambio de fuente de financiamiento, y con ello optimizar los recursos que fueron asignados a esta Alcaldía.
B67: P004 | C67: 2700200 | D67: =2700200+H67 -> 4700200 | E67: 174.0685875 | F67: 14009 | G67: 26 | H67: 2000000 | J67: 1 | K67: =IFERROR((#REF!/$C64)*100,"") ->  | L67: La adición se realiza con la finalidad de realizar cambio de fuente de financiamiento, y con ello optimizar los recursos que fueron asignados a esta Alcaldía.
B68: E122 | C68: 155648427 | D68: 153627376.6 | E68: 98.70152854 | F68: 14027 | G68: 00 Y 87 | I68: 2929.4 | J68: 1 | K68: =IFERROR((#REF!/$C65)*100,"") ->  | L68: Esta reducción se solicita después de analizar los compromisos establecidos en este rubro y la tendencia del gasto, de esto se obtuvo que los recursos no serán requeridos. Por lo anterior, se decidió reorientar estos recursos para solventar otras necesidades dentro de la Partida 3112 "Servicio de energía eléctrica" del orden centralizado donde requiere ser dotada de recursos para cubrir el ritmo de operación de este Órgano Político Administrativo en Tlalpan.
B69: E124 | C69: 59665308 | D69: 31725571.39 | E69: 53.17255949 | F69: 14027 | G69: 00 | I69: 157225.03 | J69: 1 | K69: =IFERROR((#REF!/$C66)*100,"") ->  | L69: Esta reducción se solicita después de analizar los compromisos establecidos en este rubro y la tendencia del gasto, de esto se obtuvo que los recursos no serán requeridos. Por lo anterior, se decidió reorientar estos recursos para solventar otras necesidades dentro de la Partida 3112 "Servicio de energía eléctrica" del orden centralizado donde requiere ser dotada de recursos para cubrir el ritmo de operación de este Órgano Político Administrativo en Tlalpan.
B70: E124 | C70: 59665308 | D70: 34823007.64 | E70: 58.36391164 | F70: 14027 | G70: 00 | H70: 3097436.25 | K70: =IFERROR((#REF!/$C67)*100,"") ->  | L70: Esta ampliación se realizó con la finalidad de contar con los recursos presupuestales necesarios para establecer el compromiso de gasto y seguir atendiendo el servicio de energía eléctrica en las calles secundarias de esta Alcaldía, que se realiza en beneficio de los ciudadanos.
B71: E150 | C71: 0 | D71: 15203191.07 | F71: 14027 | G71: 37 | I71: 4283.93 | J71: 1 | K71: =IFERROR((#REF!/$C68)*100,"") ->  | L71: Esta reducción se solicita después de analizar los compromisos establecidos en este rubro y la tendencia del gasto, de esto se obtuvo que los recursos no serán requeridos. Por lo anterior, se decidió reorientar estos recursos para solventar otras necesidades dentro de la Partida 3112 "Servicio de energía eléctrica" del orden centralizado donde requiere ser dotada de recursos para cubrir el ritmo de operación de este Órgano Político Administrativo en Tlalpan.
B72: F032 | C72: 2951317 | D72: 3040106.2 | E72: 103.0084603 | F72: 14027 | G72: 00 | I72: 23105.4 | J72: 1 | K72: =IFERROR((#REF!/$C69)*100,"") ->  | L72: Esta reducción se solicita después de analizar los compromisos establecidos en este rubro y la tendencia del gasto, de esto se obtuvo que los recursos no serán requeridos. Por lo anterior, se decidió reorientar estos recursos para solventar otras necesidades dentro de la Partida 3112 "Servicio de energía eléctrica" del orden centralizado donde requiere ser dotada de recursos para cubrir el ritmo de operación de este Órgano Político Administrativo en Tlalpan.
B73: K014 | C73: 140452224 | D73: 110925842.4 | E73: 78.97763327 | F73: 14027 | G73: 00 | I73: 6702.39 | J73: 1 | K73: =IFERROR((#REF!/$C71)*100,"") ->  | L73: Esta reducción se solicita después de analizar los compromisos establecidos en este rubro y la tendencia del gasto, de esto se obtuvo que los recursos no serán requeridos. Por lo anterior, se decidió reorientar estos recursos para solventar otras necesidades dentro de la Partida 3112 "Servicio de energía eléctrica" del orden centralizado donde requiere ser dotada de recursos para cubrir el ritmo de operación de este Órgano Político Administrativo en Tlalpan.
B74: K015 | C74: 82994181 | D74: 69560428.74 | E74: 83.81362151 | F74: 14027 | G74: 00 | I74: 0.09 | J74: 1 | K74: =IFERROR((#REF!/$C72)*100,"") ->  | L74: Esta reducción se solicita después de analizar los compromisos establecidos en este rubro y la tendencia del gasto, de esto se obtuvo que los recursos no serán requeridos. Por lo anterior, se decidió reorientar estos recursos para solventar otras necesidades dentro de la Partida 3112 "Servicio de energía eléctrica" del orden centralizado donde requiere ser dotada de recursos para cubrir el ritmo de operación de este Órgano Político Administrativo en Tlalpan.
B75: K016 | C75: 322849161 | D75: 306356363.1 | E75: 94.89148496 | F75: 14027 | G75: 00 Y 37 | I75: 2438.87 | J75: 1 | K75: =IFERROR((#REF!/$C73)*100,"") ->  | L75: Esta reducción se solicita después de analizar los compromisos establecidos en este rubro y la tendencia del gasto, de esto se obtuvo que los recursos no serán requeridos. Por lo anterior, se decidió reorientar estos recursos para solventar otras necesidades dentro de la Partida 3112 "Servicio de energía eléctrica" del orden centralizado donde requiere ser dotada de recursos para cubrir el ritmo de operación de este Órgano Político Administrativo en Tlalpan.
B76: M001 | C76: 1119782399 | D76: =1147668562.73-I76 -> 1146776182 | E76: 102.4106276 | F76: 14027 | G76: 00 | I76: 892380.7 | J76: 1 | K76: =IFERROR((#REF!/$C74)*100,"") ->  | L76: Esta reducción se solicita después de analizar los compromisos establecidos en este rubro y la tendencia del gasto, de esto se obtuvo que los recursos no serán requeridos. Por lo anterior, se decidió reorientar estos recursos para solventar otras necesidades dentro de la Partida 3112 "Servicio de energía eléctrica" del orden centralizado donde requiere ser dotada de recursos para cubrir el ritmo de operación de este Órgano Político Administrativo en Tlalpan.
B77: N001 | C77: 14532027 | D77: 14540397.12 | E77: 100.0575977 | F77: 14027 | G77: 00 | I77: 314.94 | J77: 1 | K77: =IFERROR((#REF!/$C75)*100,"") ->  | L77: Esta reducción se solicita después de analizar los compromisos establecidos en este rubro y la tendencia del gasto, de esto se obtuvo que los recursos no serán requeridos. Por lo anterior, se decidió reorientar estos recursos para solventar otras necesidades dentro de la Partida 3112 "Servicio de energía eléctrica" del orden centralizado donde requiere ser dotada de recursos para cubrir el ritmo de operación de este Órgano Político Administrativo en Tlalpan.
B78: O001 | C78: 114846621 | D78: 107815961.7 | E78: 93.87821841 | F78: 14027 | G78: 00, 83 Y 87 | I78: 871008.05 | J78: 1 | K78: =IFERROR((#REF!/$C76)*100,"") ->  | L78: Esta reducción se solicita después de analizar los compromisos establecidos en este rubro y la tendencia del gasto, de esto se obtuvo que los recursos no serán requeridos. Por lo anterior, se decidió reorientar estos recursos para solventar otras necesidades dentro de la Partida 3112 "Servicio de energía eléctrica" del orden centralizado donde requiere ser dotada de recursos para cubrir el ritmo de operación de este Órgano Político Administrativo en Tlalpan.
B79: P001 | C79: 619400 | D79: 539374.76 | E79: 87.08020019 | F79: 14027 | G79: 00 | I79: 80025.24 | J79: 1 | K79: =IFERROR((#REF!/$C77)*100,"") ->  | L79: Esta reducción se solicita después de analizar los compromisos establecidos en este rubro y la tendencia del gasto, de esto se obtuvo que los recursos no serán requeridos. Por lo anterior, se decidió reorientar estos recursos para solventar otras necesidades dentro de la Partida 3112 "Servicio de energía eléctrica" del orden centralizado donde requiere ser dotada de recursos para cubrir el ritmo de operación de este Órgano Político Administrativo en Tlalpan.
B80: P002 | C80: 63321700 | D80: 80707541.7 | E80: 127.4563723 | F80: 14027 | G80: 00 | I80: 26318.3 | J80: 1 | K80: =IFERROR((#REF!/$C78)*100,"") ->  | L80: Esta reducción se solicita después de analizar los compromisos establecidos en este rubro y la tendencia del gasto, de esto se obtuvo que los recursos no serán requeridos. Por lo anterior, se decidió reorientar estos recursos para solventar otras necesidades dentro de la Partida 3112 "Servicio de energía eléctrica" del orden centralizado donde requiere ser dotada de recursos para cubrir el ritmo de operación de este Órgano Político Administrativo en Tlalpan.
B81: P004 | C81: 2700200 | D81: 4079964.31 | E81: 151.0985968 | F81: 14027 | G81: 00 | I81: 620235.69 | J81: 1 | K81: =IFERROR((#REF!/$C79)*100,"") ->  | L81: Esta reducción se solicita después de analizar los compromisos establecidos en este rubro y la tendencia del gasto, de esto se obtuvo que los recursos no serán requeridos. Por lo anterior, se decidió reorientar estos recursos para solventar otras necesidades dentro de la Partida 3112 "Servicio de energía eléctrica" del orden centralizado donde requiere ser dotada de recursos para cubrir el ritmo de operación de este Órgano Político Administrativo en Tlalpan.
B82: U024 | C82: 83010000 | D82: 14484815.34 | E82: 17.4494824 | F82: 14027 | G82: 00 | I82: 2511.66 | J82: 1 | K82: =IFERROR((#REF!/$C80)*100,"") ->  | L82: Esta reducción se solicita después de analizar los compromisos establecidos en este rubro y la tendencia del gasto, de esto se obtuvo que los recursos no serán requeridos. Por lo anterior, se decidió reorientar estos recursos para solventar otras necesidades dentro de la Partida 3112 "Servicio de energía eléctrica" del orden centralizado donde requiere ser dotada de recursos para cubrir el ritmo de operación de este Órgano Político Administrativo en Tlalpan.
B83: U026 | C83: 0 | D83: 80020831.44 | F83: 14027 | G83: 00 Y 87 | I83: 407956.56 | J83: 1 | K83: =IFERROR((#REF!/$C81)*100,"") ->  | L83: Esta reducción se solicita después de analizar los compromisos establecidos en este rubro y la tendencia del gasto, de esto se obtuvo que los recursos no serán requeridos. Por lo anterior, se decidió reorientar estos recursos para solventar otras necesidades dentro de la Partida 3112 "Servicio de energía eléctrica" del orden centralizado donde requiere ser dotada de recursos para cubrir el ritmo de operación de este Órgano Político Administrativo en Tlalpan.
B84: K015 | C84: 82994181 | D84: =69560428.83-I84 -> 68560428.83 | E84: 82.60871787 | F84: 14904 | G84: 00 | I84: 1000000 | J84: 1 | K84: =IFERROR((#REF!/$C82)*100,"") ->  | L84: Esta reducción se solicita después de analizar los compromisos establecidos en este rubro y la tendencia del gasto, de esto se obtuvo que los recursos no serán requeridos. Por lo anterior, se decidió reorientar estos recursos para solventar otras necesidades dentro de la Partida 3112 "Servicio de energía eléctrica" del orden centralizado donde requiere ser dotada de recursos para cubrir el ritmo de operación de este Órgano Político Administrativo en Tlalpan.
B85: E124 | C85: 59665308 | D85: 35823007.64 | E85: 60.03992746 | F85: 14904 | G85: 00 | H85: 1000000 | J85: 1 | K85: =IFERROR((#REF!/$C83)*100,"") ->  | L85: Esta ampliación se realizó con la finalidad de contar con los recursos presupuestales necesarios para establecer el compromiso de gasto y seguir atendiendo el servicio de energía eléctrica en las calles secundarias de esta Alcaldía, que se realiza en beneficio de los ciudadanos.
B86: O001 | C86: 114846621 | D86: 107409961.7 | E86: 93.52470344 | F86: 15157 | G86: 00 | I86: 406000 | J86: 1 | K86: =IFERROR((#REF!/$C84)*100,"") ->  | L86: El compromiso se realizó con recursos del fondo FEIF, sin embargo, con fines de optimizar al máximo los recursos asignados a esta Alcaldía, se realizará el compromiso con el Fondo General de Participaciones , y los recursos del fondo FEIF, lo que se reducen en esta adecuación se orientarán a la partida 2311 "Productos alimenticios, agropecuarios y forestales adquiridos como materia prima", con la finalidad de realizar un cambio de fuente de financiamiento .
B87: O001 | C87: 114846621 | D87: 107815961.7 | E87: 93.87821841 | F87: 15242 | G87: 00 | H87: 406000 | J87: 1 | K87: =IFERROR((#REF!/$C85)*100,"") ->  | L87: Es preciso mencionar, que con estos recursos se tiene contemplado la adquisición de vara de perlilla, elemento esencial para el personal operativo en el desarrollo de las funciones de limpia de la Dirección General de Servicios Urbanos.
B88: E123 | C88: 70082449 | D88: 69142449 | E88: =IFERROR(($D88/$C88)*100,"") -> 98.65872267 | F88: 15440 | G88: 89 | I88: 750000 | J88: 1 | K88: =IFERROR((#REF!/$C86)*100,"") ->  | L88: Esta reducción se solicita después de analizar los compromisos establecidos en este rubro y la tendencia del gasto, de esto se obtuvo que los recursos no serán requeridos. Por lo anterior, se decidió reorientar estos recursos para solventar otras necesidades dentro de la Partida 3112 "Servicio de energía eléctrica" del orden centralizado donde requiere ser dotada de recursos para cubrir el ritmo de operación de este Órgano Político Administrativo en Tlalpan.
B89: K014 | C89: 140452224 | D89: 110455533.2 | E89: =IFERROR(($D89/$C89)*100,"") -> 78.64277978 | F89: 15440 | G89: 89 | I89: 470309.17 | J89: 1 | K89: =IFERROR((#REF!/$C87)*100,"") ->  | L89: Esta reducción se solicita después de analizar los compromisos establecidos en este rubro y la tendencia del gasto, de esto se obtuvo que los recursos no serán requeridos. Por lo anterior, se decidió reorientar estos recursos para solventar otras necesidades dentro de la Partida 3112 "Servicio de energía eléctrica" del orden centralizado donde requiere ser dotada de recursos para cubrir el ritmo de operación de este Órgano Político Administrativo en Tlalpan.
B90: E124 | C90: 59665308 | D90: 37043316.81 | E90: =IFERROR(($D90/$C90)*100,"") -> 62.08518493 | F90: 15440 | G90: 00 | H90: 1220309.17 | J90: 1 | K90: =IFERROR((#REF!/#REF!)*100,"") ->  | L90: Esta ampliación se realizó con la finalidad de contar con los recursos presupuestales necesarios para establecer el compromiso de gasto y seguir atendiendo el servicio de energía eléctrica en las calles secundarias de esta Alcaldía, que se realiza en beneficio de los ciudadanos
B91: S207 | C91: 4000000 | D91: 10000 | F91: 15552 | G91: 77 | I91: 10000 | J91: 1 | L91: Esta reducción se solicita después de analizar los compromisos establecidos en este rubro y la tendencia del gasto, de esto se obtuvo que los recursos no serán requeridos. Por lo anterior, se decidió reorientar estos recursos para solventar otras necesidades dentro de la Partida 3112 "Servicio de energía eléctrica" del orden centralizado donde requiere ser dotada de recursos para cubrir el ritmo de operación de este Órgano Político Administrativo en Tlalpan.
B92: S207 | C92: 4000000 | D92: 10000 | F92: 15552 | G92: 77 | I92: 10000 | J92: 1 | L92: Esta ampliación se realizó con la finalidad de contar con los recursos presupuestales necesarios para establecer el compromiso de gasto y seguir atendiendo el servicio de energía eléctrica en las calles secundarias de esta Alcaldía, que se realiza en beneficio de los ciudadanos

Sheet ADS-1
B2: ADS-1 AYUDAS, DONATIVOS Y SUBSIDIOS
B4: Unidad Responsable de Gasto: | C4: 02CD14 ALCALDÍA TLALPAN
B5: Período: | C5: =[12]Caratula!I17 -> ENERO - DICIEMBRE 2021
B7: ÁREA FUNCIONAL | C7: CLAVE Y DENOMINACIÓN DE LA PARTIDA ESPECÍFICA | D7: BENEFICIARIO | F7: PRESUPUESTO EJERCIDO (Pesos con dos decimales) | G7: CARACTERÍSTICAS
B8: FI-F-SF-AI-PP | D8: TIPO | E8: TOTAL
B10: 1-3-4-001-O001 | C10: 4391.- OTROS SUBSIDIOS | D10: APOYO | E10: Ayuda en la adecuación del campamento de la Guardia Nacional en el Pueblo de San Miguel Topilejo. Septiembre 2021 | F10: 283660.78 | G10: trabajos de remodelación y mejoramiento de las instalaciones, en dormitorios, caballerizas, patios y accesos en el inmueble que ocupa la Unidad de Policía Metropolitana, en el km. 14 de la carretera Picacho Ajusco y de los bienes y suministros proporcionados para la operación y funcionamiento de los campamentos que ocupan los elementos de la Guardia Nacional
C24: TOTAL URG | F24: 283660.78

Sheet ADS-2
B2: ADS-2 AYUDAS, DONATIVOS Y SUBSIDIOS A FIDEICOMISOS
B4: Unidad Responsable de Gasto: | C4: 02CD14 ALCALDÍA TLALPAN
B5: Período: | C5: =[12]Caratula!I17 -> ENERO - DICIEMBRE 2021
B7: ÁREA FUNCIONAL | C7: NOMBRE DEL FIDEICOMISO | D7: MONTO (Pesos con dos decimales) | H7: DESTINO DEL GASTO
B8: FI-F-SF-AI-PP | D8: INGRESO | E8: GASTO | F8: RENDIMIENTOS FINANCIEROS | G8: SALDO
C26: TOTAL URG

Sheet SAP
B2: SAP PROGRAMAS QUE OTORGAN SUBSIDIOS Y APOYOS A LA POBLACIÓN
B4: Unidad Responsable de Gasto: | C4: 02CD14 ALCALDÍA TLALPAN
B5: Período: | C5: =[12]Caratula!I17 -> ENERO - DICIEMBRE 2021
B7: ÁREA FUNCIONAL | C7: DENOMINACIÓN DEL PROGRAMA1/ | D7: FECHA DE PUBLICACIÓN DE REGLAS DE OPERACIÓN | E7: ALCALDÍA | F7: COLONIA | G7: BENEFICIARIO | I7: PRESUPUESTO EJERCIDO (Pesos con dos decimales)
B8: FI-F-SF-AI-PP | G8: TIPO | H8: TOTAL
B9: 2-6-2-017-S126 | C9: S126 PROGRAMA SOCIAL “COMUNIDAD HUEHUEYOTL, APOYO A COLECTIVOS DE PERSONAS ADULTAS MAYORES” | D9: 29 de enero de 2021. | E9: TLALPAN | F9: "Preferentemente en alguna de las 65 colonias de muy bajo y bajo índice de desarrollo social" | G9: APOYO | H9: 3,250 personas | I9: 2000000
B10: 2-4-4-050-S127 | C10: S127 PROGRAMA SOCIAL “PROMOCIÓN DE DESARROLLO COMUNITARIO, MOCHILA DE DERECHOS” | D10: 29 de enero de 2021. | E10: TLALPAN | F10: Ampliación Tepeximilpa, AMSA, Belvedere Yobain, Campo Xochitl, Capulín, Carrasco, Casa Del Adulto Mayor (Los Vergeles), CEFORMA, Fuentes Brotantes, Cri- Cri, Cultura Maya, Isidro Fabela, La Fama, Lomas Hidalgo, Luis Donaldo Colosio, Magdalena Petlacalco , Mesa Los Hornos, Miguel Hidalgo, Mirador I Lirios, Parque Morelos, Parres, Pueblo Quieto, San Miguel Xicalco , Héroes De Padierna, Santa Úrsula Xitla, Santo Tomás Ajusco, Pueblo De Parres El Guarda, Pueblo De Magdalena Petlacalco, San Miguel Ajusco, Pueblo De San Pedro Mártir, Dos De Octubre, Texcaltenco, Tlalcolígia, San Miguel Topilejo,. Torres De Padierna, Verano, Narsciso Mendoza, Villa Coapa, María Esther Zuno De Echeverria, Pedregal De San Nicolás, 1ª y 3ª Sección, Miguel Hidalgo 2ªsección, Coapa, Hopelchen. | G10: APOYO | H10: 6,600 personas | I10: 9939999.85
B11: 2-6-8-032-S128 | C11: S128 PROGRAMA SOCIAL “DEFENSORÍA DE LOS DERECHOS Y APOYOS ECONÓMICOS A NIÑAS Y NIÑOS DE TLALPAN” | D11: 29 de enero de 2021. | E11: TLALPAN | F11: Preferentemente en alguna de las 65 colonias de muy bajo y bajo índice de desarrollo social | G11: APOYO | H11: 6,000 personas | I11: 9999999
B12: 2-5-2-129-S129 | C12: S129 PROGRAMA SOCIAL “ASESORÍAS PARA EL EXAMEN DE INGRESO A LA EDUCACIÓN MEDIA SUPERIOR" | D12: 29 de enero de 2021. | E12: TLALPAN | F12: Diversas colonias de la Alcaldía | G12: APOYO | H12: 1,800 personas, | I12: 1500000
B13: 2-5-6-129-S130 | C13: S130 PROGRAMA SOCIAL “EDUCARNOS EN COMUNIDAD PARA EL BIENESTAR SOCIAL” | D13: 29 de enero de 2021. | E13: TLALPAN | F13: Diversas colonias de la Alcaldía | G13: APOYO | H13: hasta 6,000 personas | I13: 9999920
B14: 2-5-6-129-S132 | C14: S132 PROGRAMA SOCIAL “APOYO PROFESIONAL A LA POBLACIÓN EN SUS TAREAS EDUCATIVAS EN LAS BIBLIOTECAS PÚBLICAS” | D14: 29 de enero de 2021. | E14: TLALPAN | F14: Diversas colonias de la Alcaldía | G14: APOYO | H14: 700 personas | I14: 1000000
B15: 2-2-2-095-S133 | C15: S133 PROGRAMA SOCIAL " IMAGEN URBANA PARA CULTIVAR COMUNIDAD” | D15: 29 de enero de 2021. | E15: TLALPAN | F15: 34 colonias de bajo y muy bajo índice de desarrollo social (ver colonias en Informe 4° Trimestre) • Chimalcoyotl • San Pedro Mártir • San Miguel Topilejo • Parres el Guarda • San Miguel Xicalco • Magdalena Petlacalco • Santa Úrsula Xitla • San Miguel Ajusco • Santo Tomás Ajusco • Barrio cuevitas de Curamagüey • Barrio el Capulín • Barrio el Truenito • Barrio la Fama • Barrio la Lonja • Barrio San Fernando • Bosques del Pedregal • El mirador I • El Zacatón • Jardines de Xitle • Los Encinos • Mesa los Hornos • Nuevo Renacimiento de Axalco • Paraje 38 • Pedregal de San Nicolás 2ª. Sección • Pedregal de San Nicolás 3ª. Sección • Popular Santa Teresa • Primavera-Verano • Tlalmille • Tecorral • Solidaridad • San Juan Tepeximilpa • Chichicaspatl • Cruz del Farol | G15: APOYO | H15: 198,478 personas | I15: 6591396.62
B16: 1-1-6-089-S134 | C16: S134 PROGRAMA SOCIAL “HUELLAS: SEMBRANDO COMPAÑÍA EN COMUNIDAD” | D16: 29 de enero de 2021. | E16: TLALPAN | F16: Diversas colonias de la Alcaldía | G16: APOYO | H16: 21,000 personas | I16: 1709994
B17: 2-2-2-031-S135 | C17: S135 PROGRAMA SOCIAL “UNIDAD-ES TLALPAN” | D17: 29 de enero de 2021. | E17: TLALPAN | F17: Fuentes Brotantes Bloque “M”; Fuentes Brotantes Bloque “K”; INVI; Tlalpan Huepanco; Rinconada del Moral; Fuentes Brotantes Corregidora; Fuentes Brotantes Bloque “B”; Fuentes Brotantes Bloque “C”; Fuentes Brotantes Bloque “L”; Piñanona; La Corregidora; Prolongación Canal de Miramontes 348; Acueducto 62; Jardines de Tlalpan; Real der Sur; Rinconada del Moral; La Joya 131 y 135; Acoxpa 21; Luis Donaldo Colosio; Super Manzana 6; Fuentes Brotantes Manzana 1; Cacahuatales 57; Torres Tlalpan; Urbano Cuemanco; Brujas 55-FASE I; Tres Fuentes 282; Fuentes Brotantes Manzana 3; Misiones Tlalpan; Reforma Agraria; Tres Fuentes, | G17: APOYO | H17: hasta 60,000 personas | I17: 12000000
F18: Los Alcatraces; Plaza de la Constitución; Tlalpan 2000; Cacahuatales 12; Margaritas; Vista Montaña III; Tlalpan Elite; Teya 375; Rancho Calichal; Antigua Ajusco II; Lorna 10; Antigua Acanto; Fuentes Brotantes Bloque “F”; Estrella del Sur; Bugambilias; Fuentes Brotantes Bloque “J”; Fuentes Brotantes Manzana 5; Florales 42; Arboledas del Sur Bekal; Las Torres 173; Cacahuatales 54; Diligencias Tlalpan; Tenorios II; Rinconada de las Torres; Zapote I; Cafetales 318; Fuentes Brotantes Bloque “E”; Florales 28; Emilio Portes Gil; Tres Fuentes 274; Residencial Insurgentes RIS I; Santa Ursula 177; Super Manzana 7; Zapote II; José Vasconcelos; ISSSFAM; Club de Golf; Cañaverales 35; Versalles;
F19: Peña Pobre; Brujas 55-Fase II; Super Manzana 1; Aldeas de San Andrés; Azaleas; Fuentes Brotantes Bloque “A”; Dr. Ignacio Chávez; Sauzales 35; Súper Manzana 2; Fuentes Brotantes Bloque 4; Tres Fuentes 312; Lotería Nacional; Súper Manzana 3; Coapa Tenorios; Misiones Tlalpan II; Hueso Periférico; Acoxpa 15; Club Deportivo León; Once Mártires; Esmeralda 45; Fuentes Brotantes Bloque “D”; Fuentes Brotantes Bloque “H”; Fuentes Brotantes Manzana 2; 5 de Mayo; Fuentes de Cantera; Torre “G”; Rosal 15; FOVISSSTE San Pedro Mártir.
B20: 2-2-6-108-S136 | C20: S136 PROGRAMA SOCIAL “JOVENES CULTIVANDO LA MOVILIDAD” | D20: 29 de enero de 2021. | E20: TLALPAN | F20: 3 De Mayo Álamos Ampliación Miguel Hidalgo Ampliación San Marcos Norte Arboledas Del Sur Barrio De Los Reyes Barrio El Capulín Barrio Los Reyes Barrio Niño Jesús Barrio Xochiaca Barrio Xochitepec Belvedere Bosques De Tepeximilpa Bosques Del Pedregal Buenavista Camino Viejo Al Ajusco Cantera Puente De Piedra Carola Chimalcoyotl Constitucion 1917 Cruz Del Farol Cuchilla De Padierna Culhuacán Secc X A Del Carmen Del Mar Dolores Tlali Ejercito De Oriente Ejido De Santa Úrsula Ejidos De San Pedro Mártir El Divisadero El Mirador El Reto El Rosal Eltránsito Ex Ejidos De Huipulco Fresno Fuentes Brotantes Gabriel Ramos Millán Granjas Coapa Guerrero Haciendas De Coyoacán Heroes De Padierna Huipulco Isidro Fabela Ixtapa Juventud Unida La Fama La Joya La Primavera La Turba Las Águilas Letrán Valle Lomas De Padierna Lomas De Padierna Sur Lomas Hidalgo Los Volcanes Magdalena Petlacalco Mesa Los Hornos Miguel Hidalgo Miguel Hidalgo 1° Sección Miguel Hidalgo 3° Sección Mirador 3° Sección Mirador Del Valle Pareje Temastititla Parres El Guarda Paseos De Churubusco Pedregal De La Zorra Pedregal De Las Águilas Pedregal De San Nicolas Pedregal De Santa Úrsula Pedregal De Santa Úrsula Coapa Pedregal De Santa Úrsula Xitla Pedregal De Santo Domingo Peña Pobre Plan De Ayala Popular Santa Teresa Populares Guadalupe Tulpetlac Prado Coapa 2° Sección Pueblo San Lorenzo Atemoaya Pueblo San Lucas Xochimanca Pueblo San Miguel Ajusco Pueblo San Miguel Xicalco Pueblo San Salvador Cuauhtenco San Andrés Tetepilco San Andrés Totoltepec San Felipe De Jesús San Francisco Chimalpa San Ignacio San Jerónimo Lídice San Juan Tepeximilpa San Lucas Coyoacán San Luis Tlaxialtemalco San Miguel Ajusco San Miguel Tehuisco San Miguel Topilejo San Nicolás Totolapan San Pedro Apóstol San Pedro Mártir Santa Cruz De Guadalupe Santa María Nonoalco Santa Úrsula Xitla Santísima Trinidad Santo Domingo Santo Tomás Ajusco Seccion Vii Solidaridad Tepalcates Tepeximilpa Texcaltenco Tlalcoligia Tlalmille Tlalpan Centro Tlaxcaltenco De La Mesa Tlaxopan Vallejo Vergel De Coyoacán Vicente Guerrero Villa Coapa Zacahuitzo | G20: APOYO | H20: 46,439 personas | I20: 12149808
B21: 2-2-2-055-S137 | C21: S137 PROGRAMA SOCIAL “CULTIVANDO COMUNIDAD CON LA PARTICIPACIÓN CIUDADANA” | D21: 29 de enero de 2021. | E21: TLALPAN | F21: Comuneros de Santa Úrsula Xitla, Mesa de los Hornos, Tlaxcaltenco, Santísima Trinidad, San Juan Tepeximilpa, Juventud Unida, Popular Santa Teresa, Pedregal de San Nicolás 4a Sección, Pedregal de San Nicolás 2a Sección, Torres de Padierna, Chichicáspatl, Sector XVII, Bosques del Pedregal, Vistas del Pedregal, Lomas de Cuilotepec, Dos de Octubre, Lomas de Padierna Sur, Belvedere, Mirador II, Chimilli, Cruz del Farol, El Zacatón, San Nicolás II, Zorros Solidaridad, Paraje 38, Primavera, Verano, Cultura Maya, Cuchilla de Padierna, Tlalmille, Pueblo Santa Úrsula Xitla, Pueblo Chimalcoyoc, Pueblo de San Pedro Mártir, Pueblo de San Andrés Totoltepec, Pueblo de San Miguel Xicalco, | G21: APOYO | H21: 250,000 personas | I21: 24297000
F22: Pueblo de La Magdalena Petlacalco, Pueblo de San Miguel Ajusco, Pueblo de Santo Tomás Ajusco, Pueblo de San Miguel Topilejo, Pueblo de Parres el Guarda; Isidro Fabela, Ampliación Isidro Fabela, Toriello Guerra, Barrio San Pedro Apostol, El Mirador 3a Sección, El Mirador 2a Sección, El Mirador 1a Sección, Pedregal de Santa Úrsula Xitla, Tlalcoligia, Los Volcanes, AMSA, Ex Hacienda San Juan de Dios, Guadalupe Tlalpan, Ejidos de San Pedro Mártir, Lomas de Padierna, Pedregal de San Nicolás 3a Sección, Héroes de Padierna, Pedregal de San Nicolás 4a Sección, Los Encinos, Lomas del Pedregal, Miguel Hidalgo 4a Sección, Miguel Hidalgo 3a Sección, Miguel Hidalgo 1a Sección.
B23: 2-4-1-046-S138 | C23: S138 PROGRAMA SOCIAL “CULTIVANDO ACTIVIDADES DEPORTIVAS” | D23: 29 de enero de 2021. | E23: TLALPAN | F23: Comuneros de Santa Úrsula Xitla, Mesa de los Hornos, Tlaxcaltenco, Santísima Trinidad, San Juan Tepeximilpa, Juventud Unida, Popular Santa Teresa, Pedregal de San Nicolás 4a Sección, Pedregal de San Nicolás 2a Sección, Torres de Padierna, Chichicáspatl, Sector XVII, Bosques del Pedregal, Vistas del Pedregal, Lomas de Cuilotepec, Dos de Octubre, Lomas de Padierna Sur, Belvedere, Mirador II, Chimilli, Cruz del Farol, El Zacatón, San Nicolás II, Zorros Solidaridad, Paraje 38, Primavera, Verano, Cultura Maya, Cuchilla de Padierna, Tlalmille, Pueblo de San Andrés Totoltepec, Pueblo de San Miguel Xicalco, Pueblo de La Magdalena Petlacalco, Pueblo de San Miguel Ajusco, Pueblo de Santo Tomás Ajusco, | G23: APOYO | H23: 22,000 personas | I23: 2999999.86
F24: Pueblo de San Miguel Topilejo, Pueblo de Parres el Guarda; Isidro Fabela, Ampliación Isidro Fabela, Toriello Guerra, Barrio San Pedro Apostol, El Mirador 3a Sección, El Mirador 2a Sección, El Mirador 1a Sección, Pedregal de Santa Úrsula Xitla, Tlalcoligia, Los Volcanes, AMSA, Ex Hacienda San Juan de Dios, Guadalupe Tlalpan, Pueblo de San Pedro Mártir, Ejidos de San Pedro Mártir, Lomas de Padierna, Pedregal de San Nicolás 3a Sección, Héroes de Padierna, Pedregal de San Nicolás 4a Sección, Los Encinos, Lomas del Pedregal, Miguel Hidalgo 1a, 2da , 3ra y 4a Sección, La Palma, María Esther Zuno de Echeverría.
B25: 2-1-5-030-S139 | C25: S139 PROGRAMA SOCIAL “APOYO AL DESARROLLO AGROPECUARIO Y SUSTENTABLE" | D25: 29 de enero de 2021. | E25: TLALPAN | F25: Alvaro Oregón, Chimalcoyoc,Santa Ursula Coapa,San Pedro Martir,San Juan Estrella,Residencial Villa Prado Coapa,Bosques Del Pedregal,San Lucas ,Bochimanca, Lomas De Padierna, Pro Hogar, Copilco Universidad, Insurgentes Mixcoac, Pedregal De Santo Domingo, Valle De Tepepan, Polanco Ii Sección, Narciso Mendoza Nativitas, San Andres Totoltepec, Lomas De San Lorenzo, Ejidos De San Pedro Mártir, Acueducto, Héroes De Padierna, Pueblo De Los Reyes, La Obrra Norte, Los Volcanes, Chilmahuacan, Amp. Progreso Nacional, El Mirador 3ra Sección , Escandón, San Miguel Y Santo Tomas Ajusco, Magdalena Petlacalco, Los Encinos, San Miguel Topilejo. | G25: APOYO | H25: al menos 1,001 personas | I25: 49260000
B26: 1-7-1-063-S140 | C26: S140 PROGRAMA SOCIAL “PREVENCION DEL DELITO TLALPAN” | D26: 29 de enero de 2021. | E26: TLALPAN | F26: Chimalcoyoc, Cultura Maya, Héroes de Padierna, Isidro Fabela, La Magdalena Petlacalco, Lomas de Padierna, Mesa Los Hornos, Miguel Hidalgo, Parres El Guarda, Pedregal de San Nicolás, San Andrés Totoltepec, San Lorenzo Huipulco, San Miguel Ajusco, San Miguel Topilejo, San Miguel Xicalco, San Pedro Mártir, Santa Úrsula Xitla, Santo Tomás Ajusco, Tlalpan Centro y Toriello Guerra. | G26: APOYO | H26: al menos 169,596 personas | I26: 9999990
B27: 2-6-8-117-S200 | C27: S200 PROGRAMA SOCIAL “JUVENTUDES TLALPAN, CULTIVANDO RAÍCES DE IDENTIDAD Y COMUNIDAD” | D27: 29 de enero de 2021. | E27: TLALPAN | F27: Diferentes colonias de la Alcaldía | G27: APOYO | H27: 350 personas | I27: 2000000
B28: 1-4-2-077-S208 | C28: S208 PROGRAMA SOCIAL ""CULTIVANDO PAZ, ARTE Y CULTURA EN TLALPAN"" | D28: 29 de enero de 2021 | E28: TLALPAN | F28: Diversas colonias de la Alcaldía | G28: APOYO | H28: 2,000 personas, con talleres artísticos 147 facilitadores de servicios | I28: 10930000
B29: 2-4-2-078-S206 | C29: S206 PROGRAMA SOCIAL "FORMACION MUSICAL, TLALPAN" | D29: 29 de enero 2021 | E29: TLALPAN | F29: Diversas colonias de la Alcaldía | G29: APOYO | H29: 250 niñas, niños, adolescen-tes y jóvenes 47 facilitadores (talleristas, directores, auxiliares y coordina-dores) | I29: 4000000
B30: 2-6-8-026-U024 | C30: U024 PROGRAMA SOCIAL "SEAMOS MEJORES ESTUDIANTES" | D30: 7 de julio 2021 | E30: TLALPAN | F30: Diversas colonias de la Alcaldía | G30: APOYO | H30: 20 personas | I30: 150000
B31: 2-7-1-026-U026 | C31: U026 PROGRAMA SOCIAL "APOYOS ECONÓMICOS Y OTRAS AYUDAS SOCIALES" | D31: 13 de abril de 2021 | E31: TLALPAN | F31: Diversas colonias de la Alcaldía | G31: APOYO | H31: Habitantes que residen en la demarcación | I31: 66539324.15
C33: TOTAL URG | I33: =SUM(I9:I32) -> 237067431.5
B35: 1/ Se refiere a programas que cuentan con reglas de operación publicadas en la Gaceta Oficial de la Ciudad de México.

Sheet FIC
B2: FIC FIDEICOMISOS CONSTITUIDOS
B4: Unidad Responsable de Gasto: | C4: 02CD14 ALCALDÍA TLALPAN
B5: Período: | C5: ENERO - DICIEMBRE 2021
B7: DATOS GENERALES DEL FIDEICOMISO
B9: Denominación del Fideicomiso:
B10: Fecha de su constitución:
B11: Fideicomitente:
B12: Fideicomisario:
B13: Fiduciario:
B14: Objeto de su constitución:
B15: Modificaciones al objeto de su constitución:
B16: Objeto actual:
B18: DISPONIBILIDAD PRESUPUESTAL DEL FIDEICOMISO
B19: Disponibilidad de Recursos al Finalizar el Trimestre Anterior: (a) | C19: Disponibilidad de Recursos al Finalizar el Trimestre de Referencia: (b) | D19: Variación de la Disponibilidad = (b)-(a)
B22: ESTADO FINANCIERO DEL FIDEICOMISO
B23: Activo: | C23: Pasivo: | D23: Capital:
B26: AVANCE PRESUPUESTAL DEL FIDEICOMISO
B27: Naturaleza del Gasto: | C27: Destino del Gasto: | D27: Monto Ejercido:

Sheet AP-FAFA
B2: AP-FAFA AVANCE PRESUPUESTAL DEL FONDO ADICIONAL DE FINANCIAMIENTO DE LAS ALCALDÍAS
B4: Alcaldía: | G4: 02CD14 ALCALDÍA TLALPAN
B5: Período: | G5: ENERO - DICIEMBRE 2021
B7: ESTRUCTURA VALOR PÚBLICO | E7: ÁREA FUNCIONAL | F7: DENOMINACIÓN DEL PROYECTO APROBADO | G7: PRESUPUESTO (Pesos con dos decimales) | N7: AVANCE %
B8: EJE | C8: SUB EJE | D8: SUB SUB EJE | E8: FI-F-SF-AI-PP | G8: APROBADO | H8: MODIFICADO | I8: EJERCIDO | J8: SALDO DEL COMPROMISO | K8: DEVENGADO | L8: PAGADO | M8: EJERCIDO + COMPROMETIDO | N8: (SALDO DEL COMPROMISO + EJERCIDO) / MODIFICADO)*100
N9: =IFERROR(($J9/$G9)*100,"") -> 
N10: =IFERROR(($M10/$H10)*100,"") -> 
N11: =IFERROR(($M11/$H11)*100,"") -> 
F24: TOTAL URG
B26: ACCIONES REALIZADAS CON RECURSOS DEL FONDO ADICIONAL DE FINANCIAMIENTO DE LAS ALCALDÍAS:

Sheet PPA20
B2: PPA PRESUPUESTO PARTICIPATIVO
B4: Alcaldía: | D4: 02CD14 ALCALDÍA TLALPAN
B5: Período: | D5: ENERO - DICIEMBRE 2021
B6: Ejercicio: | D6: 2020
B8: UNIDAD TERRITORIAL | D8: PROYECTO | H8: AVANCE EN LA EJECUCIÓN DEL PROYECTO (%) | I8: PRESUPUESTO (Pesos con dos decimales) | Q8: AVANCE PRESUPUESTAL %
B9: CLAVE | C9: DENOMINACIÓN | D9: GANADOR | F9: SUSTITUTO | I9: CAPÍTULO DE GASTO | J9: APROBADO | K9: MODIFICADO | L9: EJERCIDO | M9: SALDO DEL COMPROMISO | N9: DEVENGADO | O9: PAGADO | P9: EJERCIDO + COMPROMETIDO | Q9: (SALDO DEL COMPROMISO +EJERCIDO /MODIFICADO *100
D10: NÚMERO | E10: NOMBRE | F10: OFICIO AUTORIZACIÓN | G10: NOMBRE
B11: 12-001 | C11: AHUACATITLA | D11: A3 | E11: CALENTADORES SOLARES DE15 TUBOS | H11: 0.85 | I11: 2000 | J11: 317017 | K11: 317017 | L11: 0 | M11: 302373.9389 | N11: 302373.9389 | O11: 0 | P11: 302373.9389 | Q11: =+L11+M11/K11 -> 0.9538098553
B12: 12-002 | C12: AMPLIACIÓN MIGUEL HIDALGO 2A SECC | D12: A1 | E12: REMODELACION Y MEJORAMIENTO DEL PARQUE BUSTO DE JUAREZ 2020 | H12: 0.85 | I12: 6000 | J12: 1004156 | K12: 1004156 | L12: 0 | M12: 1004156 | N12: 1004156 | O12: 0 | P12: 1004156 | Q12: =+L12+M12/K12 -> 1
B13: 12-003 | C13: AMPLIACION MIGUEL HIDALGO 3A SECC | D13: A7 | E13: CALENTADORES SOLARES PARA LA COLONIA | H13: 0.85 | I13: 2000 | J13: 1040767 | K13: 1040767 | L13: 0 | M13: 1025027.335 | N13: 1025027.335 | O13: 0 | P13: 1025027.335 | Q13: 0.9848768599
B14: 12-004 | C14: AMPLIACION MIGUEL HIDALGO 4A SECC | D14: A2 | E14: CALENTADORES PARA COLONOS DE AMPLIACIÓN MIGUEL HIDALGO 4A SECCIÓN | H14: 0.85 | I14: 2000 | J14: 810421 | K14: 810421 | L14: 0 | M14: 798164.8897 | N14: 798164.8897 | O14: 0 | P14: 798164.8897 | Q14: 0.9848768599
B15: 12-005 | C15: AMSA | D15: A2 | E15: ARREGLOS Y COMPOSTURA DEL PARQUE "MARTÍN TORRES PADILLA" | H15: 0.85 | I15: 6000 | J15: 344107 | K15: 344107 | L15: 0 | M15: 344107 | N15: 344107 | O15: 0 | P15: 344107 | Q15: 1
B16: 12-007 | C16: ARBOLEDAS DEL SUR | D16: A6 | E16: BANQUETAS DE CALIDAD | H16: 0.85 | I16: 6000 | J16: 483912 | K16: 483912 | L16: 0 | M16: 483912 | N16: 483912 | O16: 0 | P16: 483912 | Q16: 1
B17: 12-008 | C17: ARENAL GUADALUPE TLALPAN | D17: A1 | E17: BARRERAS ANTI INUNDACIÓN Y VÁLVULAS CHECK PARA REDUCIR LA VULNERABILIDAD Y EL RIESGO DE INUNDACIÓN Y PÉRDIDA DEL PATRIMONIO EN COL GUADALUPE TLA | H17: 0.85 | I17: 6000 | J17: 421186 | K17: 421186 | L17: 0 | M17: 421186 | N17: 421186 | O17: 0 | P17: 421186 | Q17: 1
B18: 12-009 | C18: ARENAL PUERTA TEPEPAN | D18: A1 | E18: RECUPERACIÓN DEL ÁREA VERDE DE LA CALLE RÍO SAN BUENAVENTURA CON ESQUINA PERIFÉRICO SUR | H18: 0.85 | I18: 6000 | J18: 358047 | K18: 358047 | L18: 0 | M18: 358047 | N18: 358047 | O18: 0 | P18: 358047 | Q18: 1
B19: 12-010 | C19: ATOCPA SUR | D19: A1 | E19: COLOCACIóN DE TINACOS PARA TODA LA COLONIA. | H19: 0.85 | I19: 2000 | J19: 360193 | K19: 360193 | L19: 0 | M19: 359628.26 | N19: 359628.26 | O19: 0 | P19: 359628.26 | Q19: 0.9984321183
B20: 12-011 | C20: AYOCATITLA, ASUNCIÓN | D20: A2 | E20: PAVIMENTACIóN ASFáLTICA DE LAS CALLES PRIMARIAS PROLONGACIóN SANTA CRUZ Y AYOCATITLA EN LA COLONIA AYOCATITLA/ASUNCIóN LAS CUALES SE UNIFICAN ADEL | H20: 0.85 | I20: 6000 | J20: 369220 | K20: 369220 | L20: 0 | M20: 369220 | N20: 369220 | O20: 0 | P20: 369220 | Q20: 1
B21: 12-013 | C21: BELVEDERE | D21: A2 | E21: RESCATE DE ÁREA VERDE DE LA COLONIA BELVEDERE PARA HABILITAR UN PABELLóN PARA ACTIVIDADES CULTURALES Y ECOLóGICAS, JUEGOS LúDICOS Y BANCAS. | H21: 0.85 | I21: 6000 | J21: 574522 | K21: 574522 | L21: 0 | M21: 574522 | N21: 574522 | O21: 0 | P21: 574522 | Q21: 1
B22: 12-014 | C22: BOSQUE DE TEPEXIMILPA | D22: A7 | E22: CALENTADOR SOLAR PARA LA COLONIA BOSQUE DE TEPEXIMILPA PARA EL PRESUPUESTO PARTICIPATIVO 2020. | H22: 0.85 | I22: 2000 | J22: 348048 | K22: 348048 | L22: 0 | M22: 342784.4213 | N22: 342784.4213 | O22: 0 | P22: 342784.4213 | Q22: 0.9848768599
B23: 12-016 | C23: BOSQUES DEL PEDREGAL | D23: A6 | E23: CALENTADORES SOLARES PARA TODA LA COLONIA BOSQUES DEL PEDREGAL | H23: 0.85 | I23: 2000 | J23: 769962 | K23: 769962 | L23: 0 | M23: 758317.7568 | N23: 758317.7568 | O23: 0 | P23: 758317.7568 | Q23: 0.9848768599
B24: 12-017 | C24: CALVARIO CAMISETAS | D24: A5 | E24: CALENTADORES SOLARES EN CALLE CAMISETAS, LA FAMA, CALZADA FUENTES BROTANTES, 1ER ANDADOR CAMISETAS Y 2 ANDADOR Y PRIVADA FUENTES BROTANTES. | H24: 0.85 | I24: 2000 | J24: 320711 | K24: 320711 | L24: 0 | M24: 315860.8426 | N24: 315860.8426 | O24: 0 | P24: 315860.8426 | Q24: 0.9848768599
B25: 12-018 | C25: CANTERA PUENTE DE PIEDRA | D25: A10 | E25: ESPACIO CULTURAL Y EDUCATIVO ABIERTO EN ACALZALA PARA TODXS EN CANTERA PTE. DE PIEDRA, PROYECTO SOSTENIBLE AMIGABLE CON EL MEDIO AMBIENTE 1RA. ETAPA | H25: 0.85 | I25: 6000 | J25: 520317 | K25: 520317 | L25: 0 | M25: 520317 | N25: 520317 | O25: 0 | P25: 520317 | Q25: 1
B26: 12-019 | C26: CHICHICASPATL | D26: A3 | E26: ADQUISICION E INSTALACION DE PANELES SOLARES PARA TODA LA COLONIA CHICHICASPATL | H26: 0.85 | I26: 2000 | J26: 511561 | K26: 511561 | L26: 0 | M26: 500618.88 | N26: 500618.88 | O26: 0 | P26: 500618.88 | Q26: 0.9786103319
B27: 12-020 | C27: CHIMALCOYOC | D27: A3 | E27: REPARACION Y REHABITACION DE RAMPAS DE ACCESO PRINCIPALES PARA VEHICULOS | H27: 0.85 | I27: 6000 | J27: 553682 | K27: 553682 | L27: 0 | M27: 553682 | N27: 553682 | O27: 0 | P27: 553682 | Q27: 1
B28: 12-022 | C28: CHIMILLI | D28: A8 | E28: CONSTRUCCION DE TANQUE DE CAPTACION DE AGUAS PLUVIALES EN SOLIDARIDAD | H28: 0.85 | I28: 6000 | J28: 448742 | K28: 448742 | L28: 0 | M28: 448742 | N28: 448742 | O28: 0 | P28: 448742 | Q28: 1
B29: 12-023 | C29: CLUB DE GOLF MÉXICO-SAN BUENAVENTURA | D29: A1 | E29: ILUMINACIÓN A TRAVÉS DE FOTO CELDAS EN TODA LA COLONIA | H29: 0.85 | I29: 2000 | J29: 398085 | K29: 398085 | L29: 0 | M29: 384602.08 | N29: 384602.08 | O29: 0 | P29: 384602.08 | Q29: 0.96613055
B30: 12-024 | C30: COAPA 2A SECCION-RAMOS MILLAN | D30: A1 | E30: CÁMARAS DE VIGILANCIA PARA TODA LA COLONIA | H30: 0.85 | I30: 4000 | J30: 426948 | K30: 426948 | L30: 0 | M30: 426634.92 | N30: 426634.92 | O30: 0 | P30: 426634.92 | Q30: 0.9992667023
B31: 12-025 | C31: COLINAS DEL BOSQUE-LAS TORTOLAS | D31: A2 | E31: AREA DEPORTIVA Y RECREATIVA PARA PERROS | H31: 0.85 | I31: 6000 | J31: 347278 | K31: 347278 | L31: 0 | M31: 347278 | N31: 347278 | O31: 0 | P31: 347278 | Q31: 1
B32: 12-026 | C32: CONDOMINIO DEL BOSQUE (FRACC)-BOSQUE DE TLALPAN | D32: A1 | E32: MANTENIMIENTO DE ALUMBRADO PUBLICO EN TODO EL CONDOMINIO. | H32: 0.85 | I32: 6000 | J32: 329577 | K32: 329577 | L32: 0 | M32: 329577 | N32: 329577 | O32: 0 | P32: 329577 | Q32: 1
B33: 12-027 | C33: CONJUNTO URBANO CUEMANCO (U HAB) | D33: A6 | E33: CAMBIO DE CABLEADO ELÉCTRICO DE TODOS LOS POSTES DE LA UNIDAD | H33: 0.85 | I33: 6000 | J33: 340348 | K33: 340348 | L33: 0 | M33: 340348 | N33: 340348 | O33: 0 | P33: 340348 | Q33: 1
B34: 12-029 | C34: CRUZ DEL FAROL | D34: A4 | E34: INSTALACION DE CORREDOR RECREATIVO ECOLOGICO | H34: 0.85 | I34: 6000 | J34: 409324 | K34: 409324 | L34: 0 | M34: 409324 | N34: 409324 | O34: 0 | P34: 409324 | Q34: 1
B35: 12-030 | C35: CUCHILLA DE PADIERNA | D35: A10 | E35: CONTINUIDAD CALENTADORES SOLARES | H35: 0.85 | I35: 2000 | J35: 491886 | K35: 491886 | L35: 0 | M35: 484447.1391 | N35: 484447.1391 | O35: 0 | P35: 484447.1391 | Q35: 0.9848768599
B36: 12-031 | C36: CUILOTEPEC II | D36: A2 | E36: ADQUISICION E INSTALACION DE SISTEMAS DE CAPTACION DE AGUA PLUVIAL | H36: 0.85 | I36: 6000 | J36: 304527 | K36: 304527 | L36: 0 | M36: 304527 | N36: 304527 | O36: 0 | P36: 304527 | Q36: 1
B37: 12-032 | C37: CULTURA MAYA | D37: A8 | E37: ADQUISICION E INSTALACION DE CALENTADORES SOLARES | H37: 0.85 | I37: 2000 | J37: 675752 | K37: 675752 | L37: 0 | M37: 665532.5078 | N37: 665532.5078 | O37: 0 | P37: 665532.5078 | Q37: 0.9848768599
B38: 12-033 | C38: DIAMANTE | D38: A4 | E38: CONTINUIDAD DEL TECHADO DE CANCHA DEPORTIVA DE LA COLONIA 2020. | H38: 0.85 | I38: 6000 | J38: 366848 | K38: 366848 | L38: 0 | M38: 366848 | N38: 366848 | O38: 0 | P38: 366848 | Q38: 1
B39: 12-034 | C39: DOLORES TLALI | D39: A1 | E39: CALENTADORES SOLARES EN TODA LA COLONIA | H39: 0.85 | I39: 2000 | J39: 329374 | K39: 329374 | L39: 0 | M39: 324392.8308 | N39: 324392.8308 | O39: 0 | P39: 324392.8308 | Q39: 0.9848768599
B40: 12-035 | C40: EJIDOS DE SAN PEDRO MARTIR I (NORTE) | D40: A1 | E40: CALENTADORES SOLARES | H40: 0.85 | I40: 2000 | J40: 650544 | K40: 650544 | L40: 0 | M40: 640705.7319 | N40: 640705.7319 | O40: 0 | P40: 640705.7319 | Q40: 0.9848768599
B41: 12-036 | C41: EL ARENAL | E41: CONTINUACIóN DE LA PAVIMENTACIóN DE PROLONGACIóN MOCTEZUMA EN DIRECCIóN CALLE INDEPENDENCIA (POR DEFINIR EN ASAMBLEA CIUDADANA DE CASOS ESPECIALES) | H41: 0.85 | J41: 406989 | K41: 406989 | L41: 0 | M41: 0 | N41: 0 | O41: 0 | P41: 0 | Q41: 0
B42: 12-037 | C42: EL DIVISADERO | D42: A1 | E42: CÁMARAS DE VIDEO-VIGILANCIA EN PUNTOS ESTRATÉGICOS | H42: 0.85 | I42: 4000 | J42: 312257 | K42: 312257 | L42: 0 | M42: 312221.04 | N42: 312221.04 | O42: 0 | P42: 312221.04 | Q42: 0.9998848385
B43: 12-039 | C43: EL ZACATON | D43: A2 | E43: CALENTADORES SOLARES PARA LA COLONIA. | H43: 0.85 | I43: 2000 | J43: 575515 | K43: 575515 | L43: 0 | M43: 566811.406 | N43: 566811.406 | O43: 0 | P43: 566811.406 | Q43: 0.9848768599
B44: 12-040 | C44: EMILIO PORTES GIL PEMEX PICACHO (U HAB) | D44: A6 | E44: REPARACION DE CISTERNA DE AGUA POTABLE QUE SUMINISTRA A TODA LA UNIDAD EMILIO PORTES GIL PEMEX PICACHO, POR MEDIO DE BOMBEO | H44: 0.85 | I44: 6000 | J44: 408917 | K44: 408917 | L44: 0 | M44: 408917 | N44: 408917 | O44: 0 | P44: 408917 | Q44: 1
B45: 12-042 | C45: EX HACIENDA SAN JUAN DE DIOS | D45: A1 | E45: REHABILITACIÓN DE JUEGOS INFANTILES Y COLOCACIÓN DE NUEVOS JUEGOS (CAMELLÓN PROLONGACIÓN CANAL DE MIRAMONTES) | H45: 0.85 | I45: 6000 | J45: 520673 | K45: 520673 | L45: 0 | M45: 520673 | N45: 520673 | O45: 0 | P45: 520673 | Q45: 1
B46: 12-043 | C46: FLORESTA-PRADO-VERGEL COAPA | D46: A5 | E46: CONCLUIR DE MANERA CORRECTA LOS PROYECTOS INCONCLUSOS DE 2017, 2018 Y 2019. CONSTRUIR UN HUERTO URBANO Y ARREGLAR LAS BANQUETAS | H46: 0.85 | I46: 6000 | J46: 444300 | K46: 444300 | L46: 0 | M46: 444300 | N46: 444300 | O46: 0 | P46: 444300 | Q46: 1
B47: 12-044 | C47: UNIDADES HABITACIONALES DE TENORIOS | D47: A4 | E47: RETIRO DE MALLA DE IMPERMEABILIZACIÓN Y REHABILITACIÓN DE AZOTEAS Y COLOCACIÓN DE IMPERMEABILIZACIÓN EN EDIFICIOS 1 A 16 EN LA UNIDAD TENORIOS 224 | H47: 0.85 | I47: 4000 | J47: 323185 | K47: 323185 | L47: 0 | M47: 323183.7 | N47: 323183.7 | O47: 0 | P47: 323183.7 | Q47: 0.9999959775
B48: 12-045 | C48: FOVISSSTE SAN PEDRO MARTIR (U HAB) | D48: A2 | E48: DOTAR AL INTERIOR DE LA UNIDAD DE LUMINARIAS FOTOVOLTAICAS CON PANELES SOLARES | H48: 0.85 | I48: 6000 | J48: 315041 | K48: 315041 | L48: 0 | M48: 299403.54 | N48: 299403.54 | O48: 0 | P48: 299403.54 | Q48: 0.9503637304
B49: 12-046 | C49: FRESNO | D49: A1 | E49: ALMACENAMIENTO DE AGUA POTABLE EN CISTERNAS DE POLIETILENO DE 5000 LTS | H49: 0.85 | I49: 2000 | J49: 296310 | K49: 296310 | L49: 0 | M49: 291630.96 | N49: 291630.96 | O49: 0 | P49: 291630.96 | Q49: 0.9842089703
B50: 12-047 | C50: FUENTES BROTANTES MIGUEL HIDALGO (U HAB) | D50: A12 | E50: SUSTITUCIóN Y MANTENIMIENTO A LA RED DE DISTRIBUCIóN DE AGUA POTABLE INCLUYENDO TUBERIA, VALVULAS, Y LO NECESARIO PARA SU FUNCIONAMIENTO. | H50: 0.85 | I50: 6000 | J50: 556054 | K50: 556054 | L50: 0 | M50: 556054 | N50: 556054 | O50: 0 | P50: 556054 | Q50: 1
B51: 12-048 | C51: FUENTES Y PEDREGAL DE TEPEPAN | D51: A6 | E51: SUSTITUCIóN DE RED DE AGUA POTABLE Y TOMAS, POR LAS CALLES PROLONGACIóN DE ABASOLO, FUENTES BUENAS Y CALLES PERPENDICULARES A éSTA | H51: 0.85 | I51: 6000 | J51: 513969 | K51: 513969 | L51: 0 | M51: 513969 | N51: 513969 | O51: 0 | P51: 513969 | Q51: 1
B52: 12-049 | C52: FUENTES DEL PEDREGAL | D52: A5 | E52: REPARACIóN Y RECUPERACIóN DE LA FUENTE DEL PARQUE LOS ILUSOS EN LA COLONIA FUENTES DEL PEDREGAL | H52: 0.85 | I52: 6000 | J52: 605251 | K52: 605251 | L52: 0 | M52: 605251 | N52: 605251 | O52: 0 | P52: 605251 | Q52: 1
B53: 12-050 | C53: GRANJAS COAPA | D53: A2 | E53: SALÓN DE USOS MÚLTIPLES | H53: 0.85 | I53: 6000 | J53: 482598 | K53: 482598 | L53: 0 | M53: 482598 | N53: 482598 | O53: 0 | P53: 482598 | Q53: 1
B54: 12-051 | C54: GRANJAS COAPA ORIENTE | D54: A1 | E54: EMBELLECIMIENTO DEL CAMELLÓN DE CALZADA DEL HUESO Y RESTITUCIÓN DEL RETORNO. | H54: 0.85 | I54: 6000 | J54: 371411 | K54: 371411 | L54: 0 | M54: 371411 | N54: 371411 | O54: 0 | P54: 371411 | Q54: 1
B55: 12-053 | C55: HACIENDA SAN JUAN-RINCON DE SAN JUAN-CHIMALI | D55: A1 | E55: RECUPERACIóN, MANTENIMIENTO Y RESCATE DE LOS PARQUES DE LA COLONIA 1) EL UBICADO ENTRE PROLONGACION CANAL DE MIRAMONTES ENTRE XOMALI Y TRANSMISIONES. | H55: 0.85 | I55: 6000 | J55: 541199 | K55: 541199 | L55: 0 | M55: 541199 | N55: 541199 | O55: 0 | P55: 541199 | Q55: 1
B56: 12-055 | C56: HEROES DE 1910 | D56: A2 | E56: CAPTACIóN DE AGUA EN TINACOS | H56: 0.85 | I56: 2000 | J56: 339420 | K56: 339420 | L56: 0 | M56: 336174.24 | N56: 336174.24 | O56: 0 | P56: 336174.24 | Q56: 0.9904373343
B57: 12-057 | C57: HUESO PERIFERICO-ISSSFAM NO. 7 (U HABS) | D57: A1 | E57: REENCARPETADO DENTRO DE LA UNIDAD | H57: 0.85 | I57: 6000 | J57: 399413 | K57: 399413 | L57: 0 | M57: 399413 | N57: 399413 | O57: 0 | P57: 399413 | Q57: 1
B58: 12-059 | C58: IGNACIO CHAVEZ (U HAB) | D58: A2 | E58: MODULO DE JUEGOS INFANTILES EN áREAS VERDES COMUNES DE LA UNIDAD IGNACIO CHáVEZ DENTRO DE LOS REGíMENES I,II, III, V Y VI Y DEPORTIVO | H58: 0.85 | I58: 6000 | J58: 338479 | K58: 338479 | L58: 0 | M58: 338479 | N58: 338479 | O58: 0 | P58: 338479 | Q58: 1
B59: 12-060 | C59: ISIDRO FABELA I (PONIENTE) | D59: A5 | E59: CALENTADORES SOLARES PARA LOS HABITANTES DE LA COLONIA ISIDRO FABLA I (PONIENTE) | H59: 0.85 | I59: 2000 | J59: 656910 | K59: 656910 | L59: 0 | M59: 646975.458 | N59: 646975.458 | O59: 0 | P59: 646975.458 | Q59: 0.9848768599
B60: 12-061 | C60: ISIDRO FABELA (AMPL) | D60: A3 | E60: CALENTADORES SOLARES | H60: 0.85 | I60: 2000 | J60: 363055 | K60: 363055 | L60: 0 | M60: 357564.4684 | N60: 357564.4684 | O60: 0 | P60: 357564.4684 | Q60: 0.9848768599
B61: 12-062 | C61: ISSSFAM NO. 1 (U HAB)-VILLA TLALPAN | D61: A1 | E61: "PINTURA EN FACHADA DE EDIFICIOS" | H61: 0.85 | I61: 2000 | J61: 372690 | K61: 372690 | L61: 0 | M61: 369460 | N61: 369460 | O61: 0 | P61: 369460 | Q61: 0.9913332797
B62: 12-064 | C62: JARDINES COAPA-BELISARIO DOMINGUEZ | D62: A4 | E62: TERMINACIÓN DE REENCARPETADO DE LA CALLE DR. ATL. | H62: 0.85 | I62: 6000 | J62: 354466 | K62: 354466 | L62: 0 | M62: 354466 | N62: 354466 | O62: 0 | P62: 354466 | Q62: 1
B63: 12-065 | C63: JARDINES DE SAN JUAN | D63: A6 | E63: CALENTADORES SOLARES | H63: 0.85 | I63: 2000 | J63: 555802 | K63: 555802 | L63: 0 | M63: 547396.5285 | N63: 547396.5285 | O63: 0 | P63: 547396.5285 | Q63: 0.9848768599
B64: 12-066 | C64: JARDINES DEL AJUSCO | D64: A4 | E64: CAMARAS DE SEGURIDAD DE CIRCUITO CERRADO EN TODA LA COLONIA | H64: 0.85 | I64: 4000 | J64: 489308 | K64: 489308 | L64: 0 | M64: 489273.24 | N64: 489273.24 | O64: 0 | P64: 489273.24 | Q64: 0.9999289609
B65: 12-067 | C65: JARDINES EN LA MONTAÑA | D65: A4 | E65: CAMARAS DE ALTA RESOLUCION CON POSTE TIPO C PARA LAS CASETAS DE ACCESO | H65: 0.85 | I65: 4000 | J65: 453160 | K65: 453160 | L65: 0 | M65: 452947.38 | N65: 452947.38 | O65: 0 | P65: 452947.38 | Q65: 0.9995308059
B66: 12-068 | C66: JUVENTUD UNIDA | D66: A1 | E66: CALENTADORES SOLAR PARA LA COLONIA JUVENTUD UNIDA. | H66: 0.85 | I66: 2000 | J66: 348639 | K66: 348639 | L66: 0 | M66: 343366.4835 | N66: 343366.4835 | O66: 0 | P66: 343366.4835 | Q66: 0.9848768599
B67: 12-069 | C67: LA LONJA | D67: A3 | E67: REENCARPETAMIENTO DE LA CALLE IZTACCIHUATL | H67: 0.85 | I67: 6000 | J67: 403182 | K67: 403182 | L67: 0 | M67: 403182 | N67: 403182 | O67: 0 | P67: 403182 | Q67: 1
B68: 12-070 | C68: LA FAMA | D68: A3 | E68: CALENTADORES SOLARES | H68: 0.85 | I68: 2000 | J68: 356564 | K68: 356564 | L68: 0 | M68: 351171.6327 | N68: 351171.6327 | O68: 0 | P68: 351171.6327 | Q68: 0.9848768599
B69: 12-071 | C69: LA GUADALUPANA | D69: A1 | E69: CONTINUACIÓN DE LA PAVIMENTACIÓN EN LA COLONIA EN CAMINO LOS ARCOS DESDE CAMINO VECINAL HASTA LA DERRADA DEL CAMINO DE LOS ARCOS | H69: 0.85 | I69: 6000 | J69: 399827 | K69: 399827 | L69: 0 | M69: 399827 | N69: 399827 | O69: 0 | P69: 399827 | Q69: 1
B70: 12-072 | C70: LA JOYA | D70: A1 | E70: CÁMARAS DE SEGUIRDAD | H70: 0.85 | I70: 4000 | J70: 421658 | K70: 421658 | L70: 0 | M70: 421626.8 | N70: 421626.8 | O70: 0 | P70: 421626.8 | Q70: 0.9999260064
B71: 12-073 | C71: LA LIBERTAD - IXTLAHUACA | D71: A6 | E71: PAVIMENTACIÓN DE C. FRANCISCO JAVIER MINA Y C. MARIANO ABASOLO | H71: 0.85 | I71: 6000 | J71: 333828 | K71: 333828 | L71: 0 | M71: 333828 | N71: 333828 | O71: 0 | P71: 333828 | Q71: 1
B72: 12-074 | C72: LA MAGDALENA PETLACALCO (PBLO) | E72: NO SE REALIZO CONSULTA, POR RESOLUCION DEL TEPJF | H72: 0.85 | J72: 1002212 | K72: 1002212 | L72: 0 | M72: 940473.24 | N72: 940473.24 | O72: 0 | P72: 940473.24 | Q72: 0.9383975047
B73: 12-075 | C73: LA PALMA | D73: A5 | E73: ANDADOR PEATONAL EN PARADA LA PALMA, DESDE RETORNO LA PALMA HASTA CAPILLA EN CALLE OYAMEL ESQUINA ROBLE | H73: 0.85 | I73: 6000 | J73: 411551 | K73: 411551 | L73: 0 | M73: 411551 | N73: 411551 | O73: 0 | P73: 411551 | Q73: 1
B74: 12-076 | C74: LA PRIMAVERA | D74: A5 | E74: CALENTADORES SOLARES | H74: 0.85 | I74: 2000 | J74: 395523 | K74: 395523 | L74: 0 | M74: 389541.4502 | N74: 389541.4502 | O74: 0 | P74: 389541.4502 | Q74: 0.9848768599
B75: 12-077 | C75: LA TORTUGA XOLALPA-HCO COLEGIO MILITAR | D75: A1 | E75: ADQUISICIÓN DE MAS CÁMARAS DE CIRCUITO CERRADO INCLUYENDO EL COSTO DE MANTENIMIENTO DE LAS CÁMARAS QUE SE TIENEN INSTALADAS CON PRESUPUESTO 2019 | H75: 0.85 | I75: 4000 | J75: 477387 | K75: 477387 | L75: 0 | M75: 477309.4 | N75: 477309.4 | O75: 0 | P75: 477309.4 | Q75: 0.9998374484
B76: 12-079 | C76: LOMAS ALTAS DE PADIERNA SUR | D76: A3 | E76: CAMINANDO SEGUROS (POR DEFINIR EN ASAMBLEA CIUDADANA DE CASOS ESPECIALES) | H76: 0.85 | I76: 6000 | J76: 571153 | K76: 571153 | L76: 0 | M76: 571153 | N76: 571153 | O76: 0 | P76: 571153 | Q76: =+L76+M76/K76 -> 1
B77: 12-080 | C77: LOMAS DE CUILOTEPEC | D77: A5 | E77: CALENTADORES SOLARES PARA TODA LA COLONIA. | H77: 0.85 | I77: 2000 | J77: 406163 | K77: 406163 | L77: 0 | M77: 400020.54 | N77: 400020.54 | O77: 0 | P77: 400020.54 | Q77: 0.9848768599
B78: 12-082 | C78: LOMAS DE PADIERNA (AMPL) | D78: A4 | E78: CALENTADORES SOLARES PARA LA COLONIA | H78: 0.85 | I78: 2000 | J78: 306311 | K78: 306311 | L78: 0 | M78: 301678.6158 | N78: 301678.6158 | O78: 0 | P78: 301678.6158 | Q78: 0.9848768599
B79: 12-084 | C79: LOMAS DE TEXCALATLACO | D79: A4 | E79: CÁMARAS DE VIDEOVIGILANCIA PARA TODA LA COLONIA HASTA ALCANCE PRESUPUESTAL | H79: 0.85 | I79: 4000 | J79: 318217 | K79: 318217 | L79: 0 | M79: 318103.67 | N79: 318103.67 | O79: 0 | P79: 318103.67 | Q79: 0.9996438594
B80: 12-085 | C80: LOMAS DEL PEDREGAL | D80: A2 | E80: POSTES LUMINARIAS DE 7.5 METROS EN LA COLONIA LOMAS DEL PEDREGAL | H80: 0.85 | I80: 6000 | J80: 341072 | K80: 341072 | L80: 0 | M80: 341072 | N80: 341072 | O80: 0 | P80: 341072 | Q80: 1
B81: 12-086 | C81: LOMAS HIDALGO | D81: A2 | E81: DOTACION E INSTALACION DE CALENTADORES SOLARES PARA LA COLONIA LOMAS HIDALGO | H81: 0.85 | I81: 2000 | J81: 415382 | K81: 415382 | L81: 0 | M81: 409100.1198 | N81: 409100.1198 | O81: 0 | P81: 409100.1198 | Q81: 0.9848768599
B82: 12-087 | C82: LOS ENCINOS | D82: A10 | E82: CALENTADORES SOLARES PARA TODA LA COLONIA | H82: 0.85 | I82: 2000 | J82: 427625 | K82: 427625 | L82: 0 | M82: 421157.9672 | N82: 421157.9672 | O82: 0 | P82: 421157.9672 | Q82: 0.9848768599
B83: 12-088 | C83: LOS PASTORES | D83: A3 | E83: CAPTACIóN DE AGUA PLUVIAL A BASE DE TINACOS (POR DEFINIR EN ASAMBLEA CIUDADANA DE CASOS ESPECIALES) | H83: 0.85 | I83: 2000 | J83: 307713 | K83: 307713 | L83: 0 | M83: 304902.22 | N83: 304902.22 | O83: 0 | P83: 304902.22 | Q83: 0.9908655793
B84: 12-089 | C84: LOS VOLCANES | D84: A1 | E84: AGREGAR LUMINARIAS SOLARES A LA AVENIDA PRINCIPAL DE LA COLONIA, MEJORANDO LA SEGURIDAD DEL ANDADOR PEATONAL A TRAVÉS DE UNA OPCIÓN SUSTENTABLE. | H84: 0.85 | I84: 2000 | J84: 468107 | K84: 468107 | L84: 0 | M84: 464966.7 | N84: 464966.7 | O84: 0 | P84: 464966.7 | Q84: 0.993291491
B85: 12-092 | C85: MA ESTHER ZUNO DE ECHEVERRIA-TLALPUENTE | D85: A5 | E85: 5 POZOS DE ABSORCIóN | H85: 0.85 | I85: 6000 | J85: 391084 | K85: 391084 | L85: 0 | M85: 391084 | N85: 391084 | O85: 0 | P85: 391084 | Q85: 1
B86: 12-093 | C86: COAPA-VILLA CUEMANCO | D86: A1 | E86: REENCARPETADO DE LA CALLE 3A CERRADA CAÑAVERALES. COL. MAGISTERIAL | H86: 0.85 | I86: 6000 | J86: 393728 | K86: 393728 | L86: 0 | M86: 393728 | N86: 393728 | O86: 0 | P86: 393728 | Q86: 1
B87: 12-094 | C87: MESA LOS HORNOS, TEXCALTENCO | D87: A5 | E87: TINACOS PARA MESA LOS HORNOS 2020 | H87: 0.85 | I87: 2000 | J87: 990118 | K87: 990118 | L87: 0 | M87: 988977.71 | N87: 988977.71 | O87: 0 | P87: 988977.71 | Q87: 0.9988483292
B88: 12-095 | C88: MIGUEL HIDALGO | D88: A18 | E88: CAMARAS DE SEGURIDAD Y ALUMBRADO PUBLICO | H88: 0.85 | I88: 4000 | J88: 1016885 | K88: 1016885 | L88: 0 | M88: 979749.84 | N88: 979749.84 | O88: 0 | P88: 979749.84 | Q88: 0.9634814556
B89: 12-096 | C89: MIRADOR 1A SECC | D89: A1 | E89: CALENTADORES SOLARES | H89: 0.85 | I89: 2000 | J89: 390193 | K89: 390193 | L89: 0 | M89: 384292.0566 | N89: 384292.0566 | O89: 0 | P89: 384292.0566 | Q89: 0.9848768599
B90: 12-097 | C90: MIRADOR 2A Y 3A SECC | D90: A2 | E90: CALENTADORES SOLARES PARA LA COLONIA MIRADOR 2A Y 3A SECCION. | H90: 0.85 | I90: 2000 | J90: 381608 | K90: 381608 | L90: 0 | M90: 375836.8887 | N90: 375836.8887 | O90: 0 | P90: 375836.8887 | Q90: 0.9848768599
B91: 12-099 | C91: MIRADOR DEL VALLE | D91: A3 | E91: COLOCACIóN DE CáMARAS DE VIGILANCIA | H91: 0.85 | I91: 4000 | J91: 359506 | K91: 359506 | L91: 0 | M91: 359418.12 | N91: 359418.12 | O91: 0 | P91: 359418.12 | Q91: 0.9997555535
B92: 12-100 | C92: MIRADOR I | D92: A7 | E92: MODULO DE VIGILANCIA PARA LA COLONIA | H92: 0.85 | I92: 6000 | J92: 388903 | K92: 388903 | L92: 0 | M92: 388903 | N92: 388903 | O92: 0 | P92: 388903 | Q92: 1
B93: 12-101 | C93: MIRADOR II | D93: A1 | E93: INSTALACION DE CAMARAS PARA VIGILANCIA | H93: 0.85 | I93: 4000 | J93: 529094 | K93: 529094 | L93: 0 | M93: 529090.06 | N93: 529090.06 | O93: 0 | P93: 529090.06 | Q93: 0.9999925533
B94: 12-102 | C94: MOVIMIENTO ORGANIZADO DE TLALPAN-EL MIRADOR (RNCDA) | D94: A2 | E94: CALENTADORES SOLARES PARA TODA LA COLONIA | H94: 0.85 | I94: 2000 | J94: 328437 | K94: 328437 | L94: 0 | M94: 323470.0012 | N94: 323470.0012 | O94: 0 | P94: 323470.0012 | Q94: 0.9848768599
B95: 12-103 | C95: NARCISO MENDOZA-VILLA COAPA SUPER MANZANA 1 (U HAB) | D95: A2 | E95: CÁMARAS DE SEGURIDAD EN TODA LA MZ 1 | H95: 0.85 | I95: 4000 | J95: 422425 | K95: 422425 | L95: 0 | M95: 422335.7 | N95: 422335.7 | O95: 0 | P95: 422335.7 | Q95: 0.9997886015
B96: 12-104 | C96: NARCISO MENDOZA-VILLA COAPA SUPER MANZANA 2 (U HAB) | D96: A4 | E96: CAMBIO DE TUBOS DE ALBAÑAL O DRENAJE DE CASAS, DUPLEX Y EDIFICIOS DE LA SUPERMANZANA 2 (QUE VAN DE 5 A 10 METROS POR CONEXIÓN A COLECTORES) | H96: 0.85 | I96: 6000 | J96: 433885 | K96: 433885 | L96: 0 | M96: 433885 | N96: 433885 | O96: 0 | P96: 433885 | Q96: 1
B97: 12-105 | C97: NARCISO MENDOZA-VILLA COAPA SUPER MANZANA 3 (U HAB) | D97: A9 | E97: PINTURA Y MANO DE OBRA EN EDIFICIOS, CASAS DUPLEX Y CASAS UNIFAMILIARES. | H97: 0.85 | I97: 2000 | J97: 422849 | K97: 422849 | L97: 0 | M97: 422240 | N97: 422240 | O97: 0 | P97: 422240 | Q97: 0.9985597696
B98: 12-106 | C98: NARCISO MENDOZA-VILLA COAPA SUPER MANZANA 6 (U HAB) | D98: A3 | E98: SUSTITUCIÓN DE TINACOS DE CASAS UNIFAMILIARES, DUPLEX Y EDIFICIOS DE LA SUPERMANZANA 6 | H98: 0.85 | I98: 2000 | J98: 411102 | K98: 411102 | L98: 0 | M98: 410445.29 | N98: 410445.29 | O98: 0 | P98: 410445.29 | Q98: 0.9984025619
B99: 12-107 | C99: NARCISO MENDOZA-VILLA COAPA SUPER MANZANA 7 (U HAB) | D99: A4 | E99: REHABILITACIÓN Y REMODELACIÓN DEL PARQUE Y CANCHAS DE BÁSQUETBOL DE LA SM7 EN LA U.H. NARCISO MENDOZA VILLA COAPA. C.P.14390 | H99: 0.85 | I99: 6000 | J99: 435714 | K99: 435714 | L99: 0 | M99: 435714 | N99: 435714 | O99: 0 | P99: 435714 | Q99: 1
B100: 12-108 | C100: NIÑO JESUS (BARR) | D100: A2 | E100: CONTINUIDAD DEL PROYECTO DE CáMARAS DE VIDEOVIGILANCIA PARA EL BARRIO DEL NIñO JESúS (PROYECTO 2018), COMPLEMENTADO CON APOYOS DE VIGILANCIA/VIALID | H100: 0.85 | I100: 4000 | J100: 380212 | K100: 380212 | L100: 0 | M100: 380070.73 | N100: 380070.73 | O100: 0 | P100: 380070.73 | Q100: 0.9996284441
B101: 12-109 | C101: NUEVA ORIENTAL COAPA-EX HACIENDA COAPA | D101: A12 | E101: MEJORAMIENTO Y EMBELLECIMIENTO DE TODA LA UNIDAD TERRITORIAL | H101: 0.85 | I101: 6000 | J101: 503636 | K101: 503636 | L101: 0 | M101: 503636 | N101: 503636 | O101: 0 | P101: 503636 | Q101: 1
B102: 12-110 | C102: NUEVO RENACIMIENTO DE AXALCO | D102: A2 | E102: CALENTADORES SOLARES PARA TODA LA UNIDAD TERRITORIAL DE NUEVO RENACIMIENTO DE AXALCO | H102: 0.85 | I102: 2000 | J102: 349716 | K102: 349716 | L102: 0 | M102: 344427.1959 | N102: 344427.1959 | O102: 0 | P102: 344427.1959 | Q102: 0.9848768599
B103: 12-111 | C103: OCOTLA - OCOTLA CHICO | D103: A2 | E103: PROYECTO DE SISTEMA DE CAPTACIÓN DE AGUA PLUVIAL EN LA CALLE AVE DEL PARAÍSO Y ALREDEDORES. | H103: 0.85 | I103: 6000 | J103: 343101 | K103: 343101 | L103: 0 | M103: 343101 | N103: 343101 | O103: 0 | P103: 343101 | Q103: 1
B104: 12-112 | C104: ORIENTE (AMPL) | D104: A2 | E104: CALENTADORES SOLARES EN TODA LA COLONIA DE ORIENTE AMPLIACIÓN | H104: 0.85 | I104: 2000 | J104: 307041 | K104: 307041 | L104: 0 | M104: 302397.5759 | N104: 302397.5759 | O104: 0 | P104: 302397.5759 | Q104: 0.9848768599
B105: 12-113 | C105: PARAJE 38 | D105: A4 | E105: TINACOS PARA PARAJE 38 | H105: 0.85 | I105: 2000 | J105: 395666 | K105: 395666 | L105: 0 | M105: 394809.28 | N105: 394809.28 | O105: 0 | P105: 394809.28 | Q105: 0.9978347394
B106: 12-114 | C106: PARQUES DEL PEDREGAL | D106: A5 | E106: MANTENIMIENTO DEL ADOQUINADO EN LA CALLE ZACATEPETL Y ALBORADA | H106: 0.85 | I106: 6000 | J106: 423678 | K106: 423678 | L106: 0 | M106: 423678 | N106: 423678 | O106: 0 | P106: 423678 | Q106: 1
B107: 12-115 | C107: PARRES EL GUARDA (PBLO) | E107: NO SE REALIZO CONSULTA, POR RESOLUCION DEL TEPJF | H107: 0.85 | I107: 2000 | J107: 612670 | K107: 612670 | L107: 0 | M107: 603405.4906 | N107: 603405.4906 | O107: 0 | P107: 603405.4906 | Q107: 0.9848784674
B108: 12-116 | C108: PEDREGAL DE LAS AGUILAS | D108: A3 | E108: LÁMPARAS SOLARES PARA AFUERA DE LAS CASAS DE LA COLONIA | H108: 0.85 | I108: 2000 | J108: 400071 | K108: 400071 | L108: 0 | M108: 396082.74 | N108: 396082.74 | O108: 0 | P108: 396082.74 | Q108: 0.9900311195
B109: 12-117 | C109: PEDREGAL DE SN NICOLAS 1A SECC | D109: A2 | E109: LUMINARIAS Y CALENTADORES SOLARES, TINACOS PARA CALLE CHICXULUB, KOPOMA, POPOLNA Y MANI DE LA MANZANA 740 | H109: 0.85 | I109: 2000 | J109: 941255 | K109: 941255 | L109: 0 | M109: 939829.88 | N109: 939829.88 | O109: 0 | P109: 939829.88 | Q109: 0.9984859363
B110: 12-118 | C110: PEDREGAL DE SN NICOLAS 2A SECC | D110: A2 | E110: LUMINARIAS SOLARES CON CAMARA DE VIDEOVIGILANCIA Y BOCINAS | H110: 0.85 | I110: 2000 | J110: 724575 | K110: 724575 | L110: 0 | M110: 723281.53 | N110: 723281.53 | O110: 0 | P110: 723281.53 | Q110: 0.998214857
B111: 12-119 | C111: PEDREGAL DE SN NICOLAS 3A SECC | D111: A12 | E111: CANCHA DE USOS MULTIPLES (BASQUETBOL, VOLEIBOL, FUTBOL Y ACTIVIDADES CULTURALES) | H111: 0.85 | I111: 6000 | J111: 906433 | K111: 906433 | L111: 0 | M111: 906433 | N111: 906433 | O111: 0 | P111: 906433 | Q111: 1
B112: 12-121 | C112: PEDREGAL DE STA URSULA XITLA | D112: A1 | E112: SEGURIDAD PARA TODOS | H112: 0.85 | I112: 4000 | J112: 508948 | K112: 508948 | L112: 0 | M112: 508912.79 | N112: 508912.79 | O112: 0 | P112: 508912.79 | Q112: 0.9999308181
B113: 12-124 | C113: PIEDRA LARGA | D113: A1 | E113: CONTINUACIóN DE EMPEDRADO Y MURO DE CONTENCIóN EN CAMINO PIEDRA LARGA (RAMPA) | H113: 0.85 | I113: 6000 | J113: 314463 | K113: 314463 | L113: 0 | M113: 314463 | N113: 314463 | O113: 0 | P113: 314463 | Q113: 1
B114: 12-125 | C114: PLAN DE AYALA | D114: A4 | E114: APOYO DE SEGURIDAD PUBLICA CON LUMINARIAS EN LA VIA PUBLICA, RETIRANDO POSTES VIEJOS Y CAMBIANDLEY DE REFORMA O POR POSTES NUEVOS | H114: 0.85 | I114: 6000 | J114: 349182 | K114: 349182 | L114: 0 | M114: 349182 | N114: 349182 | O114: 0 | P114: 349182 | Q114: 1
B115: 12-127 | C115: POPULAR STA TERESA | D115: A7 | E115: HABILITACIóN DE áREA PARA JUEGOS DEL JARDIN DE NIñOS BIKIT | H115: 0.85 | I115: 6000 | J115: 635527 | K115: 635527 | L115: 0 | M115: 635527 | N115: 635527 | O115: 0 | P115: 635527 | Q115: 1
B116: 12-130 | C116: PRADO COAPA 2A SECCION | D116: A2 | E116: ENCARPETAR TODAS LAS CALLES DE LA COLONIA | H116: 0.85 | I116: 6000 | J116: 394615 | K116: 394615 | L116: 0 | M116: 394615 | N116: 394615 | O116: 0 | P116: 394615 | Q116: 1
B117: 12-131 | C117: PRADO COAPA 3A SECCION-POTRERO ACOXPA | D117: A3 | E117: CONTINUIDAD DE LA REHABILITACIÓN DE CUATRO PARQUES DE LA COLONIA TEMASCALTEPEC-CARBONERA, CARBONERA-CORRALEJO, CORRALEJO-JILOTEPEC, JILOTEPEC-JALTENG | H117: 0.85 | I117: 6000 | J117: 415734 | K117: 415734 | L117: 0 | M117: 415734 | N117: 415734 | O117: 0 | P117: 415734 | Q117: 1
B118: 12-132 | C118: PROGRESO TLALPAN | D118: A1 | E118: CALENTADORES SOLARES PARA LA COLONIA | H118: 0.85 | I118: 2000 | J118: 308255 | K118: 308255 | L118: 0 | M118: 303593.2164 | N118: 303593.2164 | O118: 0 | P118: 303593.2164 | Q118: 0.9848768599
B119: 12-133 | C119: PUEBLO QUIETO | D119: A1 | E119: MANTENIMIENTO GENERAL DEL DEPORTIVO DE LA COLONIA | H119: 0.85 | I119: 6000 | J119: 354764 | K119: 354764 | L119: 0 | M119: 354764 | N119: 354764 | O119: 0 | P119: 354764 | Q119: 1
B120: 12-136 | C120: RANCHO LOS COLORINES (FRACC) | D120: A3 | E120: USO DE CELDAS SOLARES | H120: 0.85 | I120: 6000 | J120: 313832 | K120: 313832 | L120: 0 | M120: 313832 | N120: 313832 | O120: 0 | P120: 313832 | Q120: 1
B121: 12-137 | C121: REAL DEL SUR-VILLAS DEL SUR-RESIDENCIAL ACOXPA | D121: A1 | E121: REENCARPETADO DE LA CALLE BOLONIA | H121: 0.85 | I121: 6000 | J121: 385732 | K121: 385732 | L121: 0 | M121: 385732 | N121: 385732 | O121: 0 | P121: 385732 | Q121: 1
B122: 12-139 | C122: RESIDENCIAL INSURGENTES SUR (U HAB) | D122: A7 | E122: CONSTRUCCION DE SALON DE USOS MULTIPLES TECHADO BENEFICIA 3800 HABITANTES DE TODAS LAS EDADES PARA ACTIVIDADES RECREATIVAS CULTURALES DEPORTIVAS | H122: 0.85 | I122: 6000 | J122: 359000 | K122: 359000 | L122: 0 | M122: 359000 | N122: 359000 | O122: 0 | P122: 359000 | Q122: 1
B123: 12-142 | C123: RINCON LAS HADAS-VILLA ROYALE-FUENTES Y ARCONADA COAPA | D123: A8 | E123: LÁMPARAS SOLARES PARA CLAZADA LAS BRUJAS EN LA UNIDAD TERRITORIAL DE RINCÓN LAS HADAS, VILLA ROYALE, FUENTES Y ARCONADA COAPA | H123: 0.85 | I123: 6000 | J123: 351748 | K123: 351748 | L123: 0 | M123: 351748 | N123: 351748 | O123: 0 | P123: 351748 | Q123: 1
B124: 12-143 | C124: RINCONADA (U HAB) | D124: A2 | E124: PINTURA PARA LOS 22 EDIFICIOS U.H. RINCONADA | H124: 0.85 | I124: 2000 | J124: 313534 | K124: 313534 | L124: 0 | M124: 311402 | N124: 311402 | O124: 0 | P124: 311402 | Q124: 0.9932000995
B125: 12-145 | C125: ROCA DE CRISTAL | D125: A2 | E125: LAMPARAS SOLARES DOMICILIARIAS PARA ROCA DE CRISTAL 2020 | H125: 0.85 | I125: 2000 | J125: 294258 | K125: 294258 | L125: 0 | M125: 292756.81 | N125: 292756.81 | O125: 0 | P125: 292756.81 | Q125: 0.9948983885
B126: 12-146 | C126: ROMULO SANCHEZ-SAN FERNANDO (BARR)-PEÑA POBRE | D126: A2 | E126: CALENTADORES SOLARES EN LA CALLE ZAPOTE | H126: 0.85 | I126: 2000 | J126: 366798 | K126: 366798 | L126: 0 | M126: 361250.8624 | N126: 361250.8624 | O126: 0 | P126: 361250.8624 | Q126: 0.9848768599
B127: 12-147 | C127: SAN ANDRES TOTOLTEPEC (PBLO) | E127: NO SE REALIZO CONSULTA, POR RESOLUCION DEL TEPJF | H127: 0.85 | I127: 6000 | J127: 2247562 | K127: 2247562 | L127: 0 | M127: 2247563 | N127: 2247563 | O127: 0 | P127: 2247563 | Q127: 1.000000445
B128: 12-148 | C128: SAN BARTOLO EL CHICO | D128: A3 | E128: CALENTADORES SOLARES PARA TODA LA COLONIA | H128: 0.85 | I128: 2000 | J128: 406719 | K128: 406719 | L128: 0 | M128: 400568.1316 | N128: 400568.1316 | O128: 0 | P128: 400568.1316 | Q128: 0.9848768599
B129: 12-151 | C129: SAN JUAN TEPEXIMILPA | D129: A8 | E129: CALENTADORES SOLARES EN CALLE MIRAMONTES, CASTRO BRITO Y CALLEJON MIRAMONTES 2020 | H129: 0.85 | I129: 2000 | J129: 397079 | K129: 397079 | L129: 0 | M129: 391073.9186 | N129: 391073.9186 | O129: 0 | P129: 391073.9186 | Q129: 0.9848768599
B130: 12-152 | C130: SAN JUAN TEPEXIMILPA (AMPL) | D130: A8 | E130: CALENTADORES SOLARES PARA LAS CALLES TLAPANECOS, OJITECOS Y VEROGIOS. | H130: 0.85 | I130: 2000 | J130: 342539 | K130: 342539 | L130: 0 | M130: 337358.7347 | N130: 337358.7347 | O130: 0 | P130: 337358.7347 | Q130: 0.9848768599
B131: 12-153 | C131: SAN LORENZO HUIPULCO | D131: A3 | E131: INSTALACIÓN DE CÁMARAS DE VIGILANCIA | H131: 0.85 | I131: 4000 | J131: 679072 | K131: 679072 | L131: 0 | M131: 678930.36 | N131: 678930.36 | O131: 0 | P131: 678930.36 | Q131: 0.9997914212
B132: 12-154 | C132: SAN MIGUEL XICALCO (PBLO) | E132: ADQUISIÓN E INSTALACIÓN DE TINACOS Y CISTENAR CALENTADORES SOLARES PARA TODA LA COLONIA | H132: 0.85 | I132: 2000 | J132: 1314966 | K132: 1314966 | L132: 0 | M132: 1303831.625 | N132: 1303831.625 | O132: 0 | P132: 1303831.625 | Q132: 0.9915325757
B133: 12-155 | C133: SAN MIGUEL AJUSCO (PBLO) | E133: CONCLUIR CON LA CONSTRUCCIÓN DE GRADAS, BARANDALES, BAÑOS Y TODO LO NECESARIO PARA QUE EL RUEDO ESTE EN FUNCIONAMIENTO, PROL. VICENTE GUERRERO Y COMUNEROS | H133: 0.85 | I133: 6000 | J133: 1288741 | K133: 1288741 | L133: 0 | M133: 1288742 | N133: 1288742 | O133: 0 | P133: 1288742 | Q133: 1.000000776
B134: 12-156 | C134: SAN MIGUEL TEHUISCO-LOS ANGELES-AYOMETITLA | D134: A2 | E134: CALENTADORES SOLARES | H134: 0.85 | I134: 2000 | J134: 408677 | K134: 408677 | L134: 0 | M134: 402496.5205 | N134: 402496.5205 | O134: 0 | P134: 402496.5205 | Q134: 0.9848768599
B135: 12-157 | C135: SAN MIGUEL TOPILEJO (PBLO) | E135: PAVIMENTACIÓN ASFÁLTICA DE TODAS LAS CALLES DEL PUEBLO DE SAN MIGUEL TOPILEJO | H135: 0.85 | I135: 6000 | J135: 2026142 | K135: 2026142 | L135: 0 | M135: 2026143 | N135: 2026143 | O135: 0 | P135: 2026143 | Q135: 1.000000494
B136: 12-158 | C136: SAN NICOLAS II | D136: A6 | E136: ADQUISICION DE TINACOS DE 1,100 LITROS PARA HABITANTES DE LA COMUNIDAD | H136: 0.85 | I136: 2000 | J136: 558258 | K136: 558258 | L136: 0 | M136: 555078.4 | N136: 555078.4 | O136: 0 | P136: 555078.4 | Q136: 0.9943044256
B137: 12-159 | C137: SAN PEDRO APOSTOL (BARR) | D137: A4 | E137: 3 CONTENEDORES PARA BASURA, 50 DEPóSITOS PARA COLILLAS, 16 BOTES DE BASURA DOBLES. 50 CUBETAS DE PINTURA. CONSTRUCCIóN DE JARDINERAS. | H137: 0.85 | I137: 2000 | J137: 341149 | K137: 341149 | L137: 0 | M137: 341140.72 | N137: 341140.72 | O137: 0 | P137: 341140.72 | Q137: 0.9999757291
B138: 12-160 | C138: SAN PEDRO MARTIR (PBLO) | D138: 0 | E138: REHABILITACIÓN INTEGRAL DEL KIOSKO E ILUMINACIÓN EN TODA LA PLAZA SAN PEDRO MÁRTIR | H138: 0.85 | I138: 6000 | J138: 1450855 | K138: 1450855 | L138: 0 | M138: 1450856 | N138: 1450856 | O138: 0 | P138: 1450856 | Q138: 1.000000689
B139: 12-161 | C139: SANTA URSULA XITLA | D139: A14 | E139: ESTUDIO DE GEO RADAR PARA CONOCER ESTADO REAL DEL SUBSUELO Y SUS AFECTACIONES, Y MAPEO DE REDES DE SERVICIOS ENTERRADOS | H139: 0.85 | I139: 3000 | J139: 992979 | K139: 992979 | L139: 0 | M139: 851194.08 | N139: 851194.08 | O139: 0 | P139: 851194.08 | Q139: 0.8572125695
B140: 12-162 | C140: SANTISIMA TRINIDAD | D140: A1 | E140: CALENTADORES SOLARES PARA LA COLONIA SANTISIMA TRINIDAD | H140: 0.85 | I140: 2000 | J140: 380131 | K140: 380131 | L140: 0 | M140: 374382.2256 | N140: 374382.2256 | O140: 0 | P140: 374382.2256 | Q140: =+L140+M140/K140 -> 0.9848768599
B141: 12-163 | C141: SANTO TOMAS AJUSCO (PBLO) | D141: 0 | E141: MEJORAMIENTO DE LA PLAZA DE TOROS TECHADO DE PLAZA, CONFORMACIÓN DEL ESPACIO CON MATERIAL ECOLÓGICO Y CONTRUCCIÓN DE BAÑOS PÚBLICOS | H141: 0.85 | I141: 6000 | J141: 1373367 | K141: 1373367 | L141: 0 | M141: 1373368 | N141: 1373368 | O141: 0 | P141: 1373368 | Q141: 1.000000728
B142: 12-164 | C142: SAUZALES CEBADALES (U HAB) | D142: A7 | E142: MEJORAMIENTO DE ESPACIOS PÚBLICOS | H142: 0.85 | I142: 6000 | J142: 346835 | K142: 346835 | L142: 0 | M142: 346835 | N142: 346835 | O142: 0 | P142: 346835 | Q142: 1
B143: 12-165 | C143: SECCION XVI | D143: A1 | E143: CALENTADORES SOLARES | H143: 0.85 | I143: 2000 | J143: 372076 | K143: 372076 | L143: 0 | M143: 366449.0425 | N143: 366449.0425 | O143: 0 | P143: 366449.0425 | Q143: 0.9848768599
B144: 12-166 | C144: SOLIDARIDAD | D144: A1 | E144: ADQUISICIÓN DE EQUIPO TECNOLOGICO (COMPUTADORAS) PARA JOVENES DE SOLIDARIDAD | H144: 0.85 | I144: 4000 | J144: 360955 | K144: 360955 | L144: 0 | M144: 359909.81 | N144: 359909.81 | O144: 0 | P144: 359909.81 | Q144: 0.9971043759
B145: 12-167 | C145: TECORRAL | D145: A5 | E145: ADQUISICIÓN E INSTALACIÓN DE CALENTADORES SOLARES | H145: 0.85 | I145: 2000 | J145: 377035 | K145: 377035 | L145: 0 | M145: 370796.09 | N145: 370796.09 | O145: 0 | P145: 370796.09 | Q145: 0.9834527033
B146: 12-168 | C146: TENORIOS INFONAVIT 1 Y 2 (U HAB) | D146: A8 | E146: CAMBIO DE LA RED DE AGUA POTABLE DEL INTERIOR DE LA U.H. TENORIOS 222 | H146: 0.85 | I146: 6000 | J146: 388492 | K146: 388492 | L146: 0 | M146: 388492 | N146: 388492 | O146: 0 | P146: 388492 | Q146: 1
B147: 12-170 | C147: TEPETLICA EL ALTO-3 DE MAYO | D147: A6 | E147: CALENTADORES SOLARES | H147: 0.85 | I147: 2000 | J147: 340443 | K147: 340443 | L147: 0 | M147: 328011.92 | N147: 328011.92 | O147: 0 | P147: 328011.92 | Q147: 0.9634855761
B148: 12-171 | C148: TEPETONGO | D148: A3 | E148: CAMARAS DE VIGILANCIA PARTICULARES | H148: 0.85 | I148: 4000 | J148: 391222 | K148: 391222 | L148: 0 | M148: 391182.64 | N148: 391182.64 | O148: 0 | P148: 391182.64 | Q148: 0.9998993922
B149: 12-172 | C149: TETENCO (PJE) | D149: A3 | E149: CALENTADORES SOLARES PARA LOS HABITANTES DE LA COLONIA PARAJE TETENCO | H149: 0.85 | I149: 2000 | J149: 343031 | K149: 343031 | L149: 0 | M149: 342273.31 | N149: 342273.31 | O149: 0 | P149: 342273.31 | Q149: 0.9977911909
B150: 12-173 | C150: TEZONTITLA | D150: A5 | E150: CALENTADORES SOLARES PARA TODA LA COLONIA. | H150: 0.85 | I150: 2000 | J150: 391969 | K150: 391969 | L150: 0 | M150: 385057.48 | N150: 385057.48 | O150: 0 | P150: 385057.48 | Q150: 0.982367177
B151: 12-174 | C151: TEZONTITLA - EL CALVARIO (AMPL) | D151: A2 | E151: ESCALERAS EN LA ENTRADA DE TETEQUILO | H151: 0.85 | I151: 6000 | J151: 298949 | K151: 298949 | L151: 0 | M151: 298949 | N151: 298949 | O151: 0 | P151: 298949 | Q151: 1
B152: 12-175 | C152: TLALCOLIGIA | D152: A8 | E152: ASFALTO EN LA CALLE PROLONGACIóN DE MAYAS Y PROLONGACIóN DE NAVAJOS | H152: 0.85 | I152: 6000 | J152: 685565 | K152: 685565 | L152: 0 | M152: 685565 | N152: 685565 | O152: 0 | P152: 685565 | Q152: 1
B153: 12-176 | C153: TLALMILLE | D153: A2 | E153: CáMARAS DE SEGURIDAD EN LA COLONIA | H153: 0.85 | I153: 4000 | J153: 380040 | K153: 380040 | L153: 0 | M153: 379919.07 | N153: 379919.07 | O153: 0 | P153: 379919.07 | Q153: 0.9996817967
B154: 12-177 | C154: TLALPAN CENTRO | D154: A3 | E154: REMODELACIÓN DE 40 DEPARTAMENTOS DE INTERÉS SOCIAL, UBICADO EN LA CALLE PLAZA DE LA CONSTITUCIÓN NO. 8 COLONIA CENTRO DE TLALPAN | H154: 0.85 | I154: 4000 | J154: 994409 | K154: 994409 | L154: 0 | M154: 994212.51 | N154: 994212.51 | O154: 0 | P154: 994212.51 | Q154: 0.9998024052
B155: 12-180 | C155: TORIELLO GUERRA | D155: A4 | E155: REENCARPETADO DEL CALLEJÓN DE TETITLA | H155: 0.85 | I155: 6000 | J155: 750988 | K155: 750988 | L155: 0 | M155: 750988 | N155: 750988 | O155: 0 | P155: 750988 | Q155: 1
B156: 12-181 | C156: TORRES DE PADIERNA | D156: A4 | E156: CALENTADORES SOLARES PARA TODA LA COL. | H156: 0.85 | I156: 2000 | J156: 397152 | K156: 397152 | L156: 0 | M156: 385057.48 | N156: 385057.48 | O156: 0 | P156: 385057.48 | Q156: 0.9695468737
B157: 12-182 | C157: TRES FUENTES (U HAB) | D157: A9 | E157: PINTURA EN : BARDA Y REJA DE FACHADA, BARDAS PERIMETRALES,CASETA:PINTURA INTERIOR-EXTERIOR,E IMPERMEABILIZACIÓN EN TODAS LAS UNIDADES HABITACIONALES | H157: 0.85 | I157: 2000 | J157: 337027 | K157: 337027 | L157: 0 | M157: 332514 | N157: 332514 | O157: 0 | P157: 332514 | Q157: 0.9866093814
B158: 12-183 | C158: VALLE DE TEPEPAN | D158: A1 | E158: CALENTADORES SOLARES PARA TODA LA COLONIA | H158: 0.85 | I158: 2000 | J158: 405622 | K158: 405622 | L158: 0 | M158: 399318.86 | N158: 399318.86 | O158: 0 | P158: 399318.86 | Q158: 0.9844605569
B159: 12-184 | C159: VALLE ESCONDIDO | D159: A1 | E159: PRIMERA ETAPA: RECUPERACIÓN AREAS VERDES Y SUELO PERMEABLE | H159: 0.85 | I159: 6000 | J159: 450897 | K159: 450897 | L159: 0 | M159: 450897 | N159: 450897 | O159: 0 | P159: 450897 | Q159: 1
B160: 12-185 | C160: VALLE VERDE | D160: A5 | E160: CALENTADORES SOLARES 3A ETAPA | H160: 0.85 | I160: 2000 | J160: 361586 | K160: 361586 | L160: 0 | M160: 356534.7 | N160: 356534.7 | O160: 0 | P160: 356534.7 | Q160: 0.986030156
B161: 12-186 | C161: VERANO | D161: A7 | E161: CALENTADORES SOLARES PARA TODA LA COLONIA | H161: 0.85 | I161: 2000 | J161: 384519 | K161: 384519 | L161: 0 | M161: 370796.09 | N161: 370796.09 | O161: 0 | P161: 370796.09 | Q161: 0.9643114905
B162: 12-188 | C162: VERGEL DE COYOACAN-VERGEL DEL SUR | D162: A5 | E162: REENCARPETAMIENTO DE CALLES DE LAS COLONIAS VERGEL DE COYOACAN Y VERGEL DEL SUR | H162: 0.85 | I162: 6000 | J162: 450333 | K162: 450333 | L162: 0 | M162: 450333 | N162: 450333 | O162: 0 | P162: 450333 | Q162: 1
B163: 12-191 | C163: VILLA COAPA (RDCIAL) | D163: A5 | E163: REMODELACION SUSTENTABLE E INCLUYENTE DEL PARQUE UBICADO EN RESIDENCIAL VILLA COAPA SUPER MANZANA 5 | H163: 0.85 | I163: 6000 | J163: 387417 | K163: 387417 | L163: 0 | M163: 387417 | N163: 387417 | O163: 0 | P163: 387417 | Q163: 1
B164: 12-193 | C164: VILLA DEL PUENTE FOVISSSTE (U HAB) | D164: A3 | E164: REENCARPETADO DE LA CALLE RINCÓN FRESALES | H164: 0.85 | I164: 6000 | J164: 318383 | K164: 318383 | L164: 0 | M164: 318383 | N164: 318383 | O164: 0 | P164: 318383 | Q164: 1
B165: 12-194 | C165: VILLA LAZARO CARDENAS | D165: A2 | E165: REHABILITACIóN DE áREAS VERDES, CAMELLONES, ESPACIOS DEPORTIVOS, ILUMINACIóN Y REENCARPETADO DE LA COLONIA VILLA LAZARO CARDENAS | H165: 0.85 | I165: 6000 | J165: 532959 | K165: 532959 | L165: 0 | M165: 532959 | N165: 532959 | O165: 0 | P165: 532959 | Q165: 1
B166: 12-195 | C166: VILLA OLIMPICA LIBERADOR MIGUEL HIDALGO (U HAB) | D166: A2 | E166: SUTITUCION DE VALVULAS DETERIORADAS DE LA RED HIDRAULICA DE LA UNIDAD. | H166: 0.85 | I166: 6000 | J166: 372362 | K166: 372362 | L166: 0 | M166: 372362 | N166: 372362 | O166: 0 | P166: 372362 | Q166: 1
B167: 12-198 | C167: VISTAS DEL PEDREGAL | D167: A10 | E167: RENOVACION DE LAS ESCALINATAS DE LA CALLE CHABACANO ESQ. TOTOLEPEC | H167: 0.85 | I167: 6000 | J167: 352370 | K167: 352370 | L167: 0 | M167: 352370 | N167: 352370 | O167: 0 | P167: 352370 | Q167: 1
B168: 12-199 | C168: VIVEROS DE COACTETLAN | D168: A8 | E168: PAVIMENTACIÓN Y GUARNICIÓN CERRADA DE PIRULES Y PROLONGACIÓN LA PALMA | H168: 0.85 | I168: 6000 | J168: 432927 | K168: 432927 | L168: 0 | M168: 432927 | N168: 432927 | O168: 0 | P168: 432927 | Q168: 1
B169: 12-200 | C169: XAXALCO | D169: A3 | E169: CONSTRUCCION DE CENTRO CULTURAL PARA EXHIBICIóN DE PELíCULAS OBRAS DE TEATRO Y DANZA SOBRE LA CALLE LAS TORRES FRENTE A LA BASE DE RTP | H169: 0.85 | I169: 6000 | J169: 444900 | K169: 444900 | L169: 0 | M169: 444900 | N169: 444900 | O169: 0 | P169: 444900 | Q169: 1
B170: 12-201 | C170: XAXALIPAC | D170: A2 | E170: CONTINUACIÓN DE TRABAJOS DE PAVIMENTACIÓN DE LA CALLE GRANJAS HASTA CALLE AYOCATITLA | H170: 0.85 | I170: 6000 | J170: 376223 | K170: 376223 | L170: 0 | M170: 376223 | N170: 376223 | O170: 0 | P170: 376223 | Q170: 1
B171: 12-202 | C171: ZACATIENDA | D171: A1 | E171: TINACOS Y BOMBAS DE AGUA CON SU INSTALACIÓN. | H171: 0.85 | I171: 2000 | J171: 353575 | K171: 353575 | L171: 0 | M171: 351633.33 | N171: 351633.33 | O171: 0 | P171: 351633.33 | Q171: 0.9945084636
B172: 12-204 | C172: ZAPOTE-LUIS DONALDO COLOSIO (U HABS) | D172: A5 | E172: REHABILITACIÓN URBANA A ANDADOR SIN NOMBRE | H172: 0.85 | I172: 6000 | J172: 337910 | K172: 337910 | L172: 0 | M172: 337910 | N172: 337910 | O172: 0 | P172: 337910 | Q172: 1
B173: 12-205 | C173: 2 DE OCTUBRE | D173: A4 | E173: FILTROS DE AGUA DE USO DOMESTICO | H173: 0.85 | I173: 2000 | J173: 660860 | K173: 660860 | L173: 0 | M173: 654588 | N173: 654588 | O173: 0 | P173: 654588 | Q173: 0.9905093363
B174: 12-208 | C174: SAN MIGUEL TOXIAC | D174: A1 | E174: PURIFICADORES DE AGUA PARA TODA LA COLONIA. | H174: 0.85 | J174: 305433 | K174: 305433 | L174: 0 | M174: 304152 | N174: 304152 | O174: 0 | P174: 304152 | Q174: 0.9958059542
B175: 12-209 | C175: HEROES DE PADIERNA I | D175: A11 | E175: ADQUISICION E INSTALACION DE CALENTADORES SOLARES | H175: 0.85 | I175: 2000 | J175: 776090 | K175: 776090 | L175: 0 | M175: 764353.0822 | N175: 764353.0822 | O175: 0 | P175: 764353.0822 | Q175: 0.9848768599
B176: 12-210 | C176: HEROES DE PADIERNA II | D176: A4 | E176: CALENTADORES SOLARES PARA LAS CALLES DZIBALCHEN, TIXKOKOB, DESDE KINCHIL, AKIL, CONTOY Y CANCUN. | H176: 0.85 | I176: 2000 | J176: 782379 | K176: 782379 | L176: 0 | M176: 770546.9728 | N176: 770546.9728 | O176: 0 | P176: 770546.9728 | Q176: 0.9848768599
B177: 12-211 | C177: LOMAS DE PADIERNA I | D177: A21 | E177: CALENTADORES SOLARES PARA LAS CALLES YOBAIN, BOCHIL Y BEKAL DE TIZIMIN A POPOLNA | H177: 0.85 | I177: 2000 | J177: 960628 | K177: 960628 | L177: 0 | M177: 946100.2881 | N177: 946100.2881 | O177: 0 | P177: 946100.2881 | Q177: 0.9848768599
B178: 12-212 | C178: LOMAS DE PADIERNA II | D178: A4 | E178: CONSTRUCCION DE AULA PARA ACTIVIDADES FISICAS | H178: 0.85 | I178: 6000 | J178: 847882 | K178: 847882 | L178: 0 | M178: 847882 | N178: 847882 | O178: 0 | P178: 847882 | Q178: 1
B179: 12-213 | C179: PEDREGAL DE SN NICOLAS 4A SECC I | D179: A4 | E179: ESTUFAS SOLARES | H179: 0.85 | I179: 2000 | J179: 842262 | K179: 842262 | L179: 0 | M179: 842261.2 | N179: 842261.2 | O179: 0 | P179: 842261.2 | Q179: 0.9999990502
B180: 12-214 | C180: PEDREGAL DE SN NICOLAS 4A SECC II | D180: A5 | E180: CISTERNAS ROTOPLAS DE 10000 LITROS PARA LA COLONIA | H180: 0.85 | I180: 2000 | J180: 823167 | K180: 823167 | L180: 0 | M180: 810656.72 | N180: 810656.72 | O180: 0 | P180: 810656.72 | Q180: 0.9848022576
B181: 12-215 | C181: BELISARIO DOMINGUEZ | D181: A2 | E181: ADQUISICIÓN E INSTALACIÓN DE CALENTADORES SOLARES EN HOGARES PARA AHORRO DE DINERO EN COMPRA DE GAS Y CONTRIBUIR A EVITAR EL CAMBIO CLIMÁTICO. | H181: 0.85 | I181: 2000 | J181: 353849 | K181: 353849 | L181: 0 | M181: 348497.692 | N181: 348497.692 | O181: 0 | P181: 348497.692 | Q181: 0.9848768599
B182: 12-216 | C182: LA MAGUEYERA | D182: A4 | E182: CALENTADORES SOLARES PARA TODA LA COLONIA | H182: 0.85 | I182: 2000 | J182: 299469 | K182: 299469 | L182: 0 | M182: 294940.0883 | N182: 294940.0883 | O182: 0 | P182: 294940.0883 | Q182: 0.9848768599
B183: 12-217 | C183: NARCISO MENDOZA VILLA COAPA SUPERMANZANA 8 (U HAB) | D183: A1 | E183: CONTINUACIóN DE PROYECTO REPARACIóN DE LA RED HIDRáULICA, MANTENIMIENTO Y ACONDICIONAMIENTO EN AVENIDAS DEL ARBOLILLO Y SENDERO | H183: 0.85 | I183: 6000 | J183: 393659 | K183: 393659 | L183: 0 | M183: 393659 | N183: 393659 | O183: 0 | P183: 393659 | Q183: 1
B184: 12-218 | C184: CONJUNTO HABITACIONAL PEDREGAL DEL LAGO | D184: A4 | E184: REPARACION DE FILTRACIONES EN ESTACIONAMIENTO Y ACCESOS, PARA LA DETENCION DE DAÑO ESTRUCTURAL QUE REPRESENTA RIESGO INMINENTE PARA LA COMUNIDAD. | H184: 0.85 | I184: 6000 | J184: 336056 | K184: 336056 | L184: 0 | M184: 336056 | N184: 336056 | O184: 0 | P184: 336056 | Q184: 1
B185: 12-219 | C185: EJIDOS DE SAN PEDRO MARTIR II (SUR) | D185: A2 | E185: CALENTADORES SOLARES PARA TODA LA COLONIA | H185: 0.85 | I185: 2000 | J185: 651404 | K185: 651404 | L185: 0 | M185: 641552.726 | N185: 641552.726 | O185: 0 | P185: 641552.726 | Q185: 0.9848768599
B186: 12-220 | C186: ISIDRO FABELA II (ORIENTE) | D186: A4 | E186: CÁMARAS DE SEGURIDAD PARA TODA LA COLONIA | H186: 0.85 | I186: 4000 | J186: 623004 | K186: 623004 | L186: 0 | M186: 622904.51 | N186: 622904.51 | O186: 0 | P186: 622904.51 | Q186: 0.999840306
B187: 12-221 | C187: LOMA BONITA-AMPLIACION TEPEXIMILPA | D187: A1 | E187: CALENTADORES SOLARES PARA LA COLONIA LOMA BONITA - TEPEXIMILPA 2020. | H187: 0.85 | I187: 2000 | J187: 305259 | K187: 305259 | L187: 0 | M187: 300642.5254 | N187: 300642.5254 | O187: 0 | P187: 300642.5254 | Q187: 0.9848768599
B188: 12-222 | C188: LOMAS DE TEPEMECATL | D188: A2 | E188: CALENTADORES SOLARES | H188: 0.85 | I188: 2000 | J188: 442464 | K188: 442464 | L188: 0 | M188: 435772.5549 | N188: 435772.5549 | O188: 0 | P188: 435772.5549 | Q188: 0.9848768599
B189: 12-223 | C189: RESIDENCIAL FUENTES DE CANTERA (U HAB) | D189: A5 | E189: IMPERMEABILIZACIóN Y PINTURA EXTERIOR E INTERIOR DE LOS 17 EDIFICIOS QUE CONFORMAN LA UNIDAD TERRITORIAL | H189: 0.85 | I189: 2000 | J189: 318993 | K189: 318993 | L189: 0 | M189: 316680 | N189: 316680 | O189: 0 | P189: 316680 | Q189: 0.9927490572
Q191: =IFERROR(($K191/#REF!)*100,"") -> 
B192: TOTAL URG | J192: =SUM(J11:J191) -> 90034788 | K192: =SUM(K11:K191) -> 90034788 | L192: 0 | M192: 88886671.51 | N192: 88886671.51 | O192: 0 | P192: 88886671.51 | Q192: =IFERROR(($K192/#REF!)*100,"") -> 
Q193: =IFERROR(($K193/#REF!)*100,"") -> 
Q194: =IFERROR(($K194/#REF!)*100,"") -> 

Sheet PPA21
B2: PPA PRESUPUESTO PARTICIPATIVO
B4: Alcaldía: | D4: 02CD14 ALCALDÍA TLALPAN
B5: Período: | D5: ENERO - DICIEMBRE 2021
B6: Ejercicio: | D6: 2021
B8: UNIDAD TERRITORIAL | D8: PROYECTO | H8: AVANCE EN LA EJECUCIÓN DEL PROYECTO (%) | I8: PRESUPUESTO (Pesos con dos decimales) | Q8: AVANCE PRESUPUESTAL %
B9: CLAVE | C9: DENOMINACIÓN | D9: GANADOR | F9: SUSTITUTO | I9: CAPÍTULO DE GASTO | J9: APROBADO | K9: MODIFICADO | L9: EJERCIDO | M9: SALDO DEL COMPROMISO | N9: DEVENGADO | O9: PAGADO | P9: EJERCIDO + COMPROMETIDO | Q9: (SALDO DEL COMPROMISO +EJERCIDO /MODIFICADO *100
D10: NÚMERO | E10: NOMBRE | F10: OFICIO AUTORIZACIÓN | G10: NOMBRE
B11: 12-001 | C11: AHUACATITLA | D11: B6 | E11: IMPERMEABILIZACIÓN DE AZOTEAS Y MUROS | H11: 0.85 | I11: 2000 | J11: 298782 | K11: 298782 | L11: 0 | M11: 295988.38 | N11: 295988.38 | O11: 0 | P11: 295988.38 | Q11: =+L11+M11/K11 -> 0.9906499722 | S11: Etiquetas de fila | T11: Suma de MONTO CONTRATADO
B12: 12-002 | C12: AMPLIACION MIGUEL HIDALGO 2A SECC | D12: B12 | E12: REMODELACION Y MEJORAMIENTO DEL PARQUE BUSTO DE JUAREZ 2021 | H12: 0.85 | I12: 6000 | J12: 1038834 | K12: 1038834 | L12: 0 | M12: 1038834 | N12: 1038834 | O12: 0 | P12: 1038834 | Q12: =+L12+M12/K12 -> 1 | S12: 12-001 | T12: 295988.38
B13: 12-003 | C13: AMPLIACION MIGUEL HIDALGO 3A SECC | D13: B7 | E13: TINACOS PARA ALMACENAMIENTO DE AGUA PARA LA COLONIA | H13: 0.85 | I13: 2000 | J13: 1051167 | K13: 1051167 | L13: 0 | M13: 1047612.75 | N13: 1047612.75 | O13: 0 | P13: 1047612.75 | Q13: 0.996618758 | S13: 12-002 | T13: 1038834
B14: 12-004 | C14: AMPLIACION MIGUEL HIDALGO 4A SECC | D14: B3 | E14: TINACOS PARA TODA LA COLONIA | H14: 0.85 | I14: 2000 | J14: 825134 | K14: 825134 | L14: 0 | M14: 824799.59 | N14: 824799.59 | O14: 0 | P14: 824799.59 | Q14: 0.9995947204 | S14: 12-003 | T14: 1047612.75
B15: 12-005 | C15: AMSA | D15: B1 | E15: PAVIMEMTACION DE CALLE PONIENTE | H15: 0.85 | I15: 6000 | J15: 352099 | K15: 352099 | L15: 0 | M15: 352099 | N15: 352099 | O15: 0 | P15: 352099 | Q15: 1 | S15: 12-004 | T15: 824799.59
B16: 12-007 | C16: ARBOLEDAS DEL SUR | D16: B4 | E16: "COLONIA SEGURA" CAMARAS INTELIGENTES DE VIGILANCIA | H16: 0.85 | I16: 4000 | J16: 459920 | K16: 459920 | L16: 0 | M16: 459905.86 | N16: 459905.86 | O16: 0 | P16: 459905.86 | Q16: 0.9999692555 | S16: 12-005 | T16: 352099
B17: 12-008 | C17: ARENAL GUADALUPE TLALPAN | D17: B2 | E17: LAMPARAS SOLARES EN LAS PRINCIPALES CALLES DE LA COLONIA | H17: 0.85 | I17: 2000 | J17: 408096 | K17: 408096 | L17: 0 | M17: 399204.72 | N17: 399204.72 | O17: 0 | P17: 399204.72 | Q17: 0.9782127735 | S17: 12-007 | T17: 459905.86
B18: 12-009 | C18: ARENAL PUERTA TEPEPAN | D18: B1 | E18: ILUMINACIÓN DEL PARQUE "CONCORDIA" UBICADO EN LA CALLE RÍO SAN BUENAVENTURA Y CERRADA RÍO SAN BUENAVENTURA | H18: 0.85 | I18: 6000 | J18: 356448 | K18: 356448 | L18: 0 | M18: 356448 | N18: 356448 | P18: 356448 | Q18: 1 | S18: 12-008 | T18: 399204.72
B19: 12-010 | C19: ATOCPA SUR | D19: B5 | E19: CáMARAS DE SEGURIDAD | H19: 0.85 | I19: 4000 | J19: 359164 | K19: 359164 | L19: 0 | M19: 359125.5 | N19: 359125.5 | P19: 359125.5 | Q19: 0.9998928066 | S19: 12-009 | T19: 356448
B20: 12-011 | C20: AYOCATITLA, ASUNCIÓN | D20: B3 | E20: REUTILICEMOS NUESTRA AGUA (CAPTACIóN DE AGUA PLUVIAL) | H20: 0.85 | I20: 2000 | J20: 398784 | K20: 398784 | L20: 0 | M20: 373264.99 | N20: 373264.99 | P20: 373264.99 | Q20: 0.9360079391 | S20: 12-010 | T20: 359125.5
B21: 12-013 | C21: BELVEDERE | D21: B2 | E21: LAMPARA SOLAR PARA FACHADA DOMICILIARIA 2021 | H21: 0.85 | I21: 2000 | J21: 572171 | K21: 572171 | L21: 0 | M21: 568292.63 | N21: 568292.63 | P21: 568292.63 | Q21: 0.9932216593 | S21: 12-011 | T21: 373264.99
B22: 12-014 | C22: BOSQUE DE TEPEXIMILPA | D22: B3 | E22: CALENTADOR SOLAR PARA LA CIUDADANIA DE BOSQUE DE TEPEXIMILPA PP. 2021 | H22: 0.85 | I22: 2000 | J22: 348290 | K22: 348290 | L22: 0 | M22: 342273.312 | N22: 342273.312 | P22: 342273.312 | Q22: 0.9827250624 | S22: 12-013 | T22: 568292.63
B23: 12-016 | C23: BOSQUES DEL PEDREGAL | D23: B6 | E23: CALENTADORES SOLARES PARA TODA LA COLONIA BOSQUES DEL PEDREGAL | H23: 0.85 | I23: 2000 | J23: 755182 | K23: 755182 | L23: 0 | M23: 750928.32 | N23: 750928.32 | P23: 750928.32 | Q23: 0.9943673446 | S23: 12-014 | T23: 342273.312
B24: 12-017 | C24: CALVARIO CAMISETAS | D24: B1 | E24: PARQUE PARA LAS MADRES | H24: 0.85 | I24: 6000 | J24: 319806 | K24: 319806 | L24: 0 | M24: 319806 | N24: 319806 | P24: 319806 | Q24: 1 | S24: 12-016 | T24: 750928.32
B25: 12-018 | C25: CANTERA PUENTE DE PIEDRA | D25: B8 | E25: CALENTADORES SOLARES PARA LA COLONIA | H25: 0.85 | I25: 2000 | J25: 502823 | K25: 502823 | L25: 0 | M25: 499148.58 | N25: 499148.58 | P25: 499148.58 | Q25: 0.9926924186 | S25: 12-017 | T25: 319806
B26: 12-019 | C26: CHICHICASPATL | D26: B6 | E26: ESTUFA DE INDUCCION AHORRADORA CON ENERGIA SUSTENTABLE | H26: 0.85 | I26: 2000 | J26: 500956 | K26: 500956 | L26: 0 | M26: 499117.75 | N26: 499117.75 | P26: 499117.75 | Q26: 0.9963305161 | S26: 12-018 | T26: 499148.58
B27: 12-020 | C27: CHIMALCOYOC | D27: B1 | E27: LÁMPARAS SOLARES CON SENSOR DE MOVIMIENTO PARA LAS CASAS DE TODA LA COLONIA. | H27: 0.85 | I27: 2000 | J27: 537555 | K27: 537555 | L27: 0 | M27: 533850.65 | N27: 533850.65 | P27: 533850.65 | Q27: 0.9931088912 | S27: 12-019 | T27: 499117.75
B28: 12-022 | C28: CHIMILLI | D28: B7 | E28: CALENTADORES SOLARES | H28: 0.85 | I28: 2000 | J28: 434707 | K28: 434707 | L28: 0 | M28: 427841.64 | N28: 427841.64 | P28: 427841.64 | Q28: 0.9842069256 | S28: 12-020 | T28: 533850.65
B29: 12-023 | C29: CLUB DE GOLF MÉXICO-SAN BUENAVENTURA | D29: B3 | E29: CÁMARAS DE VIGILANCIA EN TODA LA COLONIA | H29: 0.85 | I29: 4000 | J29: 378435 | K29: 378435 | L29: 0 | M29: 378339.85 | N29: 378339.85 | P29: 378339.85 | Q29: 0.9997485698 | S29: 12-022 | T29: 427841.64
B30: 12-024 | C30: COAPA 2A SECCION-RAMOS MILLAN | D30: B4 | E30: REENCARPETAMIENTO CALLES DEL FRACCIONAMIENTO RINCONADA COAPA 2A SECCIÓN | H30: 0.85 | I30: 6000 | J30: 404171 | K30: 404171 | L30: 0 | M30: 404171 | N30: 404171 | P30: 404171 | Q30: 1 | S30: 12-023 | T30: 378339.85
B31: 12-025 | C31: COLINAS DEL BOSQUE-LAS TORTOLAS | D31: B2 | E31: MEJORAS EN CONTENEDOR DE BASURA, COMPRAR EQUIPO Y CONTENEDORES PARA SEPARACIÓN Y DISTRIBUCIÓN DE BASURA | H31: 0.85 | I31: 2000 | J31: 420323 | K31: 420323 | L31: 420323 | M31: 0 | N31: 420323 | O31: 420323 | P31: 420323 | Q31: 0 | S31: 12-024 | T31: 404171
B32: 12-026 | C32: CONDOMINIO DEL BOSQUE (FRACC)-BOSQUE DE TLALPAN | D32: B11 | E32: COLOCACION DE TECHADO EN CISTERNA 1. | H32: 0.85 | I32: 4000 | J32: 326112 | K32: 326112 | L32: 0 | M32: 326111.96 | N32: 326111.96 | P32: 326111.96 | Q32: 0.9999998773 | S32: 12-025 | T32: 420323
B33: 12-027 | C33: CONJUNTO URBANO CUEMANCO (U HAB) | D33: B3 | E33: 'RAMPAS PARA PERSONAS CON DISCAPACIDAD EN LA COLONIA CONJUNTO URBANO CUEMANCO | H33: 0.85 | I33: 6000 | J33: 334553 | K33: 334553 | L33: 0 | M33: 334553 | N33: 334553 | P33: 334553 | Q33: 1 | S33: 12-026 | T33: 326111.96
B34: 12-029 | C34: CRUZ DEL FAROL | D34: 0 | E34: CÁMARAS DE SEGURIDAD DOMICILIARIA PARA TODA LA COLONIA | H34: 0.85 | I34: 4000 | J34: 398633 | K34: 398633 | L34: 0 | M34: 386516.66 | N34: 386516.66 | P34: 386516.66 | Q34: 0.969605276 | S34: 12-027 | T34: 334553
B35: 12-030 | C35: CUCHILLA DE PADIERNA | D35: B15 | E35: CAMARAS DE VIGILANCIA PARA CUCHILLA DE PADIERNA | H35: 0.85 | I35: 4000 | J35: 484305 | K35: 484305 | L35: 0 | M35: 484214.86 | N35: 484214.86 | P35: 484214.86 | Q35: 0.9998138776 | S35: 12-029 | T35: 386516.66
B36: 12-031 | C36: CUILOTEPEC II | D36: B1 | E36: ADQUISICION E INSTALACION DE SISTEMAS DE CAPTACION DE AGUA PLUVIAL. | H36: 0.85 | I36: 2000 | J36: 308440 | K36: 308440 | L36: 0 | M36: 307832.68 | N36: 307832.68 | P36: 307832.68 | Q36: 0.9980309947 | S36: 12-030 | T36: 484214.86
B37: 12-032 | C37: CULTURA MAYA | D37: B9 | E37: CALENTADORES SOLARES PARA LA COLONIA CULTURA MAYA 2021 | H37: 0.85 | I37: 2000 | J37: 659434 | K37: 659434 | L37: 0 | M37: 656023.848 | N37: 656023.848 | P37: 656023.848 | Q37: 0.9948286682 | S37: 12-031 | T37: 307832.68
B38: 12-033 | C38: DIAMANTE | D38: B1 | E38: CALENTADORES SOLARES PARA LA COLONIA DIAMANTE 2021. | H38: 0.85 | I38: 2000 | J38: 360121 | K38: 360121 | L38: 0 | M38: 356534.7 | N38: 356534.7 | P38: 356534.7 | Q38: 0.9900414028 | S38: 12-032 | T38: 656023.848
B39: 12-034 | C39: DOLORES TLALI | D39: B1 | E39: PAVIMENTACIÓN CALLE ALTA TENSIÓN | H39: 0.85 | I39: 6000 | J39: 333056 | K39: 333056 | L39: 0 | M39: 333056 | N39: 333056 | P39: 333056 | Q39: 1 | S39: 12-033 | T39: 356534.7
B40: 12-035 | C40: EJIDOS DE SAN PEDRO MARTIR I (NORTE) | D40: B2 | E40: CALENTADORES SOLARES | H40: 0.85 | I40: 2000 | J40: 600547 | K40: 600547 | L40: 0 | M40: 598978.296 | N40: 598978.296 | P40: 598978.296 | Q40: 0.9973878747 | S40: 12-034 | T40: 333056
B41: 12-036 | C41: EL ARENAL | D41: B1 | E41: CALENTADORES SOLARES PARA EL ARENAL | H41: 0.85 | I41: 2000 | J41: 420916 | K41: 420916 | L41: 0 | M41: 413580.252 | N41: 413580.252 | P41: 413580.252 | Q41: 0.9825719431 | S41: 12-035 | T41: 598978.296
B42: 12-037 | C42: EL DIVISADERO | D42: B1 | E42: TINACOS Y CISTERNAS PARA ALMACENAMIENTO DE AGUA POTABLE EN TODA LA COLONIA | H42: 0.85 | I42: 2000 | J42: 313118 | K42: 313118 | L42: 0 | M42: 312720.22 | N42: 312720.22 | P42: 312720.22 | Q42: 0.9987296163 | S42: 12-036 | T42: 413580.252
B43: 12-039 | C43: EL ZACATON | D43: B4 | E43: CALENTADORES SOLARES PARA LA COLONIA. | H43: 0.85 | I43: 2000 | J43: 579542 | K43: 579542 | L43: 0 | M43: 570455.52 | N43: 570455.52 | P43: 570455.52 | Q43: 0.9843212744 | S43: 12-037 | T43: 312720.22
B44: 12-040 | C44: EMILIO PORTES GIL PEMEX PICACHO (U HAB) | D44: B1 | E44: SUSTITUCION O MANTENIMIENTO DE VALVULAS DE AGUA POTABLE DE LA U. HABITACIONAL | H44: 0.85 | I44: 4000 | J44: 393742 | K44: 393742 | L44: 0 | M44: 393741.98 | N44: 393741.98 | P44: 393741.98 | Q44: 0.9999999492 | S44: 12-039 | T44: 570455.52
B45: 12-042 | C45: EX HACIENDA SAN JUAN DE DIOS | D45: B4 | E45: EMBELLECER EL CAMELLÓN DE PROLG. MIRAMONTES DESDE CALLE ESCUELA A GLORIETA DE VAQUERITOS | H45: 0.85 | I45: 6000 | J45: 512105 | K45: 512105 | L45: 0 | M45: 512105 | N45: 512105 | P45: 512105 | Q45: 1 | S45: 12-040 | T45: 393741.98
B46: 12-043 | C46: FLORESTA-PRADO-VERGEL COAPA | D46: B1 | E46: CAMBIO DE SISTEMA DE ALUMBRADO DE LA COLONIA | H46: 0.85 | I46: 6000 | J46: 417912 | K46: 417912 | L46: 0 | M46: 417912 | N46: 417912 | P46: 417912 | Q46: 1 | S46: 12-042 | T46: 512105
B47: 12-044 | C47: UNIDADES HABITACIONALES DE TENORIOS | D47: B3 | E47: RETIRO DE MALLA DE IMPERMEABILIZACIÓN Y REHABILITACIÓN DE AZOTEAS Y COLOCACIÓN DE IMPERMEABILIZACIÓN EN EDIFICIOS 1 A 16 EN LA UNIDAD TENORIOS 224 | H47: 0.85 | I47: 2000 | J47: 317691 | K47: 317691 | L47: 0 | M47: 314487.66 | N47: 314487.66 | P47: 314487.66 | Q47: 0.989916806 | S47: 12-043 | T47: 417912
B48: 12-045 | C48: FOVISSSTE SAN PEDRO MARTIR (U HAB) | D48: B3 | E48: LUMINARIAS SOLARES PARA FOVISSSTE | H48: 0.85 | I48: 4000 | J48: 309505 | K48: 309505 | L48: 0 | M48: 299403.54 | N48: 299403.54 | P48: 299403.54 | Q48: 0.9673625305 | S48: 12-044 | T48: 314487.66
B49: 12-046 | C49: FRESNO | D49: B1 | E49: CAMARAS DE VIGILANCIA DE CIRCUITO CERRADO EN LA COL. EL FRESNO 2021 | H49: 0.85 | I49: 4000 | J49: 302051 | K49: 302051 | L49: 0 | M49: 301977.39 | N49: 301977.39 | P49: 301977.39 | Q49: 0.9997562994 | S49: 12-045 | T49: 299403.54
B50: 12-047 | C50: FUENTES BROTANTES MIGUEL HIDALGO (U HAB) | D50: B4 | E50: CALENTADORES SOLARES PARA EL BLOQUE "M" | H50: 0.85 | I50: 2000 | J50: 503507 | K50: 503507 | L50: 0 | M50: 499148.58 | N50: 499148.58 | P50: 499148.58 | Q50: 0.9913438741 | S50: 12-046 | T50: 301977.39
B51: 12-048 | C51: FUENTES Y PEDREGAL DE TEPEPAN | D51: B3 | E51: CÁMARAS DE VIGILANCIA EN TODA LA COLONIA | H51: 0.85 | I51: 4000 | J51: 506440 | K51: 506440 | L51: 0 | M51: 506342.29 | N51: 506342.29 | P51: 506342.29 | Q51: 0.999807065 | S51: 12-047 | T51: 499148.58
B52: 12-049 | C52: FUENTES DEL PEDREGAL | D52: B6 | E52: CONSTRUCCION DE CISTERNA PARA CAPTACION DE AGUA PLUVIAL PARA RIEGO DEL PARQUE LOS ILUSOS. | H52: 0.85 | I52: 6000 | J52: 606944 | K52: 606944 | L52: 0 | M52: 606944 | N52: 606944 | P52: 606944 | Q52: 1 | S52: 12-048 | T52: 506342.29
B53: 12-050 | C53: GRANJAS COAPA | D53: B2 | E53: REFORZAMIENTO Y NIVELACIÓN DE LOS EDIFICIOS A, B Y C, UBICADOS EN CAFETALES 207 | H53: 0.85 | I53: 3000 | J53: 474701 | K53: 474701 | L53: 0 | M53: 474700.19 | N53: 474700.19 | P53: 474700.19 | Q53: 0.9999982937 | S53: 12-049 | T53: 606944
B54: 12-051 | C54: GRANJAS COAPA ORIENTE | D54: B1 | E54: LUMINARIAS LED EN EL CAMELLÓN DE LA CALLE SAUZALES | H54: 0.85 | I54: 6000 | J54: 374300 | K54: 374300 | L54: 0 | M54: 374300 | N54: 374300 | P54: 374300 | Q54: 1 | S54: 12-050 | T54: 474700.19
B55: 12-053 | C55: HACIENDA SAN JUAN-RINCON DE SAN JUAN-CHIMALI | D55: B1 | E55: REMODELACIÓN, DEMOLICIÓN, AMPLIACIÓN, CONSTRUCCIÓN Y ACABADOS DEL SALÓN DE USOS MÚLTIPLES CON BAÑOS Y OFICINA, EN EL JARDÍN DE CHIMALI | H55: 0.85 | I55: 6000 | J55: 545724 | K55: 545724 | L55: 0 | M55: 545724 | N55: 545724 | P55: 545724 | Q55: 1 | S55: 12-051 | T55: 374300
B56: 12-055 | C56: HEROES DE 1910 | D56: B2 | E56: BANQUETA PARA CAMINAR SEGURO EN CAMINO A LA MARINA | H56: 0.85 | I56: 6000 | J56: 340952 | K56: 340952 | L56: 0 | M56: 340952 | N56: 340952 | P56: 340952 | Q56: 1 | S56: 12-053 | T56: 545724
B57: 12-057 | C57: HUESO PERIFERICO-ISSSFAM NO. 7 (U HABS) | D57: B7 | E57: LUMINARIAS: INSTALACIÓN EN UNIDAD (CIRCUITO) HABITACIONAL HUESO PERIFÉRICO ISSFAM NO. 7 | H57: 0.85 | I57: 4000 | J57: 377086 | K57: 377086 | L57: 0 | M57: 373121.42 | N57: 373121.42 | P57: 373121.42 | Q57: 0.989486271 | S57: 12-055 | T57: 340952
B58: 12-059 | C58: IGNACIO CHAVEZ (U HAB) | D58: B2 | E58: REENCARPETAMIENTO DE LA CALLE IGNACIO CHÁVEZ DENTRO DE LA UNIDAD IGNACIO CHÁVEZ | H58: 0.85 | I58: 6000 | J58: 328881 | K58: 328881 | L58: 0 | M58: 328881 | N58: 328881 | P58: 328881 | Q58: 1 | S58: 12-057 | T58: 373121.42
B59: 12-060 | C59: ISIDRO FABELA I (PONIENTE) | D59: B6 | E59: CALLES SEGURAS, CIUDADANO SEGURO: CAMARAS EXTERIORES VIDEO VIGILANCIA DE ALTA DEFINICIÓN. | H59: 0.85 | I59: 4000 | J59: 603208 | K59: 603208 | L59: 0 | M59: 603057.2 | N59: 603057.2 | P59: 603057.2 | Q59: 0.9997500033 | S59: 12-059 | T59: 328881
B60: 12-061 | C60: ISIDRO FABELA (AMPL) | D60: B3 | E60: RECUPERACIÓN DE ESPACIOS PÚBLICOS Y COLOCACIÓN DE MALLA CON PROTECCIÓN CON TUBULARES Y REFUERZOS | H60: 0.85 | I60: 6000 | J60: 353535 | K60: 353535 | L60: 0 | M60: 353535 | N60: 353535 | P60: 353535 | Q60: 1 | S60: 12-060 | T60: 603057.2
B61: 12-062 | C61: ISSSFAM NO. 1 (U HAB)-VILLA TLALPAN | D61: B1 | E61: CIERRE DEL CRUCE ENTRE CALLE REFORMA AGRARIA Y VIADUCTO TLALPAN (ISSSFAM NO. 1 | H61: 0.85 | I61: 6000 | J61: 353519 | K61: 353519 | L61: 0 | M61: 353519 | N61: 353519 | P61: 353519 | Q61: 1 | S61: 12-061 | T61: 353535
B62: 12-064 | C62: JARDINES COAPA-BELISARIO DOMINGUEZ | D62: B1 | E62: REENCARPETADO DE LA CALLE SEBASTIÁN LERDO DE TEJADA | H62: 0.85 | I62: 6000 | J62: 341311 | K62: 341311 | L62: 0 | M62: 341311 | N62: 341311 | P62: 341311 | Q62: 1 | S62: 12-062 | T62: 353519
B63: 12-065 | C63: JARDINES DE SAN JUAN | D63: B6 | E63: 30 LUMINARIAS SUBURBANAS DE LED´S CON POSTE METÁLICO DE 6 METROS Y BRAZO DE 1 METRO: EN AMPLIACIÓN LA VENTA | H63: 0.85 | I63: 6000 | J63: 577546 | K63: 577546 | L63: 0 | M63: 577546 | N63: 577546 | P63: 577546 | Q63: 1 | S63: 12-064 | T63: 341311
B64: 12-066 | C64: JARDINES DEL AJUSCO | D64: B2 | E64: MANTENIMIENTO DE ALUMBRADO PUBLICO EN TODA LA COLONIA | H64: 0.85 | I64: 6000 | J64: 470689 | K64: 470689 | L64: 0 | M64: 470689 | N64: 470689 | P64: 470689 | Q64: 1 | S64: 12-065 | T64: 577546
B65: 12-067 | C65: JARDINES EN LA MONTAÑA | D65: B2 | E65: CAMARAS DE ALTA RESOLUCION CON POSTE TIPO C5 PARA LOS ACCESOS DE LAS ENTRADAS AL FRACCIONAMIENTO | H65: 0.85 | I65: 4000 | J65: 438560 | K65: 438560 | L65: 0 | M65: 438471.86 | N65: 438471.86 | P65: 438471.86 | Q65: 0.9997990241 | S65: 12-066 | T65: 470689
B66: 12-068 | C66: JUVENTUD UNIDA | D66: B2 | E66: CONSTRUCCIÓN DE SALÓN DE USOS MÚLTIPLES EN CALLE CAOBA | H66: 0.85 | I66: 6000 | J66: 339784 | K66: 339784 | L66: 0 | M66: 339784 | N66: 339784 | P66: 339784 | Q66: 1 | S66: 12-067 | T66: 438471.86
B67: 12-069 | C67: LA LONJA | D67: B4 | E67: ADQUISICION DE UNA PURIFICADORA DE AGUA PARA CADA UNO DE LOS LOTES DE LA COLONIA BARRIO LA LONJA. | H67: 0.85 | I67: 2000 | J67: 408497 | K67: 408497 | L67: 0 | M67: 405524.26 | N67: 405524.26 | P67: 405524.26 | Q67: 0.9927227373 | S67: 12-068 | T67: 339784
B68: 12-070 | C68: LA FAMA | D68: B3 | E68: CALENTADORES SOLARES POR SORTEO | H68: 0.85 | I68: 2000 | J68: 343539 | K68: 343539 | L68: 0 | M68: 342273.312 | N68: 342273.312 | P68: 342273.312 | Q68: 0.9963157371 | S68: 12-069 | T68: 405524.26
B69: 12-071 | C69: LA GUADALUPANA | D69: B2 | E69: RESUMIDERO EN LA ESQUINA DE C. GUADALUPANA (TECATITLA) CON CDA 2A TECATITLA | H69: 0.85 | I69: 6000 | J69: 404566 | K69: 404566 | L69: 0 | M69: 404466 | N69: 404466 | P69: 404466 | Q69: 0.9997528215 | S69: 12-070 | T69: 342273.312
B70: 12-072 | C70: LA JOYA | D70: B1 | E70: CONSTRUCCIÓN DE DRENAJE | H70: 0.85 | I70: 6000 | J70: 401676 | K70: 401676 | L70: 0 | M70: 401676 | N70: 401676 | P70: 401676 | Q70: 1 | S70: 12-071 | T70: 404466
B71: 12-073 | C71: LA LIBERTAD - IXTLAHUACA | D71: 0 | E71: CONSTRUCCIÓN DE UN PASO PEATONAL SOBRE EL RÍO TEMPORAL | H71: 0.85 | I71: 6000 | J71: 328062 | K71: 328062 | L71: 0 | M71: 328062 | N71: 328062 | P71: 328062 | Q71: 1 | S71: 12-072 | T71: 401676
B72: 12-075 | C72: LA PALMA | D72: B2 | E72: ANDADOR PEATONAL EN PARADA LA PALMA DESDE RETORNO LA PALMA, HASTA LA CAPILLA NUESTRA SEÑORA DE GUADALUPE, CALLE OYAMEL | H72: 0.85 | I72: 6000 | J72: 396598 | K72: 396598 | L72: 0 | M72: 396598 | N72: 396598 | P72: 396598 | Q72: 1 | S72: 12-073 | T72: 328062
B73: 12-076 | C73: LA PRIMAVERA | D73: B8 | E73: BANCAS PARA DESCANSO, REFORESTACIÓN Y BALIZAMIENTO PARA LAS CALLES DE LA COLONIA LA PRIMAVERA | H73: 0.85 | I73: 6000 | J73: 391035 | K73: 391035 | L73: 0 | M73: 391035 | N73: 391035 | P73: 391035 | Q73: 1 | S73: 12-074 | T73: 0
B74: 12-077 | C74: LA TORTUGA XOLALPA-HCO COLEGIO MILITAR | D74: B2 | E74: NUEVA RED DE AGUA POTABLE EN CALLE CERRADA DE PASEO DE LOS LIMONEROS | H74: 0.85 | I74: 6000 | J74: 487189 | K74: 487189 | L74: 0 | M74: 487189 | N74: 487189 | P74: 487189 | Q74: 1 | S74: 12-075 | T74: 396598
B75: 12-079 | C75: LOMAS ALTAS DE PADIERNA SUR | D75: 0 | E75: AMPLIAR, ACONDICIONAR Y EMBELLECER EL ÁREA QUE SE PROPONE Y EQUIPAR CON JUEGOS INFANTILES PARA SANA RECREACIÓN Y ESPARCIMIENTO EN UN AMBIENTE APACIBLE | H75: 0.85 | I75: 6000 | J75: 560910 | K75: 560910 | L75: 0 | M75: 560910 | N75: 560910 | P75: 560910 | Q75: 1 | S75: 12-076 | T75: 391035
B76: 12-080 | C76: LOMAS DE CUILOTEPEC | D76: B3 | E76: CALENTADORES SOLARES PARA TODA LA COLONIA. | H76: 0.85 | I76: 2000 | J76: 409444 | K76: 409444 | L76: 0 | M76: 399318.864 | N76: 399318.864 | P76: 399318.864 | Q76: =+L76+M76/K76 -> 0.9752710114 | S76: 12-077 | T76: 487189
B77: 12-082 | C77: LOMAS DE PADIERNA (AMPL) | D77: B7 | E77: ARCO DE PIEDRA PARA RECONOCIMIENTO DE LA COLONIA. | H77: 0.85 | I77: 6000 | J77: 298611 | K77: 298611 | L77: 0 | M77: 298611 | N77: 298611 | P77: 298611 | Q77: 1 | S77: 12-079 | T77: 560910
B78: 12-084 | C78: LOMAS DE TEXCALATLACO | D78: B4 | E78: CALENTADORES SOLARES PARA TODA LA COLONIA | H78: 0.85 | I78: 2000 | J78: 309267 | K78: 309267 | L78: 0 | M78: 299489.148 | N78: 299489.148 | P78: 299489.148 | Q78: 0.9683837849 | S78: 12-080 | T78: 399318.864
B79: 12-085 | C79: LOMAS DEL PEDREGAL | D79: B5 | E79: POSTES LUMINARIAS DE 7.5 METROS EN LA COLONIA LOMAS DEL PEDREGAL | H79: 0.85 | I79: 6000 | J79: 332262 | K79: 332262 | L79: 0 | M79: 332262 | N79: 332262 | P79: 332262 | Q79: 1 | S79: 12-082 | T79: 298611
B80: 12-086 | C80: LOMAS HIDALGO | D80: B4 | E80: PROYECTO CALENTADORES SOLARES EN LAS CALLES DE MINUETO,ADAGIO, DARWIN Y FIGARO. | H80: 0.85 | I80: 2000 | J80: 408780 | K80: 408780 | L80: 0 | M80: 399318.864 | N80: 399318.864 | P80: 399318.864 | Q80: 0.9768551886 | S80: 12-084 | T80: 299489.148
B81: 12-087 | C81: LOS ENCINOS | D81: B1 | E81: REENCARPETADO DE CALLE TEKAX ENTRE F.F.C.C. Y DZIBALCHEM | H81: 0.85 | I81: 6000 | J81: 425649 | K81: 425649 | L81: 0 | M81: 425649 | N81: 425649 | P81: 425649 | Q81: 1 | S81: 12-085 | T81: 332262
B82: 12-088 | C82: LOS PASTORES | D82: 0 | E82: EN PRELACION ALUMBRADO EN LA PRIMERA CERRADA DE LOS PASTORES | H82: 0.85 | I82: 6000 | J82: 308217 | K82: 308217 | L82: 0 | M82: 308217 | N82: 308217 | P82: 308217 | Q82: 1 | S82: 12-086 | T82: 399318.864
B83: 12-089 | C83: LOS VOLCANES | D83: B2 | E83: AGREGAR LUMINARIAS SOLARES A LA AVENIDA PRINCIPAL DE LA COLONIA, MEJORANDO LA SEGURIDAD DEL ANDADOR PEATONAL A TRAVÉS DE UNA OPCIÓN SUSTENTABLE. | H83: 0.85 | I83: 2000 | J83: 444302 | K83: 444302 | L83: 0 | M83: 443352 | N83: 443352 | P83: 443352 | Q83: 0.9978618147 | S83: 12-087 | T83: 425649
B84: 12-092 | C84: MA ESTHER ZUNO DE ECHEVERRIA-TLALPUENTE | D84: B7 | E84: CONTINUACIÓN DE LA BARDA DE CONTENCIÓN DEL CENTRO COMUNITARIO | H84: 0.85 | I84: 6000 | J84: 403053 | K84: 403053 | L84: 0 | M84: 403053 | N84: 403053 | P84: 403053 | Q84: 1 | S84: 12-088 | T84: 308217
B85: 12-093 | C85: COAPA-VILLA CUEMANCO | D85: B2 | E85: REMODELACIÓN Y NIVELACIÓN DE BANQUETAS EN CALLE SAUZALES, CON BOLARDOS EN LAS ESQUINAS | H85: 0.85 | I85: 6000 | J85: 380396 | K85: 380396 | L85: 0 | M85: 380396 | N85: 380396 | P85: 380396 | Q85: 1 | S85: 12-089 | T85: 443352
B86: 12-094 | C86: MESA LOS HORNOS, TEXCALTENCO | D86: B1 | E86: TINACOS PARA MESA LOS HORNOS 2021 | H86: 0.85 | I86: 2000 | J86: 966475 | K86: 966475 | L86: 0 | M86: 965523.69 | N86: 965523.69 | P86: 965523.69 | Q86: 0.999015691 | S86: 12-092 | T86: 403053
B87: 12-095 | C87: MIGUEL HIDALGO | D87: B9 | E87: REENCARPETADO CALLE CUAUHTEMOTZIN | H87: 0.85 | I87: 6000 | J87: 956256 | K87: 956256 | L87: 0 | M87: 956256 | N87: 956256 | P87: 956256 | Q87: 1 | S87: 12-093 | T87: 380396
B88: 12-096 | C88: MIRADOR 1A SECC | D88: B2 | E88: CALENTADORES SOLARES PARA TODA LA COLONIA | H88: 0.85 | I88: 2000 | J88: 375688 | K88: 375688 | L88: 0 | M88: 370796.088 | N88: 370796.088 | P88: 370796.088 | Q88: 0.9869787909 | S88: 12-094 | T88: 965523.69
B89: 12-097 | C89: MIRADOR 2A Y 3A SECC | D89: B5 | E89: CALENTADORES SOLARES 2A Y 3A SECCION, EL MIRADOR. | H89: 0.85 | I89: 2000 | J89: 367959 | K89: 367959 | L89: 0 | M89: 356534.7 | N89: 356534.7 | P89: 356534.7 | Q89: 0.9689522474 | S89: 12-095 | T89: 956256
B90: 12-099 | C90: MIRADOR DEL VALLE | D90: B10 | E90: LUMINARIAS DE ULTIMA GENERACION PARA PROYECTO DE ILUMINACION ESPECIAL EN TODA LA COLONIA: SEGURIDAD, CUIDADO AMBIENTAL Y RECUPERACION DE ESPACIOS | H90: 0.85 | I90: 6000 | J90: 337436 | K90: 337436 | L90: 0 | M90: 337436 | N90: 337436 | P90: 337436 | Q90: 1 | S90: 12-096 | T90: 370796.088
B91: 12-100 | C91: MIRADOR I | D91: B7 | E91: TINACOS ROTOPLAS EN LA COLONIA MIRADOR 1 | H91: 0.85 | I91: 2000 | J91: 395876 | K91: 395876 | L91: 0 | M91: 394809.28 | N91: 394809.28 | P91: 394809.28 | Q91: 0.9973054189 | S91: 12-097 | T91: 356534.7
B92: 12-101 | C92: MIRADOR II | D92: B7 | E92: INSTALACION DE CAMARAS DE VIGILANCIA | H92: 0.85 | I92: 2000 | J92: 529185 | K92: 529185 | L92: 0 | M92: 527715.38 | N92: 527715.38 | P92: 527715.38 | Q92: 0.9972228616 | S92: 12-099 | T92: 337436
B93: 12-102 | C93: MOVIMIENTO ORGANIZADO DE TLALPAN-EL MIRADOR (RNCDA) | D93: B3 | E93: ADECUACIÓN DEL MÓDULO DE ALHEÑA DE LA COLONIA MOVIMIENTO ORGANIZADO DE TLALPAN, COMO MÓDULO MULTIFUNCIONAL | H93: 0.85 | I93: 6000 | J93: 319770 | K93: 319770 | L93: 0 | M93: 319770 | N93: 319770 | P93: 319770 | Q93: 1 | S93: 12-100 | T93: 394809.28
